Workbook

Sheet Movimentos
A1: Financeiro
H2: NOTAS
C3: PROJEÇÕES TEMPORAIS | D3: INFORME -> | E3: =MONTH(TODAY()) -> 3 | F3: =TODAY() -> 2016-03-18 | G3: rascunho: | H3: MESES | I3: 1 | K3: 2 | M3: 3 | O3: 4 | Q3: 5 | S3: 6 | U3: 7 | W3: 8 | Y3: 9 | AA3: 10 | AC3: 11 | AE3: 12
D4: DADOS ANO | E4: DADOS MÊS | F4: SALDO ACUMULADO DATA | G4: LIVRE | H4: CREDITOS | I4: =SUMIF(I$9:I$65534,TRUE,$D$9:$D$65534) -> 2122.2 | K4: =SUMIF(K$9:K$65534,TRUE,$D$9:$D$65534) -> 4000 | M4: =SUMIF(M$9:M$65534,TRUE,$D$9:$D$65534) -> 0 | O4: =SUMIF(O$9:O$65534,TRUE,$D$9:$D$65534) -> 0 | Q4: =SUMIF(Q$9:Q$65534,TRUE,$D$9:$D$65534) -> 0 | S4: =SUMIF(S$9:S$65534,TRUE,$D$9:$D$65534) -> 0 | U4: =SUMIF(U$9:U$65534,TRUE,$D$9:$D$65534) -> 0 | W4: =SUMIF(W$9:W$65534,TRUE,$D$9:$D$65534) -> 0 | Y4: =SUMIF(Y$9:Y$65534,TRUE,$D$9:$D$65534) -> 0 | AA4: =SUMIF(AA$9:AA$65534,TRUE,$D$9:$D$65534) -> 0 | AC4: =SUMIF(AC$9:AC$65534,TRUE,$D$9:$D$65534) -> 0 | AE4: =SUMIF(AE$9:AE$65534,TRUE,$D$9:$D$65534) -> 0
C5: Saldo | D5: =SUM(D9:D65534) -> 2572.09 | E5: =E6+E7 -> -246.71 | F5: =SUMIF(B9:B1048576,"<="&F3,D9:D1048576) -> 3752.2 | G5: 2 | H5: DEBITOS | I5: =SUMIF(J$9:J$65534,TRUE,$D$9:$D$65534) -> -650 | K5: =SUMIF(L$9:L$65534,TRUE,$D$9:$D$65534) -> -1720 | M5: =SUMIF(N$9:N$65534,TRUE,$D$9:$D$65534) -> -246.71 | O5: =SUMIF(P$9:P$65534,TRUE,$D$9:$D$65534) -> -216.7 | Q5: =SUMIF(R$9:R$65534,TRUE,$D$9:$D$65534) -> -216.7 | S5: =SUMIF(T$9:T$65534,TRUE,$D$9:$D$65534) -> -100 | U5: =SUMIF(V$9:V$65534,TRUE,$D$9:$D$65534) -> -100 | W5: =SUMIF(X$9:X$65534,TRUE,$D$9:$D$65534) -> -100 | Y5: =SUMIF(Z$9:Z$65534,TRUE,$D$9:$D$65534) -> -100 | AA5: =SUMIF(AB$9:AB$65534,TRUE,$D$9:$D$65534) -> -100 | AC5: =SUMIF(AD$9:AD$65534,TRUE,$D$9:$D$65534) -> 0 | AE5: =SUMIF(AF$9:AF$65534,TRUE,$D$9:$D$65534) -> 0
C6: Creditos | D6: =SUMIF(D9:D65534,">0",D9:D65534) -> 6122.2 | E6: =SUMIF(G9:G65534,TRUE,D9:D65534) -> 0 | G6: 2 | H6: SALDO MÊS | I6: =I4+I5 -> 1472.2 | K6: =K4+K5 -> 2280 | M6: =M4+M5 -> -246.71 | O6: =O4+O5 -> -216.7 | Q6: =Q4+Q5 -> -216.7 | S6: =S4+S5 -> -100 | U6: =U4+U5 -> -100 | W6: =W4+W5 -> -100 | Y6: =Y4+Y5 -> -100 | AA6: =AA4+AA5 -> -100 | AC6: =AC4+AC5 -> 0 | AE6: =AE4+AE5 -> 0
C7: Debitos | D7: =SUMIF(D9:D65534,"<0",D9:D65534) -> -3550.11 | E7: =SUMIF(H9:H65534,TRUE,D9:D65534) -> -246.71 | G7: =G5+G6 -> 4 | H7: SALDO ACUM | I7: =I6 -> 1472.2 | K7: =K$6+I$7 -> 3752.2 | M7: =M$6+K$7 -> 3505.49 | O7: =O$6+M$7 -> 3288.79 | Q7: =Q$6+O$7 -> 3072.09 | S7: =S$6+Q$7 -> 2972.09 | U7: =U$6+S$7 -> 2872.09 | W7: =W$6+U$7 -> 2772.09 | Y7: =Y$6+W$7 -> 2672.09 | AA7: =AA$6+Y$7 -> 2572.09 | AC7: =AC$6+AA$7 -> 2572.09 | AE7: =AE$6+AC$7 -> 2572.09
A8: Mês | B8: Data | C8: Descrição | D8: Movimentação | E8: Tipo | F8: Observação | G8: Credito | H8: Debitos | I8: Credito | J8: Debitos | K8: Credito | L8: Debitos | M8: Credito | N8: Debitos | O8: Credito | P8: Debitos | Q8: Credito | R8: Debitos | S8: Credito | T8: Debitos | U8: Credito | V8: Debitos | W8: Credito | X8: Debitos | Y8: Credito | Z8: Debitos | AA8: Credito | AB8: Debitos | AC8: Credito | AD8: Debitos
A9: =IF(B9=0,"",MONTH(B9)) -> 1 | B9: 2016-01-01 | C9: SALDO | D9: =1122.43-0.23 -> 1122.2 | E9: =IF(D9="","",IF(D9<0,"DEBITO","CREDITO")) -> CREDITO | F9: MONTANTE INICIAL CONTA | G9: =AND(A9=$E$3,D9>0) -> FALSE | H9: =AND(A9=$E$3,D9<0) -> FALSE | I9: =IF($A9=I$3,AND($A9=I$3,$D9>0),0) -> TRUE | J9: =IF($A9=I$3,AND($A9=I$3,$D9<0),0) -> FALSE | K9: =IF($A9=K$3,AND($A9=K$3,$D9>0),0) -> 0 | L9: =IF($A9=K$3,AND($A9=K$3,$D9<0),0) -> 0 | M9: =IF($A9=M$3,AND($A9=M$3,$D9>0),0) -> 0 | N9: =IF($A9=M$3,AND($A9=M$3,$D9<0),0) -> 0 | O9: =IF($A9=O$3,AND($A9=O$3,$D9>0),0) -> 0 | P9: =IF($A9=O$3,AND($A9=O$3,$D9<0),0) -> 0 | Q9: =IF($A9=Q$3,AND($A9=Q$3,$D9>0),0) -> 0 | R9: =IF($A9=Q$3,AND($A9=Q$3,$D9<0),0) -> 0 | S9: =IF($A9=S$3,AND($A9=S$3,$D9>0),0) -> 0 | T9: =IF($A9=S$3,AND($A9=S$3,$D9<0),0) -> 0 | U9: =IF($A9=U$3,AND($A9=U$3,$D9>0),0) -> 0 | V9: =IF($A9=U$3,AND($A9=U$3,$D9<0),0) -> 0 | W9: =IF($A9=W$3,AND($A9=W$3,$D9>0),0) -> 0 | X9: =IF($A9=W$3,AND($A9=W$3,$D9<0),0) -> 0 | Y9: =IF($A9=Y$3,AND($A9=Y$3,$D9>0),0) -> 0 | Z9: =IF($A9=Y$3,AND($A9=Y$3,$D9<0),0) -> 0 | AA9: =IF($A9=AA$3,AND($A9=AA$3,$D9>0),0) -> 0 | AB9: =IF($A9=AA$3,AND($A9=AA$3,$D9<0),0) -> 0 | AC9: =IF($A9=AC$3,AND($A9=AC$3,$D9>0),0) -> 0 | AD9: =IF($A9=AC$3,AND($A9=AC$3,$D9<0),0) -> 0 | AE9: =IF($A9=AE$3,AND($A9=AE$3,$D9>0),0) -> 0 | AF9: =IF($A9=AE$3,AND($A9=AE$3,$D9<0),0) -> 0
A10: =IF(B10=0,"",MONTH(B10)) -> 1 | B10: 2016-01-04 | C10: FARMACIA | D10: -150 | E10: =IF(D10="","",IF(D10<0,"DEBITO","CREDITO")) -> DEBITO | F10: GRAF. POR CONT (DIR) | G10: FALSE | H10: FALSE | I10: FALSE | J10: =IF($A10=I$3,AND($A10=I$3,$D10<0),0) -> TRUE | K10: 0 | L10: =IF($A10=K$3,AND($A10=K$3,$D10<0),0) -> 0 | M10: 0 | N10: =IF($A10=M$3,AND($A10=M$3,$D10<0),0) -> 0 | O10: 0 | P10: =IF($A10=O$3,AND($A10=O$3,$D10<0),0) -> 0 | Q10: 0 | R10: 0 | S10: =IF($A10=S$3,AND($A10=S$3,$D10>0),0) -> 0 | T10: =IF($A10=S$3,AND($A10=S$3,$D10<0),0) -> 0 | U10: =IF($A10=U$3,AND($A10=U$3,$D10>0),0) -> 0 | V10: =IF($A10=U$3,AND($A10=U$3,$D10<0),0) -> 0 | W10: 0 | X10: =IF($A10=W$3,AND($A10=W$3,$D10<0),0) -> 0 | Y10: 0 | Z10: =IF($A10=Y$3,AND($A10=Y$3,$D10<0),0) -> 0 | AA10: 0 | AB10: =IF($A10=AA$3,AND($A10=AA$3,$D10<0),0) -> 0 | AC10: 0 | AD10: =IF($A10=AC$3,AND($A10=AC$3,$D10<0),0) -> 0 | AE10: 0 | AF10: 0
A11: =IF(B11=0,"",MONTH(B11)) -> 1 | B11: 2016-01-07 | C11: SALARIO | D11: 1000 | E11: =IF(D11="","",IF(D11<0,"DEBITO","CREDITO")) -> CREDITO | F11: FILTROS DISPONIVEIS | G11: FALSE | H11: FALSE | I11: TRUE | J11: =IF($A11=I$3,AND($A11=I$3,$D11<0),0) -> FALSE | K11: 0 | L11: =IF($A11=K$3,AND($A11=K$3,$D11<0),0) -> 0 | M11: 0 | N11: =IF($A11=M$3,AND($A11=M$3,$D11<0),0) -> 0 | O11: 0 | P11: =IF($A11=O$3,AND($A11=O$3,$D11<0),0) -> 0 | Q11: 0 | R11: 0 | S11: 0 | T11: 0 | U11: 0 | V11: 0 | W11: 0 | X11: =IF($A11=W$3,AND($A11=W$3,$D11<0),0) -> 0 | Y11: 0 | Z11: =IF($A11=Y$3,AND($A11=Y$3,$D11<0),0) -> 0 | AA11: 0 | AB11: =IF($A11=AA$3,AND($A11=AA$3,$D11<0),0) -> 0 | AC11: 0 | AD11: =IF($A11=AC$3,AND($A11=AC$3,$D11<0),0) -> 0 | AE11: 0 | AF11: 0
A12: =IF(B12=0,"",MONTH(B12)) -> 1 | B12: 2016-01-15 | C12: ALUGUEL | D12: -400 | E12: =IF(D12="","",IF(D12<0,"DEBITO","CREDITO")) -> DEBITO | F12: TEXTO DE OBS | G12: FALSE | H12: FALSE | I12: FALSE | J12: =IF($A12=I$3,AND($A12=I$3,$D12<0),0) -> TRUE | K12: 0 | L12: =IF($A12=K$3,AND($A12=K$3,$D12<0),0) -> 0 | M12: 0 | N12: =IF($A12=M$3,AND($A12=M$3,$D12<0),0) -> 0 | O12: 0 | P12: =IF($A12=O$3,AND($A12=O$3,$D12<0),0) -> 0 | Q12: 0 | R12: 0 | S12: 0 | T12: 0 | U12: 0 | V12: 0 | W12: 0 | X12: =IF($A12=W$3,AND($A12=W$3,$D12<0),0) -> 0 | Y12: 0 | Z12: =IF($A12=Y$3,AND($A12=Y$3,$D12<0),0) -> 0 | AA12: 0 | AB12: =IF($A12=AA$3,AND($A12=AA$3,$D12<0),0) -> 0 | AC12: 0 | AD12: =IF($A12=AC$3,AND($A12=AC$3,$D12<0),0) -> 0 | AE12: 0 | AF12: 0
A13: =IF(B13=0,"",MONTH(B13)) -> 1 | B13: 2016-01-23 | C13: CARTÃO | D13: =-CARTÃO1!G4 -> -100 | E13: =IF(D13="","",IF(D13<0,"DEBITO","CREDITO")) -> DEBITO | F13: USAR "-" PARA DEBITOS | G13: FALSE | H13: FALSE | I13: FALSE | J13: =IF($A13=I$3,AND($A13=I$3,$D13<0),0) -> TRUE | K13: 0 | L13: =IF($A13=K$3,AND($A13=K$3,$D13<0),0) -> 0 | M13: 0 | N13: =IF($A13=M$3,AND($A13=M$3,$D13<0),0) -> 0 | O13: 0 | P13: =IF($A13=O$3,AND($A13=O$3,$D13<0),0) -> 0 | Q13: 0 | R13: 0 | S13: 0 | T13: 0 | U13: 0 | V13: 0 | W13: 0 | X13: =IF($A13=W$3,AND($A13=W$3,$D13<0),0) -> 0 | Y13: 0 | Z13: =IF($A13=Y$3,AND($A13=Y$3,$D13<0),0) -> 0 | AA13: 0 | AB13: =IF($A13=AA$3,AND($A13=AA$3,$D13<0),0) -> 0 | AC13: 0 | AD13: =IF($A13=AC$3,AND($A13=AC$3,$D13<0),0) -> 0 | AE13: 0 | AF13: 0
A14: =IF(B14=0,"",MONTH(B14)) -> 2 | B14: 2016-02-01 | C14: FARMACIA | D14: -20 | E14: =IF(D14="","",IF(D14<0,"DEBITO","CREDITO")) -> DEBITO | F14: ATUALIZAR = GRAFICOS | G14: FALSE | H14: FALSE | I14: 0 | J14: =IF($A14=I$3,AND($A14=I$3,$D14<0),0) -> 0 | K14: FALSE | L14: =IF($A14=K$3,AND($A14=K$3,$D14<0),0) -> TRUE | M14: 0 | N14: =IF($A14=M$3,AND($A14=M$3,$D14<0),0) -> 0 | O14: 0 | P14: =IF($A14=O$3,AND($A14=O$3,$D14<0),0) -> 0 | Q14: 0 | R14: 0 | S14: 0 | T14: 0 | U14: 0 | V14: 0 | W14: 0 | X14: =IF($A14=W$3,AND($A14=W$3,$D14<0),0) -> 0 | Y14: 0 | Z14: =IF($A14=Y$3,AND($A14=Y$3,$D14<0),0) -> 0 | AA14: 0 | AB14: =IF($A14=AA$3,AND($A14=AA$3,$D14<0),0) -> 0 | AC14: 0 | AD14: =IF($A14=AC$3,AND($A14=AC$3,$D14<0),0) -> 0 | AE14: 0 | AF14: 0
A15: =IF(B15=0,"",MONTH(B15)) -> 2 | B15: 2016-02-06 | C15: SALARIO | D15: 1500 | E15: =IF(D15="","",IF(D15<0,"DEBITO","CREDITO")) -> CREDITO | F15: ORGANIZAR = LANÇAMENTOS | G15: FALSE | H15: FALSE | I15: 0 | J15: =IF($A15=I$3,AND($A15=I$3,$D15<0),0) -> 0 | K15: TRUE | L15: =IF($A15=K$3,AND($A15=K$3,$D15<0),0) -> FALSE | M15: 0 | N15: =IF($A15=M$3,AND($A15=M$3,$D15<0),0) -> 0 | O15: 0 | P15: =IF($A15=O$3,AND($A15=O$3,$D15<0),0) -> 0 | Q15: 0 | R15: 0 | S15: 0 | T15: 0 | U15: 0 | V15: 0 | W15: 0 | X15: =IF($A15=W$3,AND($A15=W$3,$D15<0),0) -> 0 | Y15: 0 | Z15: =IF($A15=Y$3,AND($A15=Y$3,$D15<0),0) -> 0 | AA15: 0 | AB15: =IF($A15=AA$3,AND($A15=AA$3,$D15<0),0) -> 0 | AC15: 0 | AD15: =IF($A15=AC$3,AND($A15=AC$3,$D15<0),0) -> 0 | AE15: 0 | AF15: 0
A16: =IF(B16=0,"",MONTH(B16)) -> 2 | B16: 2016-02-07 | C16: SALARIO | D16: 2500 | E16: =IF(D16="","",IF(D16<0,"DEBITO","CREDITO")) -> CREDITO | G16: FALSE | H16: FALSE | I16: 0 | J16: =IF($A16=I$3,AND($A16=I$3,$D16<0),0) -> 0 | K16: TRUE | L16: =IF($A16=K$3,AND($A16=K$3,$D16<0),0) -> FALSE | M16: 0 | N16: =IF($A16=M$3,AND($A16=M$3,$D16<0),0) -> 0 | O16: 0 | P16: =IF($A16=O$3,AND($A16=O$3,$D16<0),0) -> 0 | Q16: 0 | R16: 0 | S16: 0 | T16: 0 | U16: 0 | V16: 0 | W16: 0 | X16: =IF($A16=W$3,AND($A16=W$3,$D16<0),0) -> 0 | Y16: 0 | Z16: =IF($A16=Y$3,AND($A16=Y$3,$D16<0),0) -> 0 | AA16: 0 | AB16: =IF($A16=AA$3,AND($A16=AA$3,$D16<0),0) -> 0 | AC16: 0 | AD16: =IF($A16=AC$3,AND($A16=AC$3,$D16<0),0) -> 0 | AE16: 0 | AF16: 0
A17: =IF(B17=0,"",MONTH(B17)) -> 2 | B17: 2016-02-15 | C17: ALUGUEL | D17: -400 | E17: =IF(D17="","",IF(D17<0,"DEBITO","CREDITO")) -> DEBITO | F17: GRAFI. PROJEÇÃO (ESQ) | G17: FALSE | H17: FALSE | I17: 0 | J17: =IF($A17=I$3,AND($A17=I$3,$D17<0),0) -> 0 | K17: FALSE | L17: =IF($A17=K$3,AND($A17=K$3,$D17<0),0) -> TRUE | M17: 0 | N17: =IF($A17=M$3,AND($A17=M$3,$D17<0),0) -> 0 | O17: 0 | P17: =IF($A17=O$3,AND($A17=O$3,$D17<0),0) -> 0 | Q17: 0 | R17: 0 | S17: 0 | T17: 0 | U17: 0 | V17: 0 | W17: 0 | X17: =IF($A17=W$3,AND($A17=W$3,$D17<0),0) -> 0 | Y17: 0 | Z17: =IF($A17=Y$3,AND($A17=Y$3,$D17<0),0) -> 0 | AA17: 0 | AB17: =IF($A17=AA$3,AND($A17=AA$3,$D17<0),0) -> 0 | AC17: 0 | AD17: =IF($A17=AC$3,AND($A17=AC$3,$D17<0),0) -> 0 | AE17: 0 | AF17: 0
A18: =IF(B18=0,"",MONTH(B18)) -> 2 | B18: 2016-02-23 | C18: CARTÃO | D18: =-CARTÃO1!H4 -> -100 | E18: =IF(D18="","",IF(D18<0,"DEBITO","CREDITO")) -> DEBITO | F18: INFROME-> por formula ou numero | G18: FALSE | H18: FALSE | I18: 0 | J18: =IF($A18=I$3,AND($A18=I$3,$D18<0),0) -> 0 | K18: FALSE | L18: =IF($A18=K$3,AND($A18=K$3,$D18<0),0) -> TRUE | M18: 0 | N18: =IF($A18=M$3,AND($A18=M$3,$D18<0),0) -> 0 | O18: 0 | P18: =IF($A18=O$3,AND($A18=O$3,$D18<0),0) -> 0 | Q18: 0 | R18: 0 | S18: 0 | T18: 0 | U18: 0 | V18: 0 | W18: 0 | X18: =IF($A18=W$3,AND($A18=W$3,$D18<0),0) -> 0 | Y18: 0 | Z18: =IF($A18=Y$3,AND($A18=Y$3,$D18<0),0) -> 0 | AA18: 0 | AB18: =IF($A18=AA$3,AND($A18=AA$3,$D18<0),0) -> 0 | AC18: 0 | AD18: =IF($A18=AC$3,AND($A18=AC$3,$D18<0),0) -> 0 | AE18: 0 | AF18: 0
A19: =IF(B19=0,"",MONTH(B19)) -> 2 | B19: 2016-02-29 | C19: MERCADO | D19: -1200 | E19: =IF(D19="","",IF(D19<0,"DEBITO","CREDITO")) -> DEBITO | F19: formulas:=MÊS(HOJE()), =HOJE() | G19: FALSE | H19: FALSE | I19: 0 | J19: =IF($A19=I$3,AND($A19=I$3,$D19<0),0) -> 0 | K19: FALSE | L19: =IF($A19=K$3,AND($A19=K$3,$D19<0),0) -> TRUE | M19: 0 | N19: =IF($A19=M$3,AND($A19=M$3,$D19<0),0) -> 0 | O19: 0 | P19: =IF($A19=O$3,AND($A19=O$3,$D19<0),0) -> 0 | Q19: 0 | R19: 0 | S19: 0 | T19: 0 | U19: 0 | V19: 0 | W19: 0 | X19: =IF($A19=W$3,AND($A19=W$3,$D19<0),0) -> 0 | Y19: 0 | Z19: =IF($A19=Y$3,AND($A19=Y$3,$D19<0),0) -> 0 | AA19: 0 | AB19: =IF($A19=AA$3,AND($A19=AA$3,$D19<0),0) -> 0 | AC19: 0 | AD19: =IF($A19=AC$3,AND($A19=AC$3,$D19<0),0) -> 0 | AE19: 0 | AF19: 0
A20: =IF(B20=0,"",MONTH(B20)) -> 3 | B20: 2016-03-23 | C20: CARTÃO | D20: =-CARTÃO1!I4 -> -246.71 | E20: =IF(D20="","",IF(D20<0,"DEBITO","CREDITO")) -> DEBITO | G20: FALSE | H20: TRUE | I20: 0 | J20: =IF($A20=I$3,AND($A20=I$3,$D20<0),0) -> 0 | K20: 0 | L20: =IF($A20=K$3,AND($A20=K$3,$D20<0),0) -> 0 | M20: FALSE | N20: =IF($A20=M$3,AND($A20=M$3,$D20<0),0) -> TRUE | O20: 0 | P20: =IF($A20=O$3,AND($A20=O$3,$D20<0),0) -> 0 | Q20: 0 | R20: 0 | S20: 0 | T20: 0 | U20: 0 | V20: 0 | W20: 0 | X20: =IF($A20=W$3,AND($A20=W$3,$D20<0),0) -> 0 | Y20: 0 | Z20: =IF($A20=Y$3,AND($A20=Y$3,$D20<0),0) -> 0 | AA20: 0 | AB20: =IF($A20=AA$3,AND($A20=AA$3,$D20<0),0) -> 0 | AC20: 0 | AD20: =IF($A20=AC$3,AND($A20=AC$3,$D20<0),0) -> 0 | AE20: 0 | AF20: 0
A21: =IF(B21=0,"",MONTH(B21)) -> 4 | B21: 2016-04-23 | C21: CARTÃO | D21: =-CARTÃO1!J4 -> -216.7 | E21: =IF(D21="","",IF(D21<0,"DEBITO","CREDITO")) -> DEBITO | G21: FALSE | H21: FALSE | I21: =IF($A21=I$3,AND($A21=I$3,$D21>0),0) -> 0 | J21: =IF($A21=I$3,AND($A21=I$3,$D21<0),0) -> 0 | K21: 0 | L21: =IF($A21=K$3,AND($A21=K$3,$D21<0),0) -> 0 | M21: 0 | N21: =IF($A21=M$3,AND($A21=M$3,$D21<0),0) -> 0 | O21: FALSE | P21: =IF($A21=O$3,AND($A21=O$3,$D21<0),0) -> TRUE | Q21: 0 | R21: 0 | S21: 0 | T21: 0 | U21: 0 | V21: 0 | W21: 0 | X21: =IF($A21=W$3,AND($A21=W$3,$D21<0),0) -> 0 | Y21: 0 | Z21: =IF($A21=Y$3,AND($A21=Y$3,$D21<0),0) -> 0 | AA21: 0 | AB21: =IF($A21=AA$3,AND($A21=AA$3,$D21<0),0) -> 0 | AC21: 0 | AD21: =IF($A21=AC$3,AND($A21=AC$3,$D21<0),0) -> 0 | AE21: 0 | AF21: 0
A22: =IF(B22=0,"",MONTH(B22)) -> 5 | B22: 2016-05-23 | C22: CARTÃO | D22: =-CARTÃO1!K4 -> -216.7 | E22: =IF(D22="","",IF(D22<0,"DEBITO","CREDITO")) -> DEBITO | G22: FALSE | H22: FALSE | I22: =IF($A22=I$3,AND($A22=I$3,$D22>0),0) -> 0 | J22: =IF($A22=I$3,AND($A22=I$3,$D22<0),0) -> 0 | K22: 0 | L22: =IF($A22=K$3,AND($A22=K$3,$D22<0),0) -> 0 | M22: 0 | N22: =IF($A22=M$3,AND($A22=M$3,$D22<0),0) -> 0 | O22: 0 | P22: =IF($A22=O$3,AND($A22=O$3,$D22<0),0) -> 0 | Q22: FALSE | R22: TRUE | S22: 0 | T22: 0 | U22: 0 | V22: 0 | W22: 0 | X22: =IF($A22=W$3,AND($A22=W$3,$D22<0),0) -> 0 | Y22: 0 | Z22: =IF($A22=Y$3,AND($A22=Y$3,$D22<0),0) -> 0 | AA22: 0 | AB22: =IF($A22=AA$3,AND($A22=AA$3,$D22<0),0) -> 0 | AC22: 0 | AD22: =IF($A22=AC$3,AND($A22=AC$3,$D22<0),0) -> 0 | AE22: 0 | AF22: 0
A23: =IF(B23=0,"",MONTH(B23)) -> 6 | B23: 2016-06-23 | C23: CARTÃO | D23: =-CARTÃO1!L4 -> -100 | E23: =IF(D23="","",IF(D23<0,"DEBITO","CREDITO")) -> DEBITO | G23: FALSE | H23: FALSE | I23: =IF($A23=I$3,AND($A23=I$3,$D23>0),0) -> 0 | J23: =IF($A23=I$3,AND($A23=I$3,$D23<0),0) -> 0 | K23: 0 | L23: =IF($A23=K$3,AND($A23=K$3,$D23<0),0) -> 0 | M23: 0 | N23: =IF($A23=M$3,AND($A23=M$3,$D23<0),0) -> 0 | O23: 0 | P23: =IF($A23=O$3,AND($A23=O$3,$D23<0),0) -> 0 | Q23: 0 | R23: 0 | S23: FALSE | T23: TRUE | U23: 0 | V23: 0 | W23: 0 | X23: =IF($A23=W$3,AND($A23=W$3,$D23<0),0) -> 0 | Y23: 0 | Z23: =IF($A23=Y$3,AND($A23=Y$3,$D23<0),0) -> 0 | AA23: 0 | AB23: =IF($A23=AA$3,AND($A23=AA$3,$D23<0),0) -> 0 | AC23: 0 | AD23: =IF($A23=AC$3,AND($A23=AC$3,$D23<0),0) -> 0 | AE23: 0 | AF23: 0
A24: =IF(B24=0,"",MONTH(B24)) -> 7 | B24: 2016-07-23 | C24: CARTÃO | D24: =-CARTÃO1!M4 -> -100 | E24: =IF(D24="","",IF(D24<0,"DEBITO","CREDITO")) -> DEBITO | G24: FALSE | H24: FALSE | I24: =IF($A24=I$3,AND($A24=I$3,$D24>0),0) -> 0 | J24: =IF($A24=I$3,AND($A24=I$3,$D24<0),0) -> 0 | K24: 0 | L24: =IF($A24=K$3,AND($A24=K$3,$D24<0),0) -> 0 | M24: 0 | N24: =IF($A24=M$3,AND($A24=M$3,$D24<0),0) -> 0 | O24: 0 | P24: =IF($A24=O$3,AND($A24=O$3,$D24<0),0) -> 0 | Q24: 0 | R24: 0 | S24: 0 | T24: 0 | U24: FALSE | V24: TRUE | W24: 0 | X24: =IF($A24=W$3,AND($A24=W$3,$D24<0),0) -> 0 | Y24: 0 | Z24: =IF($A24=Y$3,AND($A24=Y$3,$D24<0),0) -> 0 | AA24: 0 | AB24: =IF($A24=AA$3,AND($A24=AA$3,$D24<0),0) -> 0 | AC24: 0 | AD24: =IF($A24=AC$3,AND($A24=AC$3,$D24<0),0) -> 0 | AE24: 0 | AF24: 0
A25: =IF(B25=0,"",MONTH(B25)) -> 8 | B25: 2016-08-23 | C25: CARTÃO | D25: =-CARTÃO1!N4 -> -100 | E25: =IF(D25="","",IF(D25<0,"DEBITO","CREDITO")) -> DEBITO | G25: FALSE | H25: FALSE | I25: =IF($A25=I$3,AND($A25=I$3,$D25>0),0) -> 0 | J25: =IF($A25=I$3,AND($A25=I$3,$D25<0),0) -> 0 | K25: =IF($A25=K$3,AND($A25=K$3,$D25>0),0) -> 0 | L25: =IF($A25=K$3,AND($A25=K$3,$D25<0),0) -> 0 | M25: =IF($A25=M$3,AND($A25=M$3,$D25>0),0) -> 0 | N25: =IF($A25=M$3,AND($A25=M$3,$D25<0),0) -> 0 | O25: =IF($A25=O$3,AND($A25=O$3,$D25>0),0) -> 0 | P25: =IF($A25=O$3,AND($A25=O$3,$D25<0),0) -> 0 | Q25: =IF($A25=Q$3,AND($A25=Q$3,$D25>0),0) -> 0 | R25: 0 | S25: 0 | T25: 0 | U25: 0 | V25: 0 | W25: =IF($A25=W$3,AND($A25=W$3,$D25>0),0) -> FALSE | X25: =IF($A25=W$3,AND($A25=W$3,$D25<0),0) -> TRUE | Y25: =IF($A25=Y$3,AND($A25=Y$3,$D25>0),0) -> 0 | Z25: =IF($A25=Y$3,AND($A25=Y$3,$D25<0),0) -> 0 | AA25: =IF($A25=AA$3,AND($A25=AA$3,$D25>0),0) -> 0 | AB25: =IF($A25=AA$3,AND($A25=AA$3,$D25<0),0) -> 0 | AC25: =IF($A25=AC$3,AND($A25=AC$3,$D25>0),0) -> 0 | AD25: =IF($A25=AC$3,AND($A25=AC$3,$D25<0),0) -> 0 | AE25: =IF($A25=AE$3,AND($A25=AE$3,$D25>0),0) -> 0 | AF25: 0
A26: =IF(B26=0,"",MONTH(B26)) -> 9 | B26: 2016-09-23 | C26: CARTÃO | D26: =-CARTÃO1!O4 -> -100 | E26: =IF(D26="","",IF(D26<0,"DEBITO","CREDITO")) -> DEBITO | G26: FALSE | H26: FALSE | I26: =IF($A26=I$3,AND($A26=I$3,$D26>0),0) -> 0 | J26: =IF($A26=I$3,AND($A26=I$3,$D26<0),0) -> 0 | K26: 0 | L26: =IF($A26=K$3,AND($A26=K$3,$D26<0),0) -> 0 | M26: 0 | N26: =IF($A26=M$3,AND($A26=M$3,$D26<0),0) -> 0 | O26: 0 | P26: =IF($A26=O$3,AND($A26=O$3,$D26<0),0) -> 0 | Q26: 0 | R26: 0 | S26: 0 | T26: 0 | U26: 0 | V26: 0 | W26: 0 | X26: =IF($A26=W$3,AND($A26=W$3,$D26<0),0) -> 0 | Y26: FALSE | Z26: =IF($A26=Y$3,AND($A26=Y$3,$D26<0),0) -> TRUE | AA26: 0 | AB26: =IF($A26=AA$3,AND($A26=AA$3,$D26<0),0) -> 0 | AC26: 0 | AD26: =IF($A26=AC$3,AND($A26=AC$3,$D26<0),0) -> 0 | AE26: 0 | AF26: 0
A27: =IF(B27=0,"",MONTH(B27)) -> 10 | B27: 2016-10-23 | C27: CARTÃO | D27: =-CARTÃO1!P4 -> -100 | E27: =IF(D27="","",IF(D27<0,"DEBITO","CREDITO")) -> DEBITO | G27: FALSE | H27: FALSE | I27: 0 | J27: =IF($A27=I$3,AND($A27=I$3,$D27<0),0) -> 0 | K27: 0 | L27: =IF($A27=K$3,AND($A27=K$3,$D27<0),0) -> 0 | M27: 0 | N27: =IF($A27=M$3,AND($A27=M$3,$D27<0),0) -> 0 | O27: 0 | P27: =IF($A27=O$3,AND($A27=O$3,$D27<0),0) -> 0 | Q27: 0 | R27: 0 | S27: 0 | T27: 0 | U27: 0 | V27: 0 | W27: 0 | X27: =IF($A27=W$3,AND($A27=W$3,$D27<0),0) -> 0 | Y27: 0 | Z27: =IF($A27=Y$3,AND($A27=Y$3,$D27<0),0) -> 0 | AA27: FALSE | AB27: =IF($A27=AA$3,AND($A27=AA$3,$D27<0),0) -> TRUE | AC27: 0 | AD27: =IF($A27=AC$3,AND($A27=AC$3,$D27<0),0) -> 0 | AE27: 0 | AF27: 0
A28: =IF(B28=0,"",MONTH(B28)) -> 11 | B28: 2016-11-23 | C28: CARTÃO | D28: =-CARTÃO1!Q4 -> 0 | E28: =IF(D28="","",IF(D28<0,"DEBITO","CREDITO")) -> CREDITO | G28: FALSE | H28: FALSE | I28: 0 | J28: =IF($A28=I$3,AND($A28=I$3,$D28<0),0) -> 0 | K28: 0 | L28: =IF($A28=K$3,AND($A28=K$3,$D28<0),0) -> 0 | M28: 0 | N28: =IF($A28=M$3,AND($A28=M$3,$D28<0),0) -> 0 | O28: 0 | P28: =IF($A28=O$3,AND($A28=O$3,$D28<0),0) -> 0 | Q28: 0 | R28: 0 | S28: 0 | T28: 0 | U28: 0 | V28: 0 | W28: 0 | X28: =IF($A28=W$3,AND($A28=W$3,$D28<0),0) -> 0 | Y28: 0 | Z28: =IF($A28=Y$3,AND($A28=Y$3,$D28<0),0) -> 0 | AA28: 0 | AB28: =IF($A28=AA$3,AND($A28=AA$3,$D28<0),0) -> 0 | AC28: FALSE | AD28: =IF($A28=AC$3,AND($A28=AC$3,$D28<0),0) -> FALSE | AE28: 0 | AF28: 0
A29: =IF(B29=0,"",MONTH(B29)) -> 12 | B29: 2016-12-23 | C29: CARTÃO | D29: =-CARTÃO1!R4 -> 0 | E29: =IF(D29="","",IF(D29<0,"DEBITO","CREDITO")) -> CREDITO | G29: FALSE | H29: FALSE | I29: 0 | J29: =IF($A29=I$3,AND($A29=I$3,$D29<0),0) -> 0 | K29: 0 | L29: =IF($A29=K$3,AND($A29=K$3,$D29<0),0) -> 0 | M29: 0 | N29: =IF($A29=M$3,AND($A29=M$3,$D29<0),0) -> 0 | O29: 0 | P29: =IF($A29=O$3,AND($A29=O$3,$D29<0),0) -> 0 | Q29: 0 | R29: 0 | S29: 0 | T29: 0 | U29: 0 | V29: 0 | W29: 0 | X29: =IF($A29=W$3,AND($A29=W$3,$D29<0),0) -> 0 | Y29: 0 | Z29: =IF($A29=Y$3,AND($A29=Y$3,$D29<0),0) -> 0 | AA29: 0 | AB29: =IF($A29=AA$3,AND($A29=AA$3,$D29<0),0) -> 0 | AC29: 0 | AD29: =IF($A29=AC$3,AND($A29=AC$3,$D29<0),0) -> 0 | AE29: FALSE | AF29: FALSE
A30: =IF(B30=0,"",MONTH(B30)) ->  | E30: =IF(D30="","",IF(D30<0,"DEBITO","CREDITO")) ->  | G30: FALSE | H30: FALSE | I30: 0 | J30: =IF($A30=I$3,AND($A30=I$3,$D30<0),0) -> 0 | K30: 0 | L30: =IF($A30=K$3,AND($A30=K$3,$D30<0),0) -> 0 | M30: 0 | N30: =IF($A30=M$3,AND($A30=M$3,$D30<0),0) -> 0 | O30: 0 | P30: =IF($A30=O$3,AND($A30=O$3,$D30<0),0) -> 0 | Q30: 0 | R30: 0 | S30: 0 | T30: 0 | U30: 0 | V30: 0 | W30: 0 | X30: =IF($A30=W$3,AND($A30=W$3,$D30<0),0) -> 0 | Y30: 0 | Z30: =IF($A30=Y$3,AND($A30=Y$3,$D30<0),0) -> 0 | AA30: 0 | AB30: =IF($A30=AA$3,AND($A30=AA$3,$D30<0),0) -> 0 | AC30: 0 | AD30: =IF($A30=AC$3,AND($A30=AC$3,$D30<0),0) -> 0 | AE30: 0 | AF30: 0
A31: =IF(B31=0,"",MONTH(B31)) ->  | E31: =IF(D31="","",IF(D31<0,"DEBITO","CREDITO")) ->  | G31: FALSE | H31: FALSE | I31: 0 | J31: =IF($A31=I$3,AND($A31=I$3,$D31<0),0) -> 0 | K31: 0 | L31: =IF($A31=K$3,AND($A31=K$3,$D31<0),0) -> 0 | M31: 0 | N31: =IF($A31=M$3,AND($A31=M$3,$D31<0),0) -> 0 | O31: 0 | P31: =IF($A31=O$3,AND($A31=O$3,$D31<0),0) -> 0 | Q31: 0 | R31: 0 | S31: 0 | T31: 0 | U31: 0 | V31: 0 | W31: 0 | X31: =IF($A31=W$3,AND($A31=W$3,$D31<0),0) -> 0 | Y31: 0 | Z31: =IF($A31=Y$3,AND($A31=Y$3,$D31<0),0) -> 0 | AA31: 0 | AB31: =IF($A31=AA$3,AND($A31=AA$3,$D31<0),0) -> 0 | AC31: 0 | AD31: =IF($A31=AC$3,AND($A31=AC$3,$D31<0),0) -> 0 | AE31: 0 | AF31: 0
A32: =IF(B32=0,"",MONTH(B32)) ->  | E32: =IF(D32="","",IF(D32<0,"DEBITO","CREDITO")) ->  | G32: FALSE | H32: FALSE | I32: 0 | J32: =IF($A32=I$3,AND($A32=I$3,$D32<0),0) -> 0 | K32: 0 | L32: =IF($A32=K$3,AND($A32=K$3,$D32<0),0) -> 0 | M32: 0 | N32: =IF($A32=M$3,AND($A32=M$3,$D32<0),0) -> 0 | O32: 0 | P32: =IF($A32=O$3,AND($A32=O$3,$D32<0),0) -> 0 | Q32: 0 | R32: 0 | S32: 0 | T32: 0 | U32: 0 | V32: 0 | W32: 0 | X32: =IF($A32=W$3,AND($A32=W$3,$D32<0),0) -> 0 | Y32: 0 | Z32: =IF($A32=Y$3,AND($A32=Y$3,$D32<0),0) -> 0 | AA32: 0 | AB32: =IF($A32=AA$3,AND($A32=AA$3,$D32<0),0) -> 0 | AC32: 0 | AD32: =IF($A32=AC$3,AND($A32=AC$3,$D32<0),0) -> 0 | AE32: 0 | AF32: 0
A33: =IF(B33=0,"",MONTH(B33)) ->  | E33: =IF(D33="","",IF(D33<0,"DEBITO","CREDITO")) ->  | G33: FALSE | H33: FALSE | I33: 0 | J33: =IF($A33=I$3,AND($A33=I$3,$D33<0),0) -> 0 | K33: 0 | L33: =IF($A33=K$3,AND($A33=K$3,$D33<0),0) -> 0 | M33: 0 | N33: =IF($A33=M$3,AND($A33=M$3,$D33<0),0) -> 0 | O33: 0 | P33: =IF($A33=O$3,AND($A33=O$3,$D33<0),0) -> 0 | Q33: 0 | R33: 0 | S33: 0 | T33: 0 | U33: 0 | V33: 0 | W33: 0 | X33: =IF($A33=W$3,AND($A33=W$3,$D33<0),0) -> 0 | Y33: 0 | Z33: =IF($A33=Y$3,AND($A33=Y$3,$D33<0),0) -> 0 | AA33: 0 | AB33: =IF($A33=AA$3,AND($A33=AA$3,$D33<0),0) -> 0 | AC33: 0 | AD33: =IF($A33=AC$3,AND($A33=AC$3,$D33<0),0) -> 0 | AE33: 0 | AF33: 0
A34: =IF(B34=0,"",MONTH(B34)) ->  | E34: =IF(D34="","",IF(D34<0,"DEBITO","CREDITO")) ->  | G34: FALSE | H34: FALSE | I34: 0 | J34: =IF($A34=I$3,AND($A34=I$3,$D34<0),0) -> 0 | K34: 0 | L34: =IF($A34=K$3,AND($A34=K$3,$D34<0),0) -> 0 | M34: 0 | N34: =IF($A34=M$3,AND($A34=M$3,$D34<0),0) -> 0 | O34: 0 | P34: =IF($A34=O$3,AND($A34=O$3,$D34<0),0) -> 0 | Q34: 0 | R34: 0 | S34: 0 | T34: 0 | U34: 0 | V34: 0 | W34: 0 | X34: =IF($A34=W$3,AND($A34=W$3,$D34<0),0) -> 0 | Y34: 0 | Z34: =IF($A34=Y$3,AND($A34=Y$3,$D34<0),0) -> 0 | AA34: 0 | AB34: =IF($A34=AA$3,AND($A34=AA$3,$D34<0),0) -> 0 | AC34: 0 | AD34: =IF($A34=AC$3,AND($A34=AC$3,$D34<0),0) -> 0 | AE34: 0 | AF34: 0
A35: =IF(B35=0,"",MONTH(B35)) ->  | E35: =IF(D35="","",IF(D35<0,"DEBITO","CREDITO")) ->  | G35: FALSE | H35: FALSE | I35: 0 | J35: =IF($A35=I$3,AND($A35=I$3,$D35<0),0) -> 0 | K35: 0 | L35: =IF($A35=K$3,AND($A35=K$3,$D35<0),0) -> 0 | M35: 0 | N35: =IF($A35=M$3,AND($A35=M$3,$D35<0),0) -> 0 | O35: 0 | P35: =IF($A35=O$3,AND($A35=O$3,$D35<0),0) -> 0 | Q35: 0 | R35: 0 | S35: 0 | T35: 0 | U35: 0 | V35: 0 | W35: 0 | X35: =IF($A35=W$3,AND($A35=W$3,$D35<0),0) -> 0 | Y35: 0 | Z35: =IF($A35=Y$3,AND($A35=Y$3,$D35<0),0) -> 0 | AA35: 0 | AB35: =IF($A35=AA$3,AND($A35=AA$3,$D35<0),0) -> 0 | AC35: 0 | AD35: =IF($A35=AC$3,AND($A35=AC$3,$D35<0),0) -> 0 | AE35: 0 | AF35: 0
A36: =IF(B36=0,"",MONTH(B36)) ->  | E36: =IF(D36="","",IF(D36<0,"DEBITO","CREDITO")) ->  | G36: FALSE | H36: FALSE | I36: 0 | J36: =IF($A36=I$3,AND($A36=I$3,$D36<0),0) -> 0 | K36: 0 | L36: =IF($A36=K$3,AND($A36=K$3,$D36<0),0) -> 0 | M36: 0 | N36: =IF($A36=M$3,AND($A36=M$3,$D36<0),0) -> 0 | O36: 0 | P36: =IF($A36=O$3,AND($A36=O$3,$D36<0),0) -> 0 | Q36: 0 | R36: 0 | S36: 0 | T36: 0 | U36: 0 | V36: 0 | W36: 0 | X36: =IF($A36=W$3,AND($A36=W$3,$D36<0),0) -> 0 | Y36: 0 | Z36: =IF($A36=Y$3,AND($A36=Y$3,$D36<0),0) -> 0 | AA36: 0 | AB36: =IF($A36=AA$3,AND($A36=AA$3,$D36<0),0) -> 0 | AC36: 0 | AD36: =IF($A36=AC$3,AND($A36=AC$3,$D36<0),0) -> 0 | AE36: 0 | AF36: 0
A37: =IF(B37=0,"",MONTH(B37)) ->  | E37: =IF(D37="","",IF(D37<0,"DEBITO","CREDITO")) ->  | G37: FALSE | H37: FALSE | I37: =IF($A37=I$3,AND($A37=I$3,$D37>0),0) -> 0 | J37: =IF($A37=I$3,AND($A37=I$3,$D37<0),0) -> 0 | K37: 0 | L37: =IF($A37=K$3,AND($A37=K$3,$D37<0),0) -> 0 | M37: 0 | N37: =IF($A37=M$3,AND($A37=M$3,$D37<0),0) -> 0 | O37: 0 | P37: =IF($A37=O$3,AND($A37=O$3,$D37<0),0) -> 0 | Q37: 0 | R37: 0 | S37: 0 | T37: 0 | U37: 0 | V37: 0 | W37: 0 | X37: =IF($A37=W$3,AND($A37=W$3,$D37<0),0) -> 0 | Y37: 0 | Z37: =IF($A37=Y$3,AND($A37=Y$3,$D37<0),0) -> 0 | AA37: 0 | AB37: =IF($A37=AA$3,AND($A37=AA$3,$D37<0),0) -> 0 | AC37: 0 | AD37: =IF($A37=AC$3,AND($A37=AC$3,$D37<0),0) -> 0 | AE37: 0 | AF37: 0
A38: =IF(B38=0,"",MONTH(B38)) ->  | E38: =IF(D38="","",IF(D38<0,"DEBITO","CREDITO")) ->  | G38: FALSE | H38: FALSE | I38: 0 | J38: =IF($A38=I$3,AND($A38=I$3,$D38<0),0) -> 0 | K38: 0 | L38: =IF($A38=K$3,AND($A38=K$3,$D38<0),0) -> 0 | M38: 0 | N38: =IF($A38=M$3,AND($A38=M$3,$D38<0),0) -> 0 | O38: 0 | P38: =IF($A38=O$3,AND($A38=O$3,$D38<0),0) -> 0 | Q38: 0 | R38: 0 | S38: 0 | T38: 0 | U38: 0 | V38: 0 | W38: 0 | X38: =IF($A38=W$3,AND($A38=W$3,$D38<0),0) -> 0 | Y38: 0 | Z38: =IF($A38=Y$3,AND($A38=Y$3,$D38<0),0) -> 0 | AA38: 0 | AB38: =IF($A38=AA$3,AND($A38=AA$3,$D38<0),0) -> 0 | AC38: 0 | AD38: =IF($A38=AC$3,AND($A38=AC$3,$D38<0),0) -> 0 | AE38: 0 | AF38: 0
A39: =IF(B39=0,"",MONTH(B39)) ->  | E39: =IF(D39="","",IF(D39<0,"DEBITO","CREDITO")) ->  | G39: FALSE | H39: FALSE | I39: 0 | J39: =IF($A39=I$3,AND($A39=I$3,$D39<0),0) -> 0 | K39: 0 | L39: =IF($A39=K$3,AND($A39=K$3,$D39<0),0) -> 0 | M39: 0 | N39: =IF($A39=M$3,AND($A39=M$3,$D39<0),0) -> 0 | O39: 0 | P39: =IF($A39=O$3,AND($A39=O$3,$D39<0),0) -> 0 | Q39: 0 | R39: 0 | S39: 0 | T39: 0 | U39: 0 | V39: 0 | W39: 0 | X39: =IF($A39=W$3,AND($A39=W$3,$D39<0),0) -> 0 | Y39: 0 | Z39: =IF($A39=Y$3,AND($A39=Y$3,$D39<0),0) -> 0 | AA39: 0 | AB39: =IF($A39=AA$3,AND($A39=AA$3,$D39<0),0) -> 0 | AC39: 0 | AD39: =IF($A39=AC$3,AND($A39=AC$3,$D39<0),0) -> 0 | AE39: 0 | AF39: 0
A40: =IF(B40=0,"",MONTH(B40)) ->  | E40: =IF(D40="","",IF(D40<0,"DEBITO","CREDITO")) ->  | G40: FALSE | H40: FALSE | I40: 0 | J40: =IF($A40=I$3,AND($A40=I$3,$D40<0),0) -> 0 | K40: 0 | L40: =IF($A40=K$3,AND($A40=K$3,$D40<0),0) -> 0 | M40: 0 | N40: =IF($A40=M$3,AND($A40=M$3,$D40<0),0) -> 0 | O40: 0 | P40: =IF($A40=O$3,AND($A40=O$3,$D40<0),0) -> 0 | Q40: 0 | R40: 0 | S40: 0 | T40: 0 | U40: 0 | V40: 0 | W40: 0 | X40: =IF($A40=W$3,AND($A40=W$3,$D40<0),0) -> 0 | Y40: 0 | Z40: =IF($A40=Y$3,AND($A40=Y$3,$D40<0),0) -> 0 | AA40: 0 | AB40: =IF($A40=AA$3,AND($A40=AA$3,$D40<0),0) -> 0 | AC40: 0 | AD40: =IF($A40=AC$3,AND($A40=AC$3,$D40<0),0) -> 0 | AE40: 0 | AF40: 0
A41: =IF(B41=0,"",MONTH(B41)) ->  | E41: =IF(D41="","",IF(D41<0,"DEBITO","CREDITO")) ->  | G41: FALSE | H41: FALSE | I41: 0 | J41: =IF($A41=I$3,AND($A41=I$3,$D41<0),0) -> 0 | K41: 0 | L41: =IF($A41=K$3,AND($A41=K$3,$D41<0),0) -> 0 | M41: 0 | N41: =IF($A41=M$3,AND($A41=M$3,$D41<0),0) -> 0 | O41: 0 | P41: =IF($A41=O$3,AND($A41=O$3,$D41<0),0) -> 0 | Q41: 0 | R41: 0 | S41: 0 | T41: 0 | U41: 0 | V41: 0 | W41: 0 | X41: =IF($A41=W$3,AND($A41=W$3,$D41<0),0) -> 0 | Y41: 0 | Z41: =IF($A41=Y$3,AND($A41=Y$3,$D41<0),0) -> 0 | AA41: 0 | AB41: =IF($A41=AA$3,AND($A41=AA$3,$D41<0),0) -> 0 | AC41: 0 | AD41: =IF($A41=AC$3,AND($A41=AC$3,$D41<0),0) -> 0 | AE41: 0 | AF41: 0
A42: =IF(B42=0,"",MONTH(B42)) ->  | E42: =IF(D42="","",IF(D42<0,"DEBITO","CREDITO")) ->  | G42: FALSE | H42: FALSE | I42: 0 | J42: =IF($A42=I$3,AND($A42=I$3,$D42<0),0) -> 0 | K42: 0 | L42: =IF($A42=K$3,AND($A42=K$3,$D42<0),0) -> 0 | M42: 0 | N42: =IF($A42=M$3,AND($A42=M$3,$D42<0),0) -> 0 | O42: 0 | P42: =IF($A42=O$3,AND($A42=O$3,$D42<0),0) -> 0 | Q42: 0 | R42: 0 | S42: 0 | T42: 0 | U42: 0 | V42: 0 | W42: 0 | X42: =IF($A42=W$3,AND($A42=W$3,$D42<0),0) -> 0 | Y42: 0 | Z42: =IF($A42=Y$3,AND($A42=Y$3,$D42<0),0) -> 0 | AA42: 0 | AB42: =IF($A42=AA$3,AND($A42=AA$3,$D42<0),0) -> 0 | AC42: 0 | AD42: =IF($A42=AC$3,AND($A42=AC$3,$D42<0),0) -> 0 | AE42: 0 | AF42: 0
A43: =IF(B43=0,"",MONTH(B43)) ->  | E43: =IF(D43="","",IF(D43<0,"DEBITO","CREDITO")) ->  | G43: FALSE | H43: FALSE | I43: 0 | J43: =IF($A43=I$3,AND($A43=I$3,$D43<0),0) -> 0 | K43: 0 | L43: =IF($A43=K$3,AND($A43=K$3,$D43<0),0) -> 0 | M43: 0 | N43: =IF($A43=M$3,AND($A43=M$3,$D43<0),0) -> 0 | O43: 0 | P43: =IF($A43=O$3,AND($A43=O$3,$D43<0),0) -> 0 | Q43: 0 | R43: 0 | S43: 0 | T43: 0 | U43: 0 | V43: 0 | W43: 0 | X43: =IF($A43=W$3,AND($A43=W$3,$D43<0),0) -> 0 | Y43: 0 | Z43: =IF($A43=Y$3,AND($A43=Y$3,$D43<0),0) -> 0 | AA43: 0 | AB43: =IF($A43=AA$3,AND($A43=AA$3,$D43<0),0) -> 0 | AC43: 0 | AD43: =IF($A43=AC$3,AND($A43=AC$3,$D43<0),0) -> 0 | AE43: 0 | AF43: 0
A44: =IF(B44=0,"",MONTH(B44)) ->  | E44: =IF(D44="","",IF(D44<0,"DEBITO","CREDITO")) ->  | G44: FALSE | H44: FALSE | I44: 0 | J44: =IF($A44=I$3,AND($A44=I$3,$D44<0),0) -> 0 | K44: 0 | L44: =IF($A44=K$3,AND($A44=K$3,$D44<0),0) -> 0 | M44: 0 | N44: =IF($A44=M$3,AND($A44=M$3,$D44<0),0) -> 0 | O44: 0 | P44: =IF($A44=O$3,AND($A44=O$3,$D44<0),0) -> 0 | Q44: 0 | R44: 0 | S44: 0 | T44: 0 | U44: 0 | V44: 0 | W44: 0 | X44: =IF($A44=W$3,AND($A44=W$3,$D44<0),0) -> 0 | Y44: 0 | Z44: =IF($A44=Y$3,AND($A44=Y$3,$D44<0),0) -> 0 | AA44: 0 | AB44: =IF($A44=AA$3,AND($A44=AA$3,$D44<0),0) -> 0 | AC44: 0 | AD44: =IF($A44=AC$3,AND($A44=AC$3,$D44<0),0) -> 0 | AE44: 0 | AF44: 0
A45: =IF(B45=0,"",MONTH(B45)) ->  | E45: =IF(D45="","",IF(D45<0,"DEBITO","CREDITO")) ->  | G45: FALSE | H45: FALSE | I45: 0 | J45: =IF($A45=I$3,AND($A45=I$3,$D45<0),0) -> 0 | K45: 0 | L45: =IF($A45=K$3,AND($A45=K$3,$D45<0),0) -> 0 | M45: 0 | N45: =IF($A45=M$3,AND($A45=M$3,$D45<0),0) -> 0 | O45: 0 | P45: =IF($A45=O$3,AND($A45=O$3,$D45<0),0) -> 0 | Q45: 0 | R45: 0 | S45: 0 | T45: 0 | U45: 0 | V45: 0 | W45: 0 | X45: =IF($A45=W$3,AND($A45=W$3,$D45<0),0) -> 0 | Y45: 0 | Z45: =IF($A45=Y$3,AND($A45=Y$3,$D45<0),0) -> 0 | AA45: 0 | AB45: =IF($A45=AA$3,AND($A45=AA$3,$D45<0),0) -> 0 | AC45: 0 | AD45: =IF($A45=AC$3,AND($A45=AC$3,$D45<0),0) -> 0 | AE45: 0 | AF45: 0
A46: =IF(B46=0,"",MONTH(B46)) ->  | E46: =IF(D46="","",IF(D46<0,"DEBITO","CREDITO")) ->  | G46: FALSE | H46: FALSE | I46: 0 | J46: =IF($A46=I$3,AND($A46=I$3,$D46<0),0) -> 0 | K46: 0 | L46: =IF($A46=K$3,AND($A46=K$3,$D46<0),0) -> 0 | M46: 0 | N46: =IF($A46=M$3,AND($A46=M$3,$D46<0),0) -> 0 | O46: 0 | P46: =IF($A46=O$3,AND($A46=O$3,$D46<0),0) -> 0 | Q46: 0 | R46: 0 | S46: 0 | T46: 0 | U46: 0 | V46: 0 | W46: 0 | X46: =IF($A46=W$3,AND($A46=W$3,$D46<0),0) -> 0 | Y46: 0 | Z46: =IF($A46=Y$3,AND($A46=Y$3,$D46<0),0) -> 0 | AA46: 0 | AB46: =IF($A46=AA$3,AND($A46=AA$3,$D46<0),0) -> 0 | AC46: 0 | AD46: =IF($A46=AC$3,AND($A46=AC$3,$D46<0),0) -> 0 | AE46: 0 | AF46: 0
A47: =IF(B47=0,"",MONTH(B47)) ->  | E47: =IF(D47="","",IF(D47<0,"DEBITO","CREDITO")) ->  | G47: FALSE | H47: FALSE | I47: 0 | J47: =IF($A47=I$3,AND($A47=I$3,$D47<0),0) -> 0 | K47: 0 | L47: =IF($A47=K$3,AND($A47=K$3,$D47<0),0) -> 0 | M47: 0 | N47: =IF($A47=M$3,AND($A47=M$3,$D47<0),0) -> 0 | O47: 0 | P47: =IF($A47=O$3,AND($A47=O$3,$D47<0),0) -> 0 | Q47: 0 | R47: 0 | S47: 0 | T47: 0 | U47: 0 | V47: 0 | W47: 0 | X47: =IF($A47=W$3,AND($A47=W$3,$D47<0),0) -> 0 | Y47: 0 | Z47: =IF($A47=Y$3,AND($A47=Y$3,$D47<0),0) -> 0 | AA47: 0 | AB47: =IF($A47=AA$3,AND($A47=AA$3,$D47<0),0) -> 0 | AC47: 0 | AD47: =IF($A47=AC$3,AND($A47=AC$3,$D47<0),0) -> 0 | AE47: 0 | AF47: 0
A48: =IF(B48=0,"",MONTH(B48)) ->  | E48: =IF(D48="","",IF(D48<0,"DEBITO","CREDITO")) ->  | G48: FALSE | H48: FALSE | I48: 0 | J48: =IF($A48=I$3,AND($A48=I$3,$D48<0),0) -> 0 | K48: 0 | L48: =IF($A48=K$3,AND($A48=K$3,$D48<0),0) -> 0 | M48: 0 | N48: =IF($A48=M$3,AND($A48=M$3,$D48<0),0) -> 0 | O48: 0 | P48: =IF($A48=O$3,AND($A48=O$3,$D48<0),0) -> 0 | Q48: 0 | R48: 0 | S48: 0 | T48: 0 | U48: 0 | V48: 0 | W48: 0 | X48: =IF($A48=W$3,AND($A48=W$3,$D48<0),0) -> 0 | Y48: 0 | Z48: =IF($A48=Y$3,AND($A48=Y$3,$D48<0),0) -> 0 | AA48: 0 | AB48: =IF($A48=AA$3,AND($A48=AA$3,$D48<0),0) -> 0 | AC48: 0 | AD48: =IF($A48=AC$3,AND($A48=AC$3,$D48<0),0) -> 0 | AE48: 0 | AF48: 0
A49: =IF(B49=0,"",MONTH(B49)) ->  | E49: =IF(D49="","",IF(D49<0,"DEBITO","CREDITO")) ->  | G49: FALSE | H49: FALSE | I49: 0 | J49: =IF($A49=I$3,AND($A49=I$3,$D49<0),0) -> 0 | K49: 0 | L49: =IF($A49=K$3,AND($A49=K$3,$D49<0),0) -> 0 | M49: 0 | N49: =IF($A49=M$3,AND($A49=M$3,$D49<0),0) -> 0 | O49: 0 | P49: =IF($A49=O$3,AND($A49=O$3,$D49<0),0) -> 0 | Q49: 0 | R49: 0 | S49: 0 | T49: 0 | U49: 0 | V49: 0 | W49: 0 | X49: =IF($A49=W$3,AND($A49=W$3,$D49<0),0) -> 0 | Y49: 0 | Z49: =IF($A49=Y$3,AND($A49=Y$3,$D49<0),0) -> 0 | AA49: 0 | AB49: =IF($A49=AA$3,AND($A49=AA$3,$D49<0),0) -> 0 | AC49: 0 | AD49: =IF($A49=AC$3,AND($A49=AC$3,$D49<0),0) -> 0 | AE49: 0 | AF49: 0
A50: =IF(B50=0,"",MONTH(B50)) ->  | E50: =IF(D50="","",IF(D50<0,"DEBITO","CREDITO")) ->  | G50: FALSE | H50: FALSE | I50: 0 | J50: =IF($A50=I$3,AND($A50=I$3,$D50<0),0) -> 0 | K50: 0 | L50: =IF($A50=K$3,AND($A50=K$3,$D50<0),0) -> 0 | M50: 0 | N50: =IF($A50=M$3,AND($A50=M$3,$D50<0),0) -> 0 | O50: 0 | P50: =IF($A50=O$3,AND($A50=O$3,$D50<0),0) -> 0 | Q50: 0 | R50: 0 | S50: 0 | T50: 0 | U50: 0 | V50: 0 | W50: 0 | X50: =IF($A50=W$3,AND($A50=W$3,$D50<0),0) -> 0 | Y50: 0 | Z50: =IF($A50=Y$3,AND($A50=Y$3,$D50<0),0) -> 0 | AA50: 0 | AB50: =IF($A50=AA$3,AND($A50=AA$3,$D50<0),0) -> 0 | AC50: 0 | AD50: =IF($A50=AC$3,AND($A50=AC$3,$D50<0),0) -> 0 | AE50: 0 | AF50: 0
A51: =IF(B51=0,"",MONTH(B51)) ->  | E51: =IF(D51="","",IF(D51<0,"DEBITO","CREDITO")) ->  | G51: FALSE | H51: FALSE | I51: 0 | J51: =IF($A51=I$3,AND($A51=I$3,$D51<0),0) -> 0 | K51: 0 | L51: =IF($A51=K$3,AND($A51=K$3,$D51<0),0) -> 0 | M51: 0 | N51: =IF($A51=M$3,AND($A51=M$3,$D51<0),0) -> 0 | O51: 0 | P51: =IF($A51=O$3,AND($A51=O$3,$D51<0),0) -> 0 | Q51: 0 | R51: 0 | S51: 0 | T51: 0 | U51: 0 | V51: 0 | W51: 0 | X51: =IF($A51=W$3,AND($A51=W$3,$D51<0),0) -> 0 | Y51: 0 | Z51: =IF($A51=Y$3,AND($A51=Y$3,$D51<0),0) -> 0 | AA51: 0 | AB51: =IF($A51=AA$3,AND($A51=AA$3,$D51<0),0) -> 0 | AC51: 0 | AD51: =IF($A51=AC$3,AND($A51=AC$3,$D51<0),0) -> 0 | AE51: 0 | AF51: 0
A52: =IF(B52=0,"",MONTH(B52)) ->  | E52: =IF(D52="","",IF(D52<0,"DEBITO","CREDITO")) ->  | G52: FALSE | H52: FALSE | I52: 0 | J52: =IF($A52=I$3,AND($A52=I$3,$D52<0),0) -> 0 | K52: 0 | L52: =IF($A52=K$3,AND($A52=K$3,$D52<0),0) -> 0 | M52: 0 | N52: =IF($A52=M$3,AND($A52=M$3,$D52<0),0) -> 0 | O52: 0 | P52: =IF($A52=O$3,AND($A52=O$3,$D52<0),0) -> 0 | Q52: 0 | R52: 0 | S52: 0 | T52: 0 | U52: 0 | V52: 0 | W52: 0 | X52: =IF($A52=W$3,AND($A52=W$3,$D52<0),0) -> 0 | Y52: 0 | Z52: =IF($A52=Y$3,AND($A52=Y$3,$D52<0),0) -> 0 | AA52: 0 | AB52: =IF($A52=AA$3,AND($A52=AA$3,$D52<0),0) -> 0 | AC52: 0 | AD52: =IF($A52=AC$3,AND($A52=AC$3,$D52<0),0) -> 0 | AE52: 0 | AF52: 0
A53: =IF(B53=0,"",MONTH(B53)) ->  | E53: =IF(D53="","",IF(D53<0,"DEBITO","CREDITO")) ->  | G53: FALSE | H53: FALSE | I53: 0 | J53: =IF($A53=I$3,AND($A53=I$3,$D53<0),0) -> 0 | K53: 0 | L53: =IF($A53=K$3,AND($A53=K$3,$D53<0),0) -> 0 | M53: 0 | N53: =IF($A53=M$3,AND($A53=M$3,$D53<0),0) -> 0 | O53: 0 | P53: =IF($A53=O$3,AND($A53=O$3,$D53<0),0) -> 0 | Q53: 0 | R53: 0 | S53: 0 | T53: 0 | U53: 0 | V53: 0 | W53: 0 | X53: =IF($A53=W$3,AND($A53=W$3,$D53<0),0) -> 0 | Y53: 0 | Z53: =IF($A53=Y$3,AND($A53=Y$3,$D53<0),0) -> 0 | AA53: 0 | AB53: =IF($A53=AA$3,AND($A53=AA$3,$D53<0),0) -> 0 | AC53: 0 | AD53: =IF($A53=AC$3,AND($A53=AC$3,$D53<0),0) -> 0 | AE53: 0 | AF53: 0
A54: =IF(B54=0,"",MONTH(B54)) ->  | E54: =IF(D54="","",IF(D54<0,"DEBITO","CREDITO")) ->  | G54: FALSE | H54: FALSE | I54: 0 | J54: =IF($A54=I$3,AND($A54=I$3,$D54<0),0) -> 0 | K54: 0 | L54: =IF($A54=K$3,AND($A54=K$3,$D54<0),0) -> 0 | M54: 0 | N54: =IF($A54=M$3,AND($A54=M$3,$D54<0),0) -> 0 | O54: 0 | P54: =IF($A54=O$3,AND($A54=O$3,$D54<0),0) -> 0 | Q54: 0 | R54: 0 | S54: 0 | T54: 0 | U54: 0 | V54: 0 | W54: 0 | X54: =IF($A54=W$3,AND($A54=W$3,$D54<0),0) -> 0 | Y54: 0 | Z54: =IF($A54=Y$3,AND($A54=Y$3,$D54<0),0) -> 0 | AA54: 0 | AB54: =IF($A54=AA$3,AND($A54=AA$3,$D54<0),0) -> 0 | AC54: 0 | AD54: =IF($A54=AC$3,AND($A54=AC$3,$D54<0),0) -> 0 | AE54: 0 | AF54: 0
A55: =IF(B55=0,"",MONTH(B55)) ->  | E55: =IF(D55="","",IF(D55<0,"DEBITO","CREDITO")) ->  | G55: FALSE | H55: FALSE | I55: 0 | J55: =IF($A55=I$3,AND($A55=I$3,$D55<0),0) -> 0 | K55: 0 | L55: =IF($A55=K$3,AND($A55=K$3,$D55<0),0) -> 0 | M55: 0 | N55: =IF($A55=M$3,AND($A55=M$3,$D55<0),0) -> 0 | O55: 0 | P55: =IF($A55=O$3,AND($A55=O$3,$D55<0),0) -> 0 | Q55: 0 | R55: 0 | S55: 0 | T55: 0 | U55: 0 | V55: 0 | W55: 0 | X55: =IF($A55=W$3,AND($A55=W$3,$D55<0),0) -> 0 | Y55: 0 | Z55: =IF($A55=Y$3,AND($A55=Y$3,$D55<0),0) -> 0 | AA55: 0 | AB55: =IF($A55=AA$3,AND($A55=AA$3,$D55<0),0) -> 0 | AC55: 0 | AD55: =IF($A55=AC$3,AND($A55=AC$3,$D55<0),0) -> 0 | AE55: 0 | AF55: 0
A56: =IF(B56=0,"",MONTH(B56)) ->  | E56: =IF(D56="","",IF(D56<0,"DEBITO","CREDITO")) ->  | G56: FALSE | H56: FALSE | I56: 0 | J56: =IF($A56=I$3,AND($A56=I$3,$D56<0),0) -> 0 | K56: 0 | L56: =IF($A56=K$3,AND($A56=K$3,$D56<0),0) -> 0 | M56: 0 | N56: =IF($A56=M$3,AND($A56=M$3,$D56<0),0) -> 0 | O56: 0 | P56: =IF($A56=O$3,AND($A56=O$3,$D56<0),0) -> 0 | Q56: 0 | R56: 0 | S56: 0 | T56: 0 | U56: 0 | V56: 0 | W56: 0 | X56: =IF($A56=W$3,AND($A56=W$3,$D56<0),0) -> 0 | Y56: 0 | Z56: =IF($A56=Y$3,AND($A56=Y$3,$D56<0),0) -> 0 | AA56: 0 | AB56: =IF($A56=AA$3,AND($A56=AA$3,$D56<0),0) -> 0 | AC56: 0 | AD56: =IF($A56=AC$3,AND($A56=AC$3,$D56<0),0) -> 0 | AE56: 0 | AF56: 0
A57: =IF(B57=0,"",MONTH(B57)) ->  | E57: =IF(D57="","",IF(D57<0,"DEBITO","CREDITO")) ->  | G57: FALSE | H57: FALSE | I57: 0 | J57: =IF($A57=I$3,AND($A57=I$3,$D57<0),0) -> 0 | K57: 0 | L57: =IF($A57=K$3,AND($A57=K$3,$D57<0),0) -> 0 | M57: 0 | N57: =IF($A57=M$3,AND($A57=M$3,$D57<0),0) -> 0 | O57: 0 | P57: =IF($A57=O$3,AND($A57=O$3,$D57<0),0) -> 0 | Q57: 0 | R57: 0 | S57: 0 | T57: 0 | U57: 0 | V57: 0 | W57: 0 | X57: =IF($A57=W$3,AND($A57=W$3,$D57<0),0) -> 0 | Y57: 0 | Z57: =IF($A57=Y$3,AND($A57=Y$3,$D57<0),0) -> 0 | AA57: 0 | AB57: =IF($A57=AA$3,AND($A57=AA$3,$D57<0),0) -> 0 | AC57: 0 | AD57: =IF($A57=AC$3,AND($A57=AC$3,$D57<0),0) -> 0 | AE57: 0 | AF57: 0
A58: =IF(B58=0,"",MONTH(B58)) ->  | E58: =IF(D58="","",IF(D58<0,"DEBITO","CREDITO")) ->  | G58: FALSE | H58: FALSE | I58: 0 | J58: =IF($A58=I$3,AND($A58=I$3,$D58<0),0) -> 0 | K58: 0 | L58: =IF($A58=K$3,AND($A58=K$3,$D58<0),0) -> 0 | M58: 0 | N58: =IF($A58=M$3,AND($A58=M$3,$D58<0),0) -> 0 | O58: 0 | P58: =IF($A58=O$3,AND($A58=O$3,$D58<0),0) -> 0 | Q58: 0 | R58: 0 | S58: 0 | T58: 0 | U58: 0 | V58: 0 | W58: 0 | X58: =IF($A58=W$3,AND($A58=W$3,$D58<0),0) -> 0 | Y58: 0 | Z58: =IF($A58=Y$3,AND($A58=Y$3,$D58<0),0) -> 0 | AA58: 0 | AB58: =IF($A58=AA$3,AND($A58=AA$3,$D58<0),0) -> 0 | AC58: 0 | AD58: =IF($A58=AC$3,AND($A58=AC$3,$D58<0),0) -> 0 | AE58: 0 | AF58: 0
A59: =IF(B59=0,"",MONTH(B59)) ->  | E59: =IF(D59="","",IF(D59<0,"DEBITO","CREDITO")) ->  | G59: FALSE | H59: FALSE | I59: 0 | J59: =IF($A59=I$3,AND($A59=I$3,$D59<0),0) -> 0 | K59: 0 | L59: =IF($A59=K$3,AND($A59=K$3,$D59<0),0) -> 0 | M59: 0 | N59: =IF($A59=M$3,AND($A59=M$3,$D59<0),0) -> 0 | O59: 0 | P59: =IF($A59=O$3,AND($A59=O$3,$D59<0),0) -> 0 | Q59: 0 | R59: 0 | S59: 0 | T59: 0 | U59: 0 | V59: 0 | W59: 0 | X59: =IF($A59=W$3,AND($A59=W$3,$D59<0),0) -> 0 | Y59: 0 | Z59: =IF($A59=Y$3,AND($A59=Y$3,$D59<0),0) -> 0 | AA59: 0 | AB59: =IF($A59=AA$3,AND($A59=AA$3,$D59<0),0) -> 0 | AC59: 0 | AD59: =IF($A59=AC$3,AND($A59=AC$3,$D59<0),0) -> 0 | AE59: 0 | AF59: 0
A60: =IF(B60=0,"",MONTH(B60)) ->  | E60: =IF(D60="","",IF(D60<0,"DEBITO","CREDITO")) ->  | G60: FALSE | H60: FALSE | I60: 0 | J60: =IF($A60=I$3,AND($A60=I$3,$D60<0),0) -> 0 | K60: 0 | L60: =IF($A60=K$3,AND($A60=K$3,$D60<0),0) -> 0 | M60: 0 | N60: =IF($A60=M$3,AND($A60=M$3,$D60<0),0) -> 0 | O60: 0 | P60: =IF($A60=O$3,AND($A60=O$3,$D60<0),0) -> 0 | Q60: 0 | R60: 0 | S60: 0 | T60: 0 | U60: 0 | V60: 0 | W60: 0 | X60: =IF($A60=W$3,AND($A60=W$3,$D60<0),0) -> 0 | Y60: 0 | Z60: =IF($A60=Y$3,AND($A60=Y$3,$D60<0),0) -> 0 | AA60: 0 | AB60: =IF($A60=AA$3,AND($A60=AA$3,$D60<0),0) -> 0 | AC60: 0 | AD60: =IF($A60=AC$3,AND($A60=AC$3,$D60<0),0) -> 0 | AE60: 0 | AF60: 0
A61: =IF(B61=0,"",MONTH(B61)) ->  | E61: =IF(D61="","",IF(D61<0,"DEBITO","CREDITO")) ->  | G61: FALSE | H61: FALSE | I61: 0 | J61: =IF($A61=I$3,AND($A61=I$3,$D61<0),0) -> 0 | K61: 0 | L61: =IF($A61=K$3,AND($A61=K$3,$D61<0),0) -> 0 | M61: 0 | N61: =IF($A61=M$3,AND($A61=M$3,$D61<0),0) -> 0 | O61: 0 | P61: =IF($A61=O$3,AND($A61=O$3,$D61<0),0) -> 0 | Q61: 0 | R61: 0 | S61: 0 | T61: 0 | U61: 0 | V61: 0 | W61: 0 | X61: =IF($A61=W$3,AND($A61=W$3,$D61<0),0) -> 0 | Y61: 0 | Z61: =IF($A61=Y$3,AND($A61=Y$3,$D61<0),0) -> 0 | AA61: 0 | AB61: =IF($A61=AA$3,AND($A61=AA$3,$D61<0),0) -> 0 | AC61: 0 | AD61: =IF($A61=AC$3,AND($A61=AC$3,$D61<0),0) -> 0 | AE61: 0 | AF61: 0
A62: =IF(B62=0,"",MONTH(B62)) ->  | E62: =IF(D62="","",IF(D62<0,"DEBITO","CREDITO")) ->  | G62: FALSE | H62: FALSE | I62: 0 | J62: =IF($A62=I$3,AND($A62=I$3,$D62<0),0) -> 0 | K62: 0 | L62: =IF($A62=K$3,AND($A62=K$3,$D62<0),0) -> 0 | M62: 0 | N62: =IF($A62=M$3,AND($A62=M$3,$D62<0),0) -> 0 | O62: 0 | P62: =IF($A62=O$3,AND($A62=O$3,$D62<0),0) -> 0 | Q62: 0 | R62: 0 | S62: 0 | T62: 0 | U62: 0 | V62: 0 | W62: 0 | X62: =IF($A62=W$3,AND($A62=W$3,$D62<0),0) -> 0 | Y62: 0 | Z62: =IF($A62=Y$3,AND($A62=Y$3,$D62<0),0) -> 0 | AA62: 0 | AB62: =IF($A62=AA$3,AND($A62=AA$3,$D62<0),0) -> 0 | AC62: 0 | AD62: =IF($A62=AC$3,AND($A62=AC$3,$D62<0),0) -> 0 | AE62: 0 | AF62: 0
A63: =IF(B63=0,"",MONTH(B63)) ->  | E63: =IF(D63="","",IF(D63<0,"DEBITO","CREDITO")) ->  | G63: FALSE | H63: FALSE | I63: 0 | J63: =IF($A63=I$3,AND($A63=I$3,$D63<0),0) -> 0 | K63: 0 | L63: =IF($A63=K$3,AND($A63=K$3,$D63<0),0) -> 0 | M63: 0 | N63: =IF($A63=M$3,AND($A63=M$3,$D63<0),0) -> 0 | O63: 0 | P63: =IF($A63=O$3,AND($A63=O$3,$D63<0),0) -> 0 | Q63: 0 | R63: 0 | S63: 0 | T63: 0 | U63: 0 | V63: 0 | W63: 0 | X63: =IF($A63=W$3,AND($A63=W$3,$D63<0),0) -> 0 | Y63: 0 | Z63: =IF($A63=Y$3,AND($A63=Y$3,$D63<0),0) -> 0 | AA63: 0 | AB63: =IF($A63=AA$3,AND($A63=AA$3,$D63<0),0) -> 0 | AC63: 0 | AD63: =IF($A63=AC$3,AND($A63=AC$3,$D63<0),0) -> 0 | AE63: 0 | AF63: 0
A64: =IF(B64=0,"",MONTH(B64)) ->  | E64: =IF(D64="","",IF(D64<0,"DEBITO","CREDITO")) ->  | G64: FALSE | H64: FALSE | I64: 0 | J64: =IF($A64=I$3,AND($A64=I$3,$D64<0),0) -> 0 | K64: 0 | L64: =IF($A64=K$3,AND($A64=K$3,$D64<0),0) -> 0 | M64: 0 | N64: =IF($A64=M$3,AND($A64=M$3,$D64<0),0) -> 0 | O64: 0 | P64: =IF($A64=O$3,AND($A64=O$3,$D64<0),0) -> 0 | Q64: 0 | R64: 0 | S64: 0 | T64: 0 | U64: 0 | V64: 0 | W64: 0 | X64: =IF($A64=W$3,AND($A64=W$3,$D64<0),0) -> 0 | Y64: 0 | Z64: =IF($A64=Y$3,AND($A64=Y$3,$D64<0),0) -> 0 | AA64: 0 | AB64: =IF($A64=AA$3,AND($A64=AA$3,$D64<0),0) -> 0 | AC64: 0 | AD64: =IF($A64=AC$3,AND($A64=AC$3,$D64<0),0) -> 0 | AE64: 0 | AF64: 0
A65: =IF(B65=0,"",MONTH(B65)) ->  | E65: =IF(D65="","",IF(D65<0,"DEBITO","CREDITO")) ->  | G65: FALSE | H65: FALSE | I65: 0 | J65: =IF($A65=I$3,AND($A65=I$3,$D65<0),0) -> 0 | K65: 0 | L65: =IF($A65=K$3,AND($A65=K$3,$D65<0),0) -> 0 | M65: 0 | N65: =IF($A65=M$3,AND($A65=M$3,$D65<0),0) -> 0 | O65: 0 | P65: =IF($A65=O$3,AND($A65=O$3,$D65<0),0) -> 0 | Q65: 0 | R65: 0 | S65: 0 | T65: 0 | U65: 0 | V65: 0 | W65: 0 | X65: =IF($A65=W$3,AND($A65=W$3,$D65<0),0) -> 0 | Y65: 0 | Z65: =IF($A65=Y$3,AND($A65=Y$3,$D65<0),0) -> 0 | AA65: 0 | AB65: =IF($A65=AA$3,AND($A65=AA$3,$D65<0),0) -> 0 | AC65: 0 | AD65: =IF($A65=AC$3,AND($A65=AC$3,$D65<0),0) -> 0 | AE65: 0 | AF65: 0
A66: =IF(B66=0,"",MONTH(B66)) ->  | E66: =IF(D66="","",IF(D66<0,"DEBITO","CREDITO")) ->  | G66: FALSE | H66: FALSE | I66: 0 | J66: =IF($A66=I$3,AND($A66=I$3,$D66<0),0) -> 0 | K66: 0 | L66: =IF($A66=K$3,AND($A66=K$3,$D66<0),0) -> 0 | M66: 0 | N66: =IF($A66=M$3,AND($A66=M$3,$D66<0),0) -> 0 | O66: 0 | P66: =IF($A66=O$3,AND($A66=O$3,$D66<0),0) -> 0 | Q66: 0 | R66: 0 | S66: 0 | T66: 0 | U66: 0 | V66: 0 | W66: 0 | X66: =IF($A66=W$3,AND($A66=W$3,$D66<0),0) -> 0 | Y66: 0 | Z66: =IF($A66=Y$3,AND($A66=Y$3,$D66<0),0) -> 0 | AA66: 0 | AB66: =IF($A66=AA$3,AND($A66=AA$3,$D66<0),0) -> 0 | AC66: 0 | AD66: =IF($A66=AC$3,AND($A66=AC$3,$D66<0),0) -> 0 | AE66: 0 | AF66: 0
A67: =IF(B67=0,"",MONTH(B67)) ->  | E67: =IF(D67="","",IF(D67<0,"DEBITO","CREDITO")) ->  | G67: FALSE | H67: FALSE | I67: 0 | J67: =IF($A67=I$3,AND($A67=I$3,$D67<0),0) -> 0 | K67: 0 | L67: =IF($A67=K$3,AND($A67=K$3,$D67<0),0) -> 0 | M67: 0 | N67: =IF($A67=M$3,AND($A67=M$3,$D67<0),0) -> 0 | O67: 0 | P67: =IF($A67=O$3,AND($A67=O$3,$D67<0),0) -> 0 | Q67: 0 | R67: 0 | S67: 0 | T67: 0 | U67: 0 | V67: 0 | W67: 0 | X67: =IF($A67=W$3,AND($A67=W$3,$D67<0),0) -> 0 | Y67: 0 | Z67: =IF($A67=Y$3,AND($A67=Y$3,$D67<0),0) -> 0 | AA67: 0 | AB67: =IF($A67=AA$3,AND($A67=AA$3,$D67<0),0) -> 0 | AC67: 0 | AD67: =IF($A67=AC$3,AND($A67=AC$3,$D67<0),0) -> 0 | AE67: 0 | AF67: 0
A68: =IF(B68=0,"",MONTH(B68)) ->  | E68: =IF(D68="","",IF(D68<0,"DEBITO","CREDITO")) ->  | G68: FALSE | H68: FALSE | I68: 0 | J68: =IF($A68=I$3,AND($A68=I$3,$D68<0),0) -> 0 | K68: 0 | L68: =IF($A68=K$3,AND($A68=K$3,$D68<0),0) -> 0 | M68: 0 | N68: =IF($A68=M$3,AND($A68=M$3,$D68<0),0) -> 0 | O68: 0 | P68: =IF($A68=O$3,AND($A68=O$3,$D68<0),0) -> 0 | Q68: 0 | R68: 0 | S68: 0 | T68: 0 | U68: 0 | V68: 0 | W68: 0 | X68: =IF($A68=W$3,AND($A68=W$3,$D68<0),0) -> 0 | Y68: 0 | Z68: =IF($A68=Y$3,AND($A68=Y$3,$D68<0),0) -> 0 | AA68: 0 | AB68: =IF($A68=AA$3,AND($A68=AA$3,$D68<0),0) -> 0 | AC68: 0 | AD68: =IF($A68=AC$3,AND($A68=AC$3,$D68<0),0) -> 0 | AE68: 0 | AF68: 0
A69: =IF(B69=0,"",MONTH(B69)) ->  | E69: =IF(D69="","",IF(D69<0,"DEBITO","CREDITO")) ->  | G69: FALSE | H69: FALSE | I69: 0 | J69: =IF($A69=I$3,AND($A69=I$3,$D69<0),0) -> 0 | K69: 0 | L69: =IF($A69=K$3,AND($A69=K$3,$D69<0),0) -> 0 | M69: 0 | N69: =IF($A69=M$3,AND($A69=M$3,$D69<0),0) -> 0 | O69: 0 | P69: =IF($A69=O$3,AND($A69=O$3,$D69<0),0) -> 0 | Q69: 0 | R69: 0 | S69: 0 | T69: 0 | U69: 0 | V69: 0 | W69: 0 | X69: =IF($A69=W$3,AND($A69=W$3,$D69<0),0) -> 0 | Y69: 0 | Z69: =IF($A69=Y$3,AND($A69=Y$3,$D69<0),0) -> 0 | AA69: 0 | AB69: =IF($A69=AA$3,AND($A69=AA$3,$D69<0),0) -> 0 | AC69: 0 | AD69: =IF($A69=AC$3,AND($A69=AC$3,$D69<0),0) -> 0 | AE69: 0 | AF69: 0
A70: =IF(B70=0,"",MONTH(B70)) ->  | E70: =IF(D70="","",IF(D70<0,"DEBITO","CREDITO")) ->  | G70: FALSE | H70: FALSE | I70: 0 | J70: =IF($A70=I$3,AND($A70=I$3,$D70<0),0) -> 0 | K70: 0 | L70: =IF($A70=K$3,AND($A70=K$3,$D70<0),0) -> 0 | M70: 0 | N70: =IF($A70=M$3,AND($A70=M$3,$D70<0),0) -> 0 | O70: 0 | P70: =IF($A70=O$3,AND($A70=O$3,$D70<0),0) -> 0 | Q70: 0 | R70: 0 | S70: 0 | T70: 0 | U70: 0 | V70: 0 | W70: 0 | X70: =IF($A70=W$3,AND($A70=W$3,$D70<0),0) -> 0 | Y70: 0 | Z70: =IF($A70=Y$3,AND($A70=Y$3,$D70<0),0) -> 0 | AA70: 0 | AB70: =IF($A70=AA$3,AND($A70=AA$3,$D70<0),0) -> 0 | AC70: 0 | AD70: =IF($A70=AC$3,AND($A70=AC$3,$D70<0),0) -> 0 | AE70: 0 | AF70: 0
A71: =IF(B71=0,"",MONTH(B71)) ->  | E71: =IF(D71="","",IF(D71<0,"DEBITO","CREDITO")) ->  | G71: FALSE | H71: FALSE | I71: 0 | J71: =IF($A71=I$3,AND($A71=I$3,$D71<0),0) -> 0 | K71: 0 | L71: =IF($A71=K$3,AND($A71=K$3,$D71<0),0) -> 0 | M71: 0 | N71: =IF($A71=M$3,AND($A71=M$3,$D71<0),0) -> 0 | O71: 0 | P71: =IF($A71=O$3,AND($A71=O$3,$D71<0),0) -> 0 | Q71: 0 | R71: 0 | S71: 0 | T71: 0 | U71: 0 | V71: 0 | W71: 0 | X71: =IF($A71=W$3,AND($A71=W$3,$D71<0),0) -> 0 | Y71: 0 | Z71: =IF($A71=Y$3,AND($A71=Y$3,$D71<0),0) -> 0 | AA71: 0 | AB71: =IF($A71=AA$3,AND($A71=AA$3,$D71<0),0) -> 0 | AC71: 0 | AD71: =IF($A71=AC$3,AND($A71=AC$3,$D71<0),0) -> 0 | AE71: 0 | AF71: 0
A72: =IF(B72=0,"",MONTH(B72)) ->  | E72: =IF(D72="","",IF(D72<0,"DEBITO","CREDITO")) ->  | G72: FALSE | H72: FALSE | I72: 0 | J72: =IF($A72=I$3,AND($A72=I$3,$D72<0),0) -> 0 | K72: 0 | L72: =IF($A72=K$3,AND($A72=K$3,$D72<0),0) -> 0 | M72: 0 | N72: =IF($A72=M$3,AND($A72=M$3,$D72<0),0) -> 0 | O72: 0 | P72: =IF($A72=O$3,AND($A72=O$3,$D72<0),0) -> 0 | Q72: 0 | R72: 0 | S72: 0 | T72: 0 | U72: 0 | V72: 0 | W72: 0 | X72: =IF($A72=W$3,AND($A72=W$3,$D72<0),0) -> 0 | Y72: 0 | Z72: =IF($A72=Y$3,AND($A72=Y$3,$D72<0),0) -> 0 | AA72: 0 | AB72: =IF($A72=AA$3,AND($A72=AA$3,$D72<0),0) -> 0 | AC72: 0 | AD72: =IF($A72=AC$3,AND($A72=AC$3,$D72<0),0) -> 0 | AE72: 0 | AF72: 0
A73: =IF(B73=0,"",MONTH(B73)) ->  | E73: =IF(D73="","",IF(D73<0,"DEBITO","CREDITO")) ->  | G73: =AND(A73=$E$3,D73>0) -> FALSE | H73: =AND(A73=$E$3,D73<0) -> FALSE | I73: 0 | J73: =IF($A73=I$3,AND($A73=I$3,$D73<0),0) -> 0 | K73: 0 | L73: =IF($A73=K$3,AND($A73=K$3,$D73<0),0) -> 0 | M73: 0 | N73: =IF($A73=M$3,AND($A73=M$3,$D73<0),0) -> 0 | O73: 0 | P73: =IF($A73=O$3,AND($A73=O$3,$D73<0),0) -> 0 | Q73: 0 | R73: =IF($A73=Q$3,AND($A73=Q$3,$D73<0),0) -> 0 | S73: 0 | T73: 0 | U73: 0 | V73: 0 | W73: 0 | X73: =IF($A73=W$3,AND($A73=W$3,$D73<0),0) -> 0 | Y73: 0 | Z73: =IF($A73=Y$3,AND($A73=Y$3,$D73<0),0) -> 0 | AA73: 0 | AB73: =IF($A73=AA$3,AND($A73=AA$3,$D73<0),0) -> 0 | AC73: 0 | AD73: =IF($A73=AC$3,AND($A73=AC$3,$D73<0),0) -> 0 | AE73: 0 | AF73: =IF($A73=AE$3,AND($A73=AE$3,$D73<0),0) -> 0
A74: =IF(B74=0,"",MONTH(B74)) ->  | E74: =IF(D74="","",IF(D74<0,"DEBITO","CREDITO")) ->  | G74: FALSE | H74: FALSE | I74: 0 | J74: =IF($A74=I$3,AND($A74=I$3,$D74<0),0) -> 0 | K74: 0 | L74: =IF($A74=K$3,AND($A74=K$3,$D74<0),0) -> 0 | M74: 0 | N74: =IF($A74=M$3,AND($A74=M$3,$D74<0),0) -> 0 | O74: 0 | P74: =IF($A74=O$3,AND($A74=O$3,$D74<0),0) -> 0 | Q74: 0 | R74: 0 | S74: =IF($A74=S$3,AND($A74=S$3,$D74>0),0) -> 0 | T74: =IF($A74=S$3,AND($A74=S$3,$D74<0),0) -> 0 | U74: =IF($A74=U$3,AND($A74=U$3,$D74>0),0) -> 0 | V74: =IF($A74=U$3,AND($A74=U$3,$D74<0),0) -> 0 | W74: 0 | X74: =IF($A74=W$3,AND($A74=W$3,$D74<0),0) -> 0 | Y74: 0 | Z74: =IF($A74=Y$3,AND($A74=Y$3,$D74<0),0) -> 0 | AA74: 0 | AB74: =IF($A74=AA$3,AND($A74=AA$3,$D74<0),0) -> 0 | AC74: 0 | AD74: =IF($A74=AC$3,AND($A74=AC$3,$D74<0),0) -> 0 | AE74: 0 | AF74: 0
A75: =IF(B75=0,"",MONTH(B75)) ->  | E75: =IF(D75="","",IF(D75<0,"DEBITO","CREDITO")) ->  | G75: FALSE | H75: FALSE | I75: =IF($A75=I$3,AND($A75=I$3,$D75>0),0) -> 0 | J75: =IF($A75=I$3,AND($A75=I$3,$D75<0),0) -> 0 | K75: 0 | L75: =IF($A75=K$3,AND($A75=K$3,$D75<0),0) -> 0 | M75: 0 | N75: =IF($A75=M$3,AND($A75=M$3,$D75<0),0) -> 0 | O75: 0 | P75: =IF($A75=O$3,AND($A75=O$3,$D75<0),0) -> 0 | Q75: 0 | R75: 0 | S75: 0 | T75: 0 | U75: 0 | V75: 0 | W75: 0 | X75: =IF($A75=W$3,AND($A75=W$3,$D75<0),0) -> 0 | Y75: 0 | Z75: =IF($A75=Y$3,AND($A75=Y$3,$D75<0),0) -> 0 | AA75: 0 | AB75: =IF($A75=AA$3,AND($A75=AA$3,$D75<0),0) -> 0 | AC75: 0 | AD75: =IF($A75=AC$3,AND($A75=AC$3,$D75<0),0) -> 0 | AE75: 0 | AF75: 0
A76: =IF(B76=0,"",MONTH(B76)) ->  | E76: =IF(D76="","",IF(D76<0,"DEBITO","CREDITO")) ->  | G76: FALSE | H76: FALSE | I76: 0 | J76: =IF($A76=I$3,AND($A76=I$3,$D76<0),0) -> 0 | K76: 0 | L76: =IF($A76=K$3,AND($A76=K$3,$D76<0),0) -> 0 | M76: 0 | N76: =IF($A76=M$3,AND($A76=M$3,$D76<0),0) -> 0 | O76: 0 | P76: =IF($A76=O$3,AND($A76=O$3,$D76<0),0) -> 0 | Q76: 0 | R76: 0 | S76: 0 | T76: 0 | U76: 0 | V76: 0 | W76: 0 | X76: =IF($A76=W$3,AND($A76=W$3,$D76<0),0) -> 0 | Y76: 0 | Z76: =IF($A76=Y$3,AND($A76=Y$3,$D76<0),0) -> 0 | AA76: 0 | AB76: =IF($A76=AA$3,AND($A76=AA$3,$D76<0),0) -> 0 | AC76: 0 | AD76: =IF($A76=AC$3,AND($A76=AC$3,$D76<0),0) -> 0 | AE76: 0 | AF76: 0
A77: =IF(B77=0,"",MONTH(B77)) ->  | E77: =IF(D77="","",IF(D77<0,"DEBITO","CREDITO")) ->  | G77: FALSE | H77: FALSE | I77: 0 | J77: =IF($A77=I$3,AND($A77=I$3,$D77<0),0) -> 0 | K77: 0 | L77: =IF($A77=K$3,AND($A77=K$3,$D77<0),0) -> 0 | M77: 0 | N77: =IF($A77=M$3,AND($A77=M$3,$D77<0),0) -> 0 | O77: 0 | P77: =IF($A77=O$3,AND($A77=O$3,$D77<0),0) -> 0 | Q77: 0 | R77: 0 | S77: 0 | T77: 0 | U77: 0 | V77: 0 | W77: 0 | X77: =IF($A77=W$3,AND($A77=W$3,$D77<0),0) -> 0 | Y77: 0 | Z77: =IF($A77=Y$3,AND($A77=Y$3,$D77<0),0) -> 0 | AA77: 0 | AB77: =IF($A77=AA$3,AND($A77=AA$3,$D77<0),0) -> 0 | AC77: 0 | AD77: =IF($A77=AC$3,AND($A77=AC$3,$D77<0),0) -> 0 | AE77: 0 | AF77: 0
A78: =IF(B78=0,"",MONTH(B78)) ->  | E78: =IF(D78="","",IF(D78<0,"DEBITO","CREDITO")) ->  | G78: FALSE | H78: FALSE | I78: 0 | J78: =IF($A78=I$3,AND($A78=I$3,$D78<0),0) -> 0 | K78: 0 | L78: =IF($A78=K$3,AND($A78=K$3,$D78<0),0) -> 0 | M78: 0 | N78: =IF($A78=M$3,AND($A78=M$3,$D78<0),0) -> 0 | O78: 0 | P78: =IF($A78=O$3,AND($A78=O$3,$D78<0),0) -> 0 | Q78: 0 | R78: 0 | S78: 0 | T78: 0 | U78: 0 | V78: 0 | W78: 0 | X78: =IF($A78=W$3,AND($A78=W$3,$D78<0),0) -> 0 | Y78: 0 | Z78: =IF($A78=Y$3,AND($A78=Y$3,$D78<0),0) -> 0 | AA78: 0 | AB78: =IF($A78=AA$3,AND($A78=AA$3,$D78<0),0) -> 0 | AC78: 0 | AD78: =IF($A78=AC$3,AND($A78=AC$3,$D78<0),0) -> 0 | AE78: 0 | AF78: 0
A79: =IF(B79=0,"",MONTH(B79)) ->  | E79: =IF(D79="","",IF(D79<0,"DEBITO","CREDITO")) ->  | G79: FALSE | H79: FALSE | I79: 0 | J79: =IF($A79=I$3,AND($A79=I$3,$D79<0),0) -> 0 | K79: 0 | L79: =IF($A79=K$3,AND($A79=K$3,$D79<0),0) -> 0 | M79: 0 | N79: =IF($A79=M$3,AND($A79=M$3,$D79<0),0) -> 0 | O79: 0 | P79: =IF($A79=O$3,AND($A79=O$3,$D79<0),0) -> 0 | Q79: 0 | R79: 0 | S79: 0 | T79: 0 | U79: 0 | V79: 0 | W79: 0 | X79: =IF($A79=W$3,AND($A79=W$3,$D79<0),0) -> 0 | Y79: 0 | Z79: =IF($A79=Y$3,AND($A79=Y$3,$D79<0),0) -> 0 | AA79: 0 | AB79: =IF($A79=AA$3,AND($A79=AA$3,$D79<0),0) -> 0 | AC79: 0 | AD79: =IF($A79=AC$3,AND($A79=AC$3,$D79<0),0) -> 0 | AE79: 0 | AF79: 0
A80: =IF(B80=0,"",MONTH(B80)) ->  | E80: =IF(D80="","",IF(D80<0,"DEBITO","CREDITO")) ->  | G80: FALSE | H80: FALSE | I80: 0 | J80: =IF($A80=I$3,AND($A80=I$3,$D80<0),0) -> 0 | K80: 0 | L80: =IF($A80=K$3,AND($A80=K$3,$D80<0),0) -> 0 | M80: 0 | N80: =IF($A80=M$3,AND($A80=M$3,$D80<0),0) -> 0 | O80: 0 | P80: =IF($A80=O$3,AND($A80=O$3,$D80<0),0) -> 0 | Q80: 0 | R80: 0 | S80: 0 | T80: 0 | U80: 0 | V80: 0 | W80: 0 | X80: =IF($A80=W$3,AND($A80=W$3,$D80<0),0) -> 0 | Y80: 0 | Z80: =IF($A80=Y$3,AND($A80=Y$3,$D80<0),0) -> 0 | AA80: 0 | AB80: =IF($A80=AA$3,AND($A80=AA$3,$D80<0),0) -> 0 | AC80: 0 | AD80: =IF($A80=AC$3,AND($A80=AC$3,$D80<0),0) -> 0 | AE80: 0 | AF80: 0
A81: =IF(B81=0,"",MONTH(B81)) ->  | E81: =IF(D81="","",IF(D81<0,"DEBITO","CREDITO")) ->  | G81: FALSE | H81: FALSE | I81: 0 | J81: =IF($A81=I$3,AND($A81=I$3,$D81<0),0) -> 0 | K81: 0 | L81: =IF($A81=K$3,AND($A81=K$3,$D81<0),0) -> 0 | M81: 0 | N81: =IF($A81=M$3,AND($A81=M$3,$D81<0),0) -> 0 | O81: 0 | P81: =IF($A81=O$3,AND($A81=O$3,$D81<0),0) -> 0 | Q81: 0 | R81: 0 | S81: 0 | T81: 0 | U81: 0 | V81: 0 | W81: 0 | X81: =IF($A81=W$3,AND($A81=W$3,$D81<0),0) -> 0 | Y81: 0 | Z81: =IF($A81=Y$3,AND($A81=Y$3,$D81<0),0) -> 0 | AA81: 0 | AB81: =IF($A81=AA$3,AND($A81=AA$3,$D81<0),0) -> 0 | AC81: 0 | AD81: =IF($A81=AC$3,AND($A81=AC$3,$D81<0),0) -> 0 | AE81: 0 | AF81: 0
A82: =IF(B82=0,"",MONTH(B82)) ->  | E82: =IF(D82="","",IF(D82<0,"DEBITO","CREDITO")) ->  | G82: FALSE | H82: FALSE | I82: 0 | J82: =IF($A82=I$3,AND($A82=I$3,$D82<0),0) -> 0 | K82: 0 | L82: =IF($A82=K$3,AND($A82=K$3,$D82<0),0) -> 0 | M82: 0 | N82: =IF($A82=M$3,AND($A82=M$3,$D82<0),0) -> 0 | O82: 0 | P82: =IF($A82=O$3,AND($A82=O$3,$D82<0),0) -> 0 | Q82: 0 | R82: 0 | S82: 0 | T82: 0 | U82: 0 | V82: 0 | W82: 0 | X82: =IF($A82=W$3,AND($A82=W$3,$D82<0),0) -> 0 | Y82: 0 | Z82: =IF($A82=Y$3,AND($A82=Y$3,$D82<0),0) -> 0 | AA82: 0 | AB82: =IF($A82=AA$3,AND($A82=AA$3,$D82<0),0) -> 0 | AC82: 0 | AD82: =IF($A82=AC$3,AND($A82=AC$3,$D82<0),0) -> 0 | AE82: 0 | AF82: 0
A83: =IF(B83=0,"",MONTH(B83)) ->  | E83: =IF(D83="","",IF(D83<0,"DEBITO","CREDITO")) ->  | G83: FALSE | H83: FALSE | I83: 0 | J83: =IF($A83=I$3,AND($A83=I$3,$D83<0),0) -> 0 | K83: 0 | L83: =IF($A83=K$3,AND($A83=K$3,$D83<0),0) -> 0 | M83: 0 | N83: =IF($A83=M$3,AND($A83=M$3,$D83<0),0) -> 0 | O83: 0 | P83: =IF($A83=O$3,AND($A83=O$3,$D83<0),0) -> 0 | Q83: 0 | R83: 0 | S83: 0 | T83: 0 | U83: 0 | V83: 0 | W83: 0 | X83: =IF($A83=W$3,AND($A83=W$3,$D83<0),0) -> 0 | Y83: 0 | Z83: =IF($A83=Y$3,AND($A83=Y$3,$D83<0),0) -> 0 | AA83: 0 | AB83: =IF($A83=AA$3,AND($A83=AA$3,$D83<0),0) -> 0 | AC83: 0 | AD83: =IF($A83=AC$3,AND($A83=AC$3,$D83<0),0) -> 0 | AE83: 0 | AF83: 0
A84: =IF(B84=0,"",MONTH(B84)) ->  | E84: =IF(D84="","",IF(D84<0,"DEBITO","CREDITO")) ->  | G84: FALSE | H84: FALSE | I84: 0 | J84: =IF($A84=I$3,AND($A84=I$3,$D84<0),0) -> 0 | K84: 0 | L84: =IF($A84=K$3,AND($A84=K$3,$D84<0),0) -> 0 | M84: 0 | N84: =IF($A84=M$3,AND($A84=M$3,$D84<0),0) -> 0 | O84: 0 | P84: =IF($A84=O$3,AND($A84=O$3,$D84<0),0) -> 0 | Q84: 0 | R84: 0 | S84: 0 | T84: 0 | U84: 0 | V84: 0 | W84: 0 | X84: =IF($A84=W$3,AND($A84=W$3,$D84<0),0) -> 0 | Y84: 0 | Z84: =IF($A84=Y$3,AND($A84=Y$3,$D84<0),0) -> 0 | AA84: 0 | AB84: =IF($A84=AA$3,AND($A84=AA$3,$D84<0),0) -> 0 | AC84: 0 | AD84: =IF($A84=AC$3,AND($A84=AC$3,$D84<0),0) -> 0 | AE84: 0 | AF84: 0
A85: =IF(B85=0,"",MONTH(B85)) ->  | E85: =IF(D85="","",IF(D85<0,"DEBITO","CREDITO")) ->  | G85: FALSE | H85: FALSE | I85: 0 | J85: =IF($A85=I$3,AND($A85=I$3,$D85<0),0) -> 0 | K85: 0 | L85: =IF($A85=K$3,AND($A85=K$3,$D85<0),0) -> 0 | M85: 0 | N85: =IF($A85=M$3,AND($A85=M$3,$D85<0),0) -> 0 | O85: 0 | P85: =IF($A85=O$3,AND($A85=O$3,$D85<0),0) -> 0 | Q85: 0 | R85: 0 | S85: 0 | T85: 0 | U85: 0 | V85: 0 | W85: 0 | X85: =IF($A85=W$3,AND($A85=W$3,$D85<0),0) -> 0 | Y85: 0 | Z85: =IF($A85=Y$3,AND($A85=Y$3,$D85<0),0) -> 0 | AA85: 0 | AB85: =IF($A85=AA$3,AND($A85=AA$3,$D85<0),0) -> 0 | AC85: 0 | AD85: =IF($A85=AC$3,AND($A85=AC$3,$D85<0),0) -> 0 | AE85: 0 | AF85: 0
A86: =IF(B86=0,"",MONTH(B86)) ->  | E86: =IF(D86="","",IF(D86<0,"DEBITO","CREDITO")) ->  | G86: FALSE | H86: FALSE | I86: 0 | J86: =IF($A86=I$3,AND($A86=I$3,$D86<0),0) -> 0 | K86: 0 | L86: =IF($A86=K$3,AND($A86=K$3,$D86<0),0) -> 0 | M86: 0 | N86: =IF($A86=M$3,AND($A86=M$3,$D86<0),0) -> 0 | O86: 0 | P86: =IF($A86=O$3,AND($A86=O$3,$D86<0),0) -> 0 | Q86: 0 | R86: 0 | S86: 0 | T86: 0 | U86: 0 | V86: 0 | W86: 0 | X86: =IF($A86=W$3,AND($A86=W$3,$D86<0),0) -> 0 | Y86: 0 | Z86: =IF($A86=Y$3,AND($A86=Y$3,$D86<0),0) -> 0 | AA86: 0 | AB86: =IF($A86=AA$3,AND($A86=AA$3,$D86<0),0) -> 0 | AC86: 0 | AD86: =IF($A86=AC$3,AND($A86=AC$3,$D86<0),0) -> 0 | AE86: 0 | AF86: 0
A87: =IF(B87=0,"",MONTH(B87)) ->  | E87: =IF(D87="","",IF(D87<0,"DEBITO","CREDITO")) ->  | G87: FALSE | H87: FALSE | I87: 0 | J87: =IF($A87=I$3,AND($A87=I$3,$D87<0),0) -> 0 | K87: 0 | L87: =IF($A87=K$3,AND($A87=K$3,$D87<0),0) -> 0 | M87: 0 | N87: =IF($A87=M$3,AND($A87=M$3,$D87<0),0) -> 0 | O87: 0 | P87: =IF($A87=O$3,AND($A87=O$3,$D87<0),0) -> 0 | Q87: 0 | R87: 0 | S87: 0 | T87: 0 | U87: 0 | V87: 0 | W87: 0 | X87: =IF($A87=W$3,AND($A87=W$3,$D87<0),0) -> 0 | Y87: 0 | Z87: =IF($A87=Y$3,AND($A87=Y$3,$D87<0),0) -> 0 | AA87: 0 | AB87: =IF($A87=AA$3,AND($A87=AA$3,$D87<0),0) -> 0 | AC87: 0 | AD87: =IF($A87=AC$3,AND($A87=AC$3,$D87<0),0) -> 0 | AE87: 0 | AF87: 0
A88: =IF(B88=0,"",MONTH(B88)) ->  | E88: =IF(D88="","",IF(D88<0,"DEBITO","CREDITO")) ->  | G88: FALSE | H88: FALSE | I88: 0 | J88: =IF($A88=I$3,AND($A88=I$3,$D88<0),0) -> 0 | K88: 0 | L88: =IF($A88=K$3,AND($A88=K$3,$D88<0),0) -> 0 | M88: 0 | N88: =IF($A88=M$3,AND($A88=M$3,$D88<0),0) -> 0 | O88: 0 | P88: =IF($A88=O$3,AND($A88=O$3,$D88<0),0) -> 0 | Q88: 0 | R88: 0 | S88: 0 | T88: 0 | U88: 0 | V88: 0 | W88: 0 | X88: =IF($A88=W$3,AND($A88=W$3,$D88<0),0) -> 0 | Y88: 0 | Z88: =IF($A88=Y$3,AND($A88=Y$3,$D88<0),0) -> 0 | AA88: 0 | AB88: =IF($A88=AA$3,AND($A88=AA$3,$D88<0),0) -> 0 | AC88: 0 | AD88: =IF($A88=AC$3,AND($A88=AC$3,$D88<0),0) -> 0 | AE88: 0 | AF88: 0
A89: =IF(B89=0,"",MONTH(B89)) ->  | E89: =IF(D89="","",IF(D89<0,"DEBITO","CREDITO")) ->  | G89: FALSE | H89: FALSE | I89: =IF($A89=I$3,AND($A89=I$3,$D89>0),0) -> 0 | J89: =IF($A89=I$3,AND($A89=I$3,$D89<0),0) -> 0 | K89: =IF($A89=K$3,AND($A89=K$3,$D89>0),0) -> 0 | L89: =IF($A89=K$3,AND($A89=K$3,$D89<0),0) -> 0 | M89: =IF($A89=M$3,AND($A89=M$3,$D89>0),0) -> 0 | N89: =IF($A89=M$3,AND($A89=M$3,$D89<0),0) -> 0 | O89: =IF($A89=O$3,AND($A89=O$3,$D89>0),0) -> 0 | P89: =IF($A89=O$3,AND($A89=O$3,$D89<0),0) -> 0 | Q89: =IF($A89=Q$3,AND($A89=Q$3,$D89>0),0) -> 0 | R89: 0 | S89: 0 | T89: 0 | U89: 0 | V89: 0 | W89: =IF($A89=W$3,AND($A89=W$3,$D89>0),0) -> 0 | X89: =IF($A89=W$3,AND($A89=W$3,$D89<0),0) -> 0 | Y89: =IF($A89=Y$3,AND($A89=Y$3,$D89>0),0) -> 0 | Z89: =IF($A89=Y$3,AND($A89=Y$3,$D89<0),0) -> 0 | AA89: =IF($A89=AA$3,AND($A89=AA$3,$D89>0),0) -> 0 | AB89: =IF($A89=AA$3,AND($A89=AA$3,$D89<0),0) -> 0 | AC89: =IF($A89=AC$3,AND($A89=AC$3,$D89>0),0) -> 0 | AD89: =IF($A89=AC$3,AND($A89=AC$3,$D89<0),0) -> 0 | AE89: =IF($A89=AE$3,AND($A89=AE$3,$D89>0),0) -> 0 | AF89: 0
A90: =IF(B90=0,"",MONTH(B90)) ->  | E90: =IF(D90="","",IF(D90<0,"DEBITO","CREDITO")) ->  | G90: FALSE | H90: FALSE | I90: 0 | J90: =IF($A90=I$3,AND($A90=I$3,$D90<0),0) -> 0 | K90: 0 | L90: =IF($A90=K$3,AND($A90=K$3,$D90<0),0) -> 0 | M90: 0 | N90: =IF($A90=M$3,AND($A90=M$3,$D90<0),0) -> 0 | O90: 0 | P90: =IF($A90=O$3,AND($A90=O$3,$D90<0),0) -> 0 | Q90: 0 | R90: 0 | S90: 0 | T90: 0 | U90: 0 | V90: 0 | W90: 0 | X90: =IF($A90=W$3,AND($A90=W$3,$D90<0),0) -> 0 | Y90: 0 | Z90: =IF($A90=Y$3,AND($A90=Y$3,$D90<0),0) -> 0 | AA90: 0 | AB90: =IF($A90=AA$3,AND($A90=AA$3,$D90<0),0) -> 0 | AC90: 0 | AD90: =IF($A90=AC$3,AND($A90=AC$3,$D90<0),0) -> 0 | AE90: 0 | AF90: 0
A91: =IF(B91=0,"",MONTH(B91)) ->  | E91: =IF(D91="","",IF(D91<0,"DEBITO","CREDITO")) ->  | G91: FALSE | H91: FALSE | I91: 0 | J91: =IF($A91=I$3,AND($A91=I$3,$D91<0),0) -> 0 | K91: 0 | L91: =IF($A91=K$3,AND($A91=K$3,$D91<0),0) -> 0 | M91: 0 | N91: =IF($A91=M$3,AND($A91=M$3,$D91<0),0) -> 0 | O91: 0 | P91: =IF($A91=O$3,AND($A91=O$3,$D91<0),0) -> 0 | Q91: 0 | R91: 0 | S91: 0 | T91: 0 | U91: 0 | V91: 0 | W91: 0 | X91: =IF($A91=W$3,AND($A91=W$3,$D91<0),0) -> 0 | Y91: 0 | Z91: =IF($A91=Y$3,AND($A91=Y$3,$D91<0),0) -> 0 | AA91: 0 | AB91: =IF($A91=AA$3,AND($A91=AA$3,$D91<0),0) -> 0 | AC91: 0 | AD91: =IF($A91=AC$3,AND($A91=AC$3,$D91<0),0) -> 0 | AE91: 0 | AF91: 0
A92: =IF(B92=0,"",MONTH(B92)) ->  | E92: =IF(D92="","",IF(D92<0,"DEBITO","CREDITO")) ->  | G92: FALSE | H92: FALSE | I92: 0 | J92: =IF($A92=I$3,AND($A92=I$3,$D92<0),0) -> 0 | K92: 0 | L92: =IF($A92=K$3,AND($A92=K$3,$D92<0),0) -> 0 | M92: 0 | N92: =IF($A92=M$3,AND($A92=M$3,$D92<0),0) -> 0 | O92: 0 | P92: =IF($A92=O$3,AND($A92=O$3,$D92<0),0) -> 0 | Q92: 0 | R92: 0 | S92: 0 | T92: 0 | U92: 0 | V92: 0 | W92: 0 | X92: =IF($A92=W$3,AND($A92=W$3,$D92<0),0) -> 0 | Y92: 0 | Z92: =IF($A92=Y$3,AND($A92=Y$3,$D92<0),0) -> 0 | AA92: 0 | AB92: =IF($A92=AA$3,AND($A92=AA$3,$D92<0),0) -> 0 | AC92: 0 | AD92: =IF($A92=AC$3,AND($A92=AC$3,$D92<0),0) -> 0 | AE92: 0 | AF92: 0
A93: =IF(B93=0,"",MONTH(B93)) ->  | E93: =IF(D93="","",IF(D93<0,"DEBITO","CREDITO")) ->  | G93: FALSE | H93: FALSE | I93: 0 | J93: =IF($A93=I$3,AND($A93=I$3,$D93<0),0) -> 0 | K93: 0 | L93: =IF($A93=K$3,AND($A93=K$3,$D93<0),0) -> 0 | M93: 0 | N93: =IF($A93=M$3,AND($A93=M$3,$D93<0),0) -> 0 | O93: 0 | P93: =IF($A93=O$3,AND($A93=O$3,$D93<0),0) -> 0 | Q93: 0 | R93: 0 | S93: 0 | T93: 0 | U93: 0 | V93: 0 | W93: 0 | X93: =IF($A93=W$3,AND($A93=W$3,$D93<0),0) -> 0 | Y93: 0 | Z93: =IF($A93=Y$3,AND($A93=Y$3,$D93<0),0) -> 0 | AA93: 0 | AB93: =IF($A93=AA$3,AND($A93=AA$3,$D93<0),0) -> 0 | AC93: 0 | AD93: =IF($A93=AC$3,AND($A93=AC$3,$D93<0),0) -> 0 | AE93: 0 | AF93: 0
A94: =IF(B94=0,"",MONTH(B94)) ->  | E94: =IF(D94="","",IF(D94<0,"DEBITO","CREDITO")) ->  | G94: FALSE | H94: FALSE | I94: 0 | J94: =IF($A94=I$3,AND($A94=I$3,$D94<0),0) -> 0 | K94: 0 | L94: =IF($A94=K$3,AND($A94=K$3,$D94<0),0) -> 0 | M94: 0 | N94: =IF($A94=M$3,AND($A94=M$3,$D94<0),0) -> 0 | O94: 0 | P94: =IF($A94=O$3,AND($A94=O$3,$D94<0),0) -> 0 | Q94: 0 | R94: 0 | S94: 0 | T94: 0 | U94: 0 | V94: 0 | W94: 0 | X94: =IF($A94=W$3,AND($A94=W$3,$D94<0),0) -> 0 | Y94: 0 | Z94: =IF($A94=Y$3,AND($A94=Y$3,$D94<0),0) -> 0 | AA94: 0 | AB94: =IF($A94=AA$3,AND($A94=AA$3,$D94<0),0) -> 0 | AC94: 0 | AD94: =IF($A94=AC$3,AND($A94=AC$3,$D94<0),0) -> 0 | AE94: 0 | AF94: 0
A95: =IF(B95=0,"",MONTH(B95)) ->  | E95: =IF(D95="","",IF(D95<0,"DEBITO","CREDITO")) ->  | G95: FALSE | H95: FALSE | I95: 0 | J95: =IF($A95=I$3,AND($A95=I$3,$D95<0),0) -> 0 | K95: 0 | L95: =IF($A95=K$3,AND($A95=K$3,$D95<0),0) -> 0 | M95: 0 | N95: =IF($A95=M$3,AND($A95=M$3,$D95<0),0) -> 0 | O95: 0 | P95: =IF($A95=O$3,AND($A95=O$3,$D95<0),0) -> 0 | Q95: 0 | R95: 0 | S95: 0 | T95: 0 | U95: 0 | V95: 0 | W95: 0 | X95: =IF($A95=W$3,AND($A95=W$3,$D95<0),0) -> 0 | Y95: 0 | Z95: =IF($A95=Y$3,AND($A95=Y$3,$D95<0),0) -> 0 | AA95: 0 | AB95: =IF($A95=AA$3,AND($A95=AA$3,$D95<0),0) -> 0 | AC95: 0 | AD95: =IF($A95=AC$3,AND($A95=AC$3,$D95<0),0) -> 0 | AE95: 0 | AF95: 0
A96: =IF(B96=0,"",MONTH(B96)) ->  | E96: =IF(D96="","",IF(D96<0,"DEBITO","CREDITO")) ->  | G96: FALSE | H96: FALSE | I96: 0 | J96: =IF($A96=I$3,AND($A96=I$3,$D96<0),0) -> 0 | K96: 0 | L96: =IF($A96=K$3,AND($A96=K$3,$D96<0),0) -> 0 | M96: 0 | N96: =IF($A96=M$3,AND($A96=M$3,$D96<0),0) -> 0 | O96: 0 | P96: =IF($A96=O$3,AND($A96=O$3,$D96<0),0) -> 0 | Q96: 0 | R96: 0 | S96: 0 | T96: 0 | U96: 0 | V96: 0 | W96: 0 | X96: =IF($A96=W$3,AND($A96=W$3,$D96<0),0) -> 0 | Y96: 0 | Z96: =IF($A96=Y$3,AND($A96=Y$3,$D96<0),0) -> 0 | AA96: 0 | AB96: =IF($A96=AA$3,AND($A96=AA$3,$D96<0),0) -> 0 | AC96: 0 | AD96: =IF($A96=AC$3,AND($A96=AC$3,$D96<0),0) -> 0 | AE96: 0 | AF96: 0
A97: =IF(B97=0,"",MONTH(B97)) ->  | E97: =IF(D97="","",IF(D97<0,"DEBITO","CREDITO")) ->  | G97: FALSE | H97: FALSE | I97: 0 | J97: =IF($A97=I$3,AND($A97=I$3,$D97<0),0) -> 0 | K97: 0 | L97: =IF($A97=K$3,AND($A97=K$3,$D97<0),0) -> 0 | M97: 0 | N97: =IF($A97=M$3,AND($A97=M$3,$D97<0),0) -> 0 | O97: 0 | P97: =IF($A97=O$3,AND($A97=O$3,$D97<0),0) -> 0 | Q97: 0 | R97: 0 | S97: 0 | T97: 0 | U97: 0 | V97: 0 | W97: 0 | X97: =IF($A97=W$3,AND($A97=W$3,$D97<0),0) -> 0 | Y97: 0 | Z97: =IF($A97=Y$3,AND($A97=Y$3,$D97<0),0) -> 0 | AA97: 0 | AB97: =IF($A97=AA$3,AND($A97=AA$3,$D97<0),0) -> 0 | AC97: 0 | AD97: =IF($A97=AC$3,AND($A97=AC$3,$D97<0),0) -> 0 | AE97: 0 | AF97: 0
A98: =IF(B98=0,"",MONTH(B98)) ->  | E98: =IF(D98="","",IF(D98<0,"DEBITO","CREDITO")) ->  | G98: FALSE | H98: FALSE | I98: 0 | J98: =IF($A98=I$3,AND($A98=I$3,$D98<0),0) -> 0 | K98: 0 | L98: =IF($A98=K$3,AND($A98=K$3,$D98<0),0) -> 0 | M98: 0 | N98: =IF($A98=M$3,AND($A98=M$3,$D98<0),0) -> 0 | O98: 0 | P98: =IF($A98=O$3,AND($A98=O$3,$D98<0),0) -> 0 | Q98: 0 | R98: 0 | S98: 0 | T98: 0 | U98: 0 | V98: 0 | W98: 0 | X98: =IF($A98=W$3,AND($A98=W$3,$D98<0),0) -> 0 | Y98: 0 | Z98: =IF($A98=Y$3,AND($A98=Y$3,$D98<0),0) -> 0 | AA98: 0 | AB98: =IF($A98=AA$3,AND($A98=AA$3,$D98<0),0) -> 0 | AC98: 0 | AD98: =IF($A98=AC$3,AND($A98=AC$3,$D98<0),0) -> 0 | AE98: 0 | AF98: 0
A99: =IF(B99=0,"",MONTH(B99)) ->  | E99: =IF(D99="","",IF(D99<0,"DEBITO","CREDITO")) ->  | G99: FALSE | H99: FALSE | I99: 0 | J99: =IF($A99=I$3,AND($A99=I$3,$D99<0),0) -> 0 | K99: 0 | L99: =IF($A99=K$3,AND($A99=K$3,$D99<0),0) -> 0 | M99: 0 | N99: =IF($A99=M$3,AND($A99=M$3,$D99<0),0) -> 0 | O99: 0 | P99: =IF($A99=O$3,AND($A99=O$3,$D99<0),0) -> 0 | Q99: 0 | R99: 0 | S99: 0 | T99: 0 | U99: 0 | V99: 0 | W99: 0 | X99: =IF($A99=W$3,AND($A99=W$3,$D99<0),0) -> 0 | Y99: 0 | Z99: =IF($A99=Y$3,AND($A99=Y$3,$D99<0),0) -> 0 | AA99: 0 | AB99: =IF($A99=AA$3,AND($A99=AA$3,$D99<0),0) -> 0 | AC99: 0 | AD99: =IF($A99=AC$3,AND($A99=AC$3,$D99<0),0) -> 0 | AE99: 0 | AF99: 0
A100: =IF(B100=0,"",MONTH(B100)) ->  | E100: =IF(D100="","",IF(D100<0,"DEBITO","CREDITO")) ->  | G100: FALSE | H100: FALSE | I100: 0 | J100: =IF($A100=I$3,AND($A100=I$3,$D100<0),0) -> 0 | K100: 0 | L100: =IF($A100=K$3,AND($A100=K$3,$D100<0),0) -> 0 | M100: 0 | N100: =IF($A100=M$3,AND($A100=M$3,$D100<0),0) -> 0 | O100: 0 | P100: =IF($A100=O$3,AND($A100=O$3,$D100<0),0) -> 0 | Q100: 0 | R100: 0 | S100: 0 | T100: 0 | U100: 0 | V100: 0 | W100: 0 | X100: =IF($A100=W$3,AND($A100=W$3,$D100<0),0) -> 0 | Y100: 0 | Z100: =IF($A100=Y$3,AND($A100=Y$3,$D100<0),0) -> 0 | AA100: 0 | AB100: =IF($A100=AA$3,AND($A100=AA$3,$D100<0),0) -> 0 | AC100: 0 | AD100: =IF($A100=AC$3,AND($A100=AC$3,$D100<0),0) -> 0 | AE100: 0 | AF100: 0
A101: =IF(B101=0,"",MONTH(B101)) ->  | E101: =IF(D101="","",IF(D101<0,"DEBITO","CREDITO")) ->  | G101: FALSE | H101: FALSE | I101: 0 | J101: =IF($A101=I$3,AND($A101=I$3,$D101<0),0) -> 0 | K101: 0 | L101: =IF($A101=K$3,AND($A101=K$3,$D101<0),0) -> 0 | M101: 0 | N101: =IF($A101=M$3,AND($A101=M$3,$D101<0),0) -> 0 | O101: 0 | P101: =IF($A101=O$3,AND($A101=O$3,$D101<0),0) -> 0 | Q101: 0 | R101: 0 | S101: 0 | T101: 0 | U101: 0 | V101: 0 | W101: 0 | X101: =IF($A101=W$3,AND($A101=W$3,$D101<0),0) -> 0 | Y101: 0 | Z101: =IF($A101=Y$3,AND($A101=Y$3,$D101<0),0) -> 0 | AA101: 0 | AB101: =IF($A101=AA$3,AND($A101=AA$3,$D101<0),0) -> 0 | AC101: 0 | AD101: =IF($A101=AC$3,AND($A101=AC$3,$D101<0),0) -> 0 | AE101: 0 | AF101: 0
A102: =IF(B102=0,"",MONTH(B102)) ->  | E102: =IF(D102="","",IF(D102<0,"DEBITO","CREDITO")) ->  | G102: FALSE | H102: FALSE | I102: 0 | J102: =IF($A102=I$3,AND($A102=I$3,$D102<0),0) -> 0 | K102: 0 | L102: =IF($A102=K$3,AND($A102=K$3,$D102<0),0) -> 0 | M102: 0 | N102: =IF($A102=M$3,AND($A102=M$3,$D102<0),0) -> 0 | O102: 0 | P102: =IF($A102=O$3,AND($A102=O$3,$D102<0),0) -> 0 | Q102: 0 | R102: 0 | S102: 0 | T102: 0 | U102: 0 | V102: 0 | W102: 0 | X102: =IF($A102=W$3,AND($A102=W$3,$D102<0),0) -> 0 | Y102: 0 | Z102: =IF($A102=Y$3,AND($A102=Y$3,$D102<0),0) -> 0 | AA102: 0 | AB102: =IF($A102=AA$3,AND($A102=AA$3,$D102<0),0) -> 0 | AC102: 0 | AD102: =IF($A102=AC$3,AND($A102=AC$3,$D102<0),0) -> 0 | AE102: 0 | AF102: 0
A103: =IF(B103=0,"",MONTH(B103)) ->  | E103: =IF(D103="","",IF(D103<0,"DEBITO","CREDITO")) ->  | G103: FALSE | H103: FALSE | I103: 0 | J103: =IF($A103=I$3,AND($A103=I$3,$D103<0),0) -> 0 | K103: 0 | L103: =IF($A103=K$3,AND($A103=K$3,$D103<0),0) -> 0 | M103: 0 | N103: =IF($A103=M$3,AND($A103=M$3,$D103<0),0) -> 0 | O103: 0 | P103: =IF($A103=O$3,AND($A103=O$3,$D103<0),0) -> 0 | Q103: 0 | R103: 0 | S103: 0 | T103: 0 | U103: 0 | V103: 0 | W103: 0 | X103: =IF($A103=W$3,AND($A103=W$3,$D103<0),0) -> 0 | Y103: 0 | Z103: =IF($A103=Y$3,AND($A103=Y$3,$D103<0),0) -> 0 | AA103: 0 | AB103: =IF($A103=AA$3,AND($A103=AA$3,$D103<0),0) -> 0 | AC103: 0 | AD103: =IF($A103=AC$3,AND($A103=AC$3,$D103<0),0) -> 0 | AE103: 0 | AF103: 0
A104: =IF(B104=0,"",MONTH(B104)) ->  | E104: =IF(D104="","",IF(D104<0,"DEBITO","CREDITO")) ->  | G104: FALSE | H104: FALSE | I104: 0 | J104: =IF($A104=I$3,AND($A104=I$3,$D104<0),0) -> 0 | K104: 0 | L104: =IF($A104=K$3,AND($A104=K$3,$D104<0),0) -> 0 | M104: 0 | N104: =IF($A104=M$3,AND($A104=M$3,$D104<0),0) -> 0 | O104: 0 | P104: =IF($A104=O$3,AND($A104=O$3,$D104<0),0) -> 0 | Q104: 0 | R104: 0 | S104: 0 | T104: 0 | U104: 0 | V104: 0 | W104: 0 | X104: =IF($A104=W$3,AND($A104=W$3,$D104<0),0) -> 0 | Y104: 0 | Z104: =IF($A104=Y$3,AND($A104=Y$3,$D104<0),0) -> 0 | AA104: 0 | AB104: =IF($A104=AA$3,AND($A104=AA$3,$D104<0),0) -> 0 | AC104: 0 | AD104: =IF($A104=AC$3,AND($A104=AC$3,$D104<0),0) -> 0 | AE104: 0 | AF104: 0
A105: =IF(B105=0,"",MONTH(B105)) ->  | E105: =IF(D105="","",IF(D105<0,"DEBITO","CREDITO")) ->  | G105: FALSE | H105: FALSE | I105: 0 | J105: =IF($A105=I$3,AND($A105=I$3,$D105<0),0) -> 0 | K105: 0 | L105: =IF($A105=K$3,AND($A105=K$3,$D105<0),0) -> 0 | M105: 0 | N105: =IF($A105=M$3,AND($A105=M$3,$D105<0),0) -> 0 | O105: 0 | P105: =IF($A105=O$3,AND($A105=O$3,$D105<0),0) -> 0 | Q105: 0 | R105: 0 | S105: 0 | T105: 0 | U105: 0 | V105: 0 | W105: 0 | X105: =IF($A105=W$3,AND($A105=W$3,$D105<0),0) -> 0 | Y105: 0 | Z105: =IF($A105=Y$3,AND($A105=Y$3,$D105<0),0) -> 0 | AA105: 0 | AB105: =IF($A105=AA$3,AND($A105=AA$3,$D105<0),0) -> 0 | AC105: 0 | AD105: =IF($A105=AC$3,AND($A105=AC$3,$D105<0),0) -> 0 | AE105: 0 | AF105: 0
A106: =IF(B106=0,"",MONTH(B106)) ->  | E106: =IF(D106="","",IF(D106<0,"DEBITO","CREDITO")) ->  | G106: FALSE | H106: FALSE | I106: 0 | J106: =IF($A106=I$3,AND($A106=I$3,$D106<0),0) -> 0 | K106: 0 | L106: =IF($A106=K$3,AND($A106=K$3,$D106<0),0) -> 0 | M106: 0 | N106: =IF($A106=M$3,AND($A106=M$3,$D106<0),0) -> 0 | O106: 0 | P106: =IF($A106=O$3,AND($A106=O$3,$D106<0),0) -> 0 | Q106: 0 | R106: 0 | S106: 0 | T106: 0 | U106: 0 | V106: 0 | W106: 0 | X106: =IF($A106=W$3,AND($A106=W$3,$D106<0),0) -> 0 | Y106: 0 | Z106: =IF($A106=Y$3,AND($A106=Y$3,$D106<0),0) -> 0 | AA106: 0 | AB106: =IF($A106=AA$3,AND($A106=AA$3,$D106<0),0) -> 0 | AC106: 0 | AD106: =IF($A106=AC$3,AND($A106=AC$3,$D106<0),0) -> 0 | AE106: 0 | AF106: 0
A107: =IF(B107=0,"",MONTH(B107)) ->  | E107: =IF(D107="","",IF(D107<0,"DEBITO","CREDITO")) ->  | G107: FALSE | H107: FALSE | I107: 0 | J107: =IF($A107=I$3,AND($A107=I$3,$D107<0),0) -> 0 | K107: 0 | L107: =IF($A107=K$3,AND($A107=K$3,$D107<0),0) -> 0 | M107: 0 | N107: =IF($A107=M$3,AND($A107=M$3,$D107<0),0) -> 0 | O107: 0 | P107: =IF($A107=O$3,AND($A107=O$3,$D107<0),0) -> 0 | Q107: 0 | R107: 0 | S107: 0 | T107: 0 | U107: 0 | V107: 0 | W107: 0 | X107: =IF($A107=W$3,AND($A107=W$3,$D107<0),0) -> 0 | Y107: 0 | Z107: =IF($A107=Y$3,AND($A107=Y$3,$D107<0),0) -> 0 | AA107: 0 | AB107: =IF($A107=AA$3,AND($A107=AA$3,$D107<0),0) -> 0 | AC107: 0 | AD107: =IF($A107=AC$3,AND($A107=AC$3,$D107<0),0) -> 0 | AE107: 0 | AF107: 0
A108: =IF(B108=0,"",MONTH(B108)) ->  | E108: =IF(D108="","",IF(D108<0,"DEBITO","CREDITO")) ->  | G108: FALSE | H108: FALSE | I108: 0 | J108: =IF($A108=I$3,AND($A108=I$3,$D108<0),0) -> 0 | K108: 0 | L108: =IF($A108=K$3,AND($A108=K$3,$D108<0),0) -> 0 | M108: 0 | N108: =IF($A108=M$3,AND($A108=M$3,$D108<0),0) -> 0 | O108: 0 | P108: =IF($A108=O$3,AND($A108=O$3,$D108<0),0) -> 0 | Q108: 0 | R108: 0 | S108: 0 | T108: 0 | U108: 0 | V108: 0 | W108: 0 | X108: =IF($A108=W$3,AND($A108=W$3,$D108<0),0) -> 0 | Y108: 0 | Z108: =IF($A108=Y$3,AND($A108=Y$3,$D108<0),0) -> 0 | AA108: 0 | AB108: =IF($A108=AA$3,AND($A108=AA$3,$D108<0),0) -> 0 | AC108: 0 | AD108: =IF($A108=AC$3,AND($A108=AC$3,$D108<0),0) -> 0 | AE108: 0 | AF108: 0
A109: =IF(B109=0,"",MONTH(B109)) ->  | E109: =IF(D109="","",IF(D109<0,"DEBITO","CREDITO")) ->  | G109: FALSE | H109: FALSE | I109: 0 | J109: =IF($A109=I$3,AND($A109=I$3,$D109<0),0) -> 0 | K109: 0 | L109: =IF($A109=K$3,AND($A109=K$3,$D109<0),0) -> 0 | M109: 0 | N109: =IF($A109=M$3,AND($A109=M$3,$D109<0),0) -> 0 | O109: 0 | P109: =IF($A109=O$3,AND($A109=O$3,$D109<0),0) -> 0 | Q109: 0 | R109: 0 | S109: 0 | T109: 0 | U109: 0 | V109: 0 | W109: 0 | X109: =IF($A109=W$3,AND($A109=W$3,$D109<0),0) -> 0 | Y109: 0 | Z109: =IF($A109=Y$3,AND($A109=Y$3,$D109<0),0) -> 0 | AA109: 0 | AB109: =IF($A109=AA$3,AND($A109=AA$3,$D109<0),0) -> 0 | AC109: 0 | AD109: =IF($A109=AC$3,AND($A109=AC$3,$D109<0),0) -> 0 | AE109: 0 | AF109: 0
A110: =IF(B110=0,"",MONTH(B110)) ->  | E110: =IF(D110="","",IF(D110<0,"DEBITO","CREDITO")) ->  | G110: FALSE | H110: FALSE | I110: 0 | J110: =IF($A110=I$3,AND($A110=I$3,$D110<0),0) -> 0 | K110: 0 | L110: =IF($A110=K$3,AND($A110=K$3,$D110<0),0) -> 0 | M110: 0 | N110: =IF($A110=M$3,AND($A110=M$3,$D110<0),0) -> 0 | O110: 0 | P110: =IF($A110=O$3,AND($A110=O$3,$D110<0),0) -> 0 | Q110: 0 | R110: 0 | S110: 0 | T110: 0 | U110: 0 | V110: 0 | W110: 0 | X110: =IF($A110=W$3,AND($A110=W$3,$D110<0),0) -> 0 | Y110: 0 | Z110: =IF($A110=Y$3,AND($A110=Y$3,$D110<0),0) -> 0 | AA110: 0 | AB110: =IF($A110=AA$3,AND($A110=AA$3,$D110<0),0) -> 0 | AC110: 0 | AD110: =IF($A110=AC$3,AND($A110=AC$3,$D110<0),0) -> 0 | AE110: 0 | AF110: 0
A111: =IF(B111=0,"",MONTH(B111)) ->  | E111: =IF(D111="","",IF(D111<0,"DEBITO","CREDITO")) ->  | G111: FALSE | H111: FALSE | I111: 0 | J111: =IF($A111=I$3,AND($A111=I$3,$D111<0),0) -> 0 | K111: 0 | L111: =IF($A111=K$3,AND($A111=K$3,$D111<0),0) -> 0 | M111: 0 | N111: =IF($A111=M$3,AND($A111=M$3,$D111<0),0) -> 0 | O111: 0 | P111: =IF($A111=O$3,AND($A111=O$3,$D111<0),0) -> 0 | Q111: 0 | R111: 0 | S111: 0 | T111: 0 | U111: 0 | V111: 0 | W111: 0 | X111: =IF($A111=W$3,AND($A111=W$3,$D111<0),0) -> 0 | Y111: 0 | Z111: =IF($A111=Y$3,AND($A111=Y$3,$D111<0),0) -> 0 | AA111: 0 | AB111: =IF($A111=AA$3,AND($A111=AA$3,$D111<0),0) -> 0 | AC111: 0 | AD111: =IF($A111=AC$3,AND($A111=AC$3,$D111<0),0) -> 0 | AE111: 0 | AF111: 0
A112: =IF(B112=0,"",MONTH(B112)) ->  | E112: =IF(D112="","",IF(D112<0,"DEBITO","CREDITO")) ->  | G112: FALSE | H112: FALSE | I112: 0 | J112: =IF($A112=I$3,AND($A112=I$3,$D112<0),0) -> 0 | K112: 0 | L112: =IF($A112=K$3,AND($A112=K$3,$D112<0),0) -> 0 | M112: 0 | N112: =IF($A112=M$3,AND($A112=M$3,$D112<0),0) -> 0 | O112: 0 | P112: =IF($A112=O$3,AND($A112=O$3,$D112<0),0) -> 0 | Q112: 0 | R112: 0 | S112: 0 | T112: 0 | U112: 0 | V112: 0 | W112: 0 | X112: =IF($A112=W$3,AND($A112=W$3,$D112<0),0) -> 0 | Y112: 0 | Z112: =IF($A112=Y$3,AND($A112=Y$3,$D112<0),0) -> 0 | AA112: 0 | AB112: =IF($A112=AA$3,AND($A112=AA$3,$D112<0),0) -> 0 | AC112: 0 | AD112: =IF($A112=AC$3,AND($A112=AC$3,$D112<0),0) -> 0 | AE112: 0 | AF112: 0
A113: =IF(B113=0,"",MONTH(B113)) ->  | E113: =IF(D113="","",IF(D113<0,"DEBITO","CREDITO")) ->  | G113: FALSE | H113: FALSE | I113: 0 | J113: =IF($A113=I$3,AND($A113=I$3,$D113<0),0) -> 0 | K113: 0 | L113: =IF($A113=K$3,AND($A113=K$3,$D113<0),0) -> 0 | M113: 0 | N113: =IF($A113=M$3,AND($A113=M$3,$D113<0),0) -> 0 | O113: 0 | P113: =IF($A113=O$3,AND($A113=O$3,$D113<0),0) -> 0 | Q113: 0 | R113: 0 | S113: 0 | T113: 0 | U113: 0 | V113: 0 | W113: 0 | X113: =IF($A113=W$3,AND($A113=W$3,$D113<0),0) -> 0 | Y113: 0 | Z113: =IF($A113=Y$3,AND($A113=Y$3,$D113<0),0) -> 0 | AA113: 0 | AB113: =IF($A113=AA$3,AND($A113=AA$3,$D113<0),0) -> 0 | AC113: 0 | AD113: =IF($A113=AC$3,AND($A113=AC$3,$D113<0),0) -> 0 | AE113: 0 | AF113: 0
A114: =IF(B114=0,"",MONTH(B114)) ->  | E114: =IF(D114="","",IF(D114<0,"DEBITO","CREDITO")) ->  | G114: FALSE | H114: FALSE | I114: 0 | J114: =IF($A114=I$3,AND($A114=I$3,$D114<0),0) -> 0 | K114: 0 | L114: =IF($A114=K$3,AND($A114=K$3,$D114<0),0) -> 0 | M114: 0 | N114: =IF($A114=M$3,AND($A114=M$3,$D114<0),0) -> 0 | O114: 0 | P114: =IF($A114=O$3,AND($A114=O$3,$D114<0),0) -> 0 | Q114: 0 | R114: 0 | S114: 0 | T114: 0 | U114: 0 | V114: 0 | W114: 0 | X114: =IF($A114=W$3,AND($A114=W$3,$D114<0),0) -> 0 | Y114: 0 | Z114: =IF($A114=Y$3,AND($A114=Y$3,$D114<0),0) -> 0 | AA114: 0 | AB114: =IF($A114=AA$3,AND($A114=AA$3,$D114<0),0) -> 0 | AC114: 0 | AD114: =IF($A114=AC$3,AND($A114=AC$3,$D114<0),0) -> 0 | AE114: 0 | AF114: 0
A115: =IF(B115=0,"",MONTH(B115)) ->  | E115: =IF(D115="","",IF(D115<0,"DEBITO","CREDITO")) ->  | G115: FALSE | H115: FALSE | I115: 0 | J115: =IF($A115=I$3,AND($A115=I$3,$D115<0),0) -> 0 | K115: 0 | L115: =IF($A115=K$3,AND($A115=K$3,$D115<0),0) -> 0 | M115: 0 | N115: =IF($A115=M$3,AND($A115=M$3,$D115<0),0) -> 0 | O115: 0 | P115: =IF($A115=O$3,AND($A115=O$3,$D115<0),0) -> 0 | Q115: 0 | R115: 0 | S115: 0 | T115: 0 | U115: 0 | V115: 0 | W115: 0 | X115: =IF($A115=W$3,AND($A115=W$3,$D115<0),0) -> 0 | Y115: 0 | Z115: =IF($A115=Y$3,AND($A115=Y$3,$D115<0),0) -> 0 | AA115: 0 | AB115: =IF($A115=AA$3,AND($A115=AA$3,$D115<0),0) -> 0 | AC115: 0 | AD115: =IF($A115=AC$3,AND($A115=AC$3,$D115<0),0) -> 0 | AE115: 0 | AF115: 0
A116: =IF(B116=0,"",MONTH(B116)) ->  | E116: =IF(D116="","",IF(D116<0,"DEBITO","CREDITO")) ->  | G116: FALSE | H116: FALSE | I116: 0 | J116: =IF($A116=I$3,AND($A116=I$3,$D116<0),0) -> 0 | K116: 0 | L116: =IF($A116=K$3,AND($A116=K$3,$D116<0),0) -> 0 | M116: 0 | N116: =IF($A116=M$3,AND($A116=M$3,$D116<0),0) -> 0 | O116: 0 | P116: =IF($A116=O$3,AND($A116=O$3,$D116<0),0) -> 0 | Q116: 0 | R116: 0 | S116: 0 | T116: 0 | U116: 0 | V116: 0 | W116: 0 | X116: =IF($A116=W$3,AND($A116=W$3,$D116<0),0) -> 0 | Y116: 0 | Z116: =IF($A116=Y$3,AND($A116=Y$3,$D116<0),0) -> 0 | AA116: 0 | AB116: =IF($A116=AA$3,AND($A116=AA$3,$D116<0),0) -> 0 | AC116: 0 | AD116: =IF($A116=AC$3,AND($A116=AC$3,$D116<0),0) -> 0 | AE116: 0 | AF116: 0
A117: =IF(B117=0,"",MONTH(B117)) ->  | E117: =IF(D117="","",IF(D117<0,"DEBITO","CREDITO")) ->  | G117: FALSE | H117: FALSE | I117: 0 | J117: =IF($A117=I$3,AND($A117=I$3,$D117<0),0) -> 0 | K117: 0 | L117: =IF($A117=K$3,AND($A117=K$3,$D117<0),0) -> 0 | M117: 0 | N117: =IF($A117=M$3,AND($A117=M$3,$D117<0),0) -> 0 | O117: 0 | P117: =IF($A117=O$3,AND($A117=O$3,$D117<0),0) -> 0 | Q117: 0 | R117: 0 | S117: 0 | T117: 0 | U117: 0 | V117: 0 | W117: 0 | X117: =IF($A117=W$3,AND($A117=W$3,$D117<0),0) -> 0 | Y117: 0 | Z117: =IF($A117=Y$3,AND($A117=Y$3,$D117<0),0) -> 0 | AA117: 0 | AB117: =IF($A117=AA$3,AND($A117=AA$3,$D117<0),0) -> 0 | AC117: 0 | AD117: =IF($A117=AC$3,AND($A117=AC$3,$D117<0),0) -> 0 | AE117: 0 | AF117: 0
A118: =IF(B118=0,"",MONTH(B118)) ->  | E118: =IF(D118="","",IF(D118<0,"DEBITO","CREDITO")) ->  | G118: FALSE | H118: FALSE | I118: 0 | J118: =IF($A118=I$3,AND($A118=I$3,$D118<0),0) -> 0 | K118: 0 | L118: =IF($A118=K$3,AND($A118=K$3,$D118<0),0) -> 0 | M118: 0 | N118: =IF($A118=M$3,AND($A118=M$3,$D118<0),0) -> 0 | O118: 0 | P118: =IF($A118=O$3,AND($A118=O$3,$D118<0),0) -> 0 | Q118: 0 | R118: 0 | S118: 0 | T118: 0 | U118: 0 | V118: 0 | W118: 0 | X118: =IF($A118=W$3,AND($A118=W$3,$D118<0),0) -> 0 | Y118: 0 | Z118: =IF($A118=Y$3,AND($A118=Y$3,$D118<0),0) -> 0 | AA118: 0 | AB118: =IF($A118=AA$3,AND($A118=AA$3,$D118<0),0) -> 0 | AC118: 0 | AD118: =IF($A118=AC$3,AND($A118=AC$3,$D118<0),0) -> 0 | AE118: 0 | AF118: 0
A119: =IF(B119=0,"",MONTH(B119)) ->  | E119: =IF(D119="","",IF(D119<0,"DEBITO","CREDITO")) ->  | G119: FALSE | H119: FALSE | I119: 0 | J119: =IF($A119=I$3,AND($A119=I$3,$D119<0),0) -> 0 | K119: 0 | L119: =IF($A119=K$3,AND($A119=K$3,$D119<0),0) -> 0 | M119: 0 | N119: =IF($A119=M$3,AND($A119=M$3,$D119<0),0) -> 0 | O119: 0 | P119: =IF($A119=O$3,AND($A119=O$3,$D119<0),0) -> 0 | Q119: 0 | R119: 0 | S119: 0 | T119: 0 | U119: 0 | V119: 0 | W119: 0 | X119: =IF($A119=W$3,AND($A119=W$3,$D119<0),0) -> 0 | Y119: 0 | Z119: =IF($A119=Y$3,AND($A119=Y$3,$D119<0),0) -> 0 | AA119: 0 | AB119: =IF($A119=AA$3,AND($A119=AA$3,$D119<0),0) -> 0 | AC119: 0 | AD119: =IF($A119=AC$3,AND($A119=AC$3,$D119<0),0) -> 0 | AE119: 0 | AF119: 0
A120: =IF(B120=0,"",MONTH(B120)) ->  | E120: =IF(D120="","",IF(D120<0,"DEBITO","CREDITO")) ->  | G120: FALSE | H120: FALSE | I120: 0 | J120: =IF($A120=I$3,AND($A120=I$3,$D120<0),0) -> 0 | K120: 0 | L120: =IF($A120=K$3,AND($A120=K$3,$D120<0),0) -> 0 | M120: 0 | N120: =IF($A120=M$3,AND($A120=M$3,$D120<0),0) -> 0 | O120: 0 | P120: =IF($A120=O$3,AND($A120=O$3,$D120<0),0) -> 0 | Q120: 0 | R120: 0 | S120: 0 | T120: 0 | U120: 0 | V120: 0 | W120: 0 | X120: =IF($A120=W$3,AND($A120=W$3,$D120<0),0) -> 0 | Y120: 0 | Z120: =IF($A120=Y$3,AND($A120=Y$3,$D120<0),0) -> 0 | AA120: 0 | AB120: =IF($A120=AA$3,AND($A120=AA$3,$D120<0),0) -> 0 | AC120: 0 | AD120: =IF($A120=AC$3,AND($A120=AC$3,$D120<0),0) -> 0 | AE120: 0 | AF120: 0
A121: =IF(B121=0,"",MONTH(B121)) ->  | E121: =IF(D121="","",IF(D121<0,"DEBITO","CREDITO")) ->  | G121: FALSE | H121: FALSE | I121: 0 | J121: =IF($A121=I$3,AND($A121=I$3,$D121<0),0) -> 0 | K121: 0 | L121: =IF($A121=K$3,AND($A121=K$3,$D121<0),0) -> 0 | M121: 0 | N121: =IF($A121=M$3,AND($A121=M$3,$D121<0),0) -> 0 | O121: 0 | P121: =IF($A121=O$3,AND($A121=O$3,$D121<0),0) -> 0 | Q121: 0 | R121: 0 | S121: 0 | T121: 0 | U121: 0 | V121: 0 | W121: 0 | X121: =IF($A121=W$3,AND($A121=W$3,$D121<0),0) -> 0 | Y121: 0 | Z121: =IF($A121=Y$3,AND($A121=Y$3,$D121<0),0) -> 0 | AA121: 0 | AB121: =IF($A121=AA$3,AND($A121=AA$3,$D121<0),0) -> 0 | AC121: 0 | AD121: =IF($A121=AC$3,AND($A121=AC$3,$D121<0),0) -> 0 | AE121: 0 | AF121: 0
A122: =IF(B122=0,"",MONTH(B122)) ->  | E122: =IF(D122="","",IF(D122<0,"DEBITO","CREDITO")) ->  | G122: FALSE | H122: FALSE | I122: 0 | J122: =IF($A122=I$3,AND($A122=I$3,$D122<0),0) -> 0 | K122: 0 | L122: =IF($A122=K$3,AND($A122=K$3,$D122<0),0) -> 0 | M122: 0 | N122: =IF($A122=M$3,AND($A122=M$3,$D122<0),0) -> 0 | O122: 0 | P122: =IF($A122=O$3,AND($A122=O$3,$D122<0),0) -> 0 | Q122: 0 | R122: 0 | S122: 0 | T122: 0 | U122: 0 | V122: 0 | W122: 0 | X122: =IF($A122=W$3,AND($A122=W$3,$D122<0),0) -> 0 | Y122: 0 | Z122: =IF($A122=Y$3,AND($A122=Y$3,$D122<0),0) -> 0 | AA122: 0 | AB122: =IF($A122=AA$3,AND($A122=AA$3,$D122<0),0) -> 0 | AC122: 0 | AD122: =IF($A122=AC$3,AND($A122=AC$3,$D122<0),0) -> 0 | AE122: 0 | AF122: 0
A123: =IF(B123=0,"",MONTH(B123)) ->  | E123: =IF(D123="","",IF(D123<0,"DEBITO","CREDITO")) ->  | G123: FALSE | H123: FALSE | I123: 0 | J123: =IF($A123=I$3,AND($A123=I$3,$D123<0),0) -> 0 | K123: 0 | L123: =IF($A123=K$3,AND($A123=K$3,$D123<0),0) -> 0 | M123: 0 | N123: =IF($A123=M$3,AND($A123=M$3,$D123<0),0) -> 0 | O123: 0 | P123: =IF($A123=O$3,AND($A123=O$3,$D123<0),0) -> 0 | Q123: 0 | R123: 0 | S123: 0 | T123: 0 | U123: 0 | V123: 0 | W123: 0 | X123: =IF($A123=W$3,AND($A123=W$3,$D123<0),0) -> 0 | Y123: 0 | Z123: =IF($A123=Y$3,AND($A123=Y$3,$D123<0),0) -> 0 | AA123: 0 | AB123: =IF($A123=AA$3,AND($A123=AA$3,$D123<0),0) -> 0 | AC123: 0 | AD123: =IF($A123=AC$3,AND($A123=AC$3,$D123<0),0) -> 0 | AE123: 0 | AF123: 0
A124: =IF(B124=0,"",MONTH(B124)) ->  | E124: =IF(D124="","",IF(D124<0,"DEBITO","CREDITO")) ->  | G124: FALSE | H124: FALSE | I124: 0 | J124: =IF($A124=I$3,AND($A124=I$3,$D124<0),0) -> 0 | K124: 0 | L124: =IF($A124=K$3,AND($A124=K$3,$D124<0),0) -> 0 | M124: 0 | N124: =IF($A124=M$3,AND($A124=M$3,$D124<0),0) -> 0 | O124: 0 | P124: =IF($A124=O$3,AND($A124=O$3,$D124<0),0) -> 0 | Q124: 0 | R124: 0 | S124: 0 | T124: 0 | U124: 0 | V124: 0 | W124: 0 | X124: =IF($A124=W$3,AND($A124=W$3,$D124<0),0) -> 0 | Y124: 0 | Z124: =IF($A124=Y$3,AND($A124=Y$3,$D124<0),0) -> 0 | AA124: 0 | AB124: =IF($A124=AA$3,AND($A124=AA$3,$D124<0),0) -> 0 | AC124: 0 | AD124: =IF($A124=AC$3,AND($A124=AC$3,$D124<0),0) -> 0 | AE124: 0 | AF124: 0
A125: =IF(B125=0,"",MONTH(B125)) ->  | E125: =IF(D125="","",IF(D125<0,"DEBITO","CREDITO")) ->  | G125: FALSE | H125: FALSE | I125: 0 | J125: =IF($A125=I$3,AND($A125=I$3,$D125<0),0) -> 0 | K125: 0 | L125: =IF($A125=K$3,AND($A125=K$3,$D125<0),0) -> 0 | M125: 0 | N125: =IF($A125=M$3,AND($A125=M$3,$D125<0),0) -> 0 | O125: 0 | P125: =IF($A125=O$3,AND($A125=O$3,$D125<0),0) -> 0 | Q125: 0 | R125: 0 | S125: 0 | T125: 0 | U125: 0 | V125: 0 | W125: 0 | X125: =IF($A125=W$3,AND($A125=W$3,$D125<0),0) -> 0 | Y125: 0 | Z125: =IF($A125=Y$3,AND($A125=Y$3,$D125<0),0) -> 0 | AA125: 0 | AB125: =IF($A125=AA$3,AND($A125=AA$3,$D125<0),0) -> 0 | AC125: 0 | AD125: =IF($A125=AC$3,AND($A125=AC$3,$D125<0),0) -> 0 | AE125: 0 | AF125: 0
A126: =IF(B126=0,"",MONTH(B126)) ->  | E126: =IF(D126="","",IF(D126<0,"DEBITO","CREDITO")) ->  | G126: FALSE | H126: FALSE | I126: 0 | J126: =IF($A126=I$3,AND($A126=I$3,$D126<0),0) -> 0 | K126: 0 | L126: =IF($A126=K$3,AND($A126=K$3,$D126<0),0) -> 0 | M126: 0 | N126: =IF($A126=M$3,AND($A126=M$3,$D126<0),0) -> 0 | O126: 0 | P126: =IF($A126=O$3,AND($A126=O$3,$D126<0),0) -> 0 | Q126: 0 | R126: 0 | S126: 0 | T126: 0 | U126: 0 | V126: 0 | W126: 0 | X126: =IF($A126=W$3,AND($A126=W$3,$D126<0),0) -> 0 | Y126: 0 | Z126: =IF($A126=Y$3,AND($A126=Y$3,$D126<0),0) -> 0 | AA126: 0 | AB126: =IF($A126=AA$3,AND($A126=AA$3,$D126<0),0) -> 0 | AC126: 0 | AD126: =IF($A126=AC$3,AND($A126=AC$3,$D126<0),0) -> 0 | AE126: 0 | AF126: 0
A127: =IF(B127=0,"",MONTH(B127)) ->  | E127: =IF(D127="","",IF(D127<0,"DEBITO","CREDITO")) ->  | G127: FALSE | H127: FALSE | I127: 0 | J127: =IF($A127=I$3,AND($A127=I$3,$D127<0),0) -> 0 | K127: 0 | L127: =IF($A127=K$3,AND($A127=K$3,$D127<0),0) -> 0 | M127: 0 | N127: =IF($A127=M$3,AND($A127=M$3,$D127<0),0) -> 0 | O127: 0 | P127: =IF($A127=O$3,AND($A127=O$3,$D127<0),0) -> 0 | Q127: 0 | R127: 0 | S127: 0 | T127: 0 | U127: 0 | V127: 0 | W127: 0 | X127: =IF($A127=W$3,AND($A127=W$3,$D127<0),0) -> 0 | Y127: 0 | Z127: =IF($A127=Y$3,AND($A127=Y$3,$D127<0),0) -> 0 | AA127: 0 | AB127: =IF($A127=AA$3,AND($A127=AA$3,$D127<0),0) -> 0 | AC127: 0 | AD127: =IF($A127=AC$3,AND($A127=AC$3,$D127<0),0) -> 0 | AE127: 0 | AF127: 0
A128: =IF(B128=0,"",MONTH(B128)) ->  | E128: =IF(D128="","",IF(D128<0,"DEBITO","CREDITO")) ->  | G128: FALSE | H128: FALSE | I128: 0 | J128: =IF($A128=I$3,AND($A128=I$3,$D128<0),0) -> 0 | K128: 0 | L128: =IF($A128=K$3,AND($A128=K$3,$D128<0),0) -> 0 | M128: 0 | N128: =IF($A128=M$3,AND($A128=M$3,$D128<0),0) -> 0 | O128: 0 | P128: =IF($A128=O$3,AND($A128=O$3,$D128<0),0) -> 0 | Q128: 0 | R128: 0 | S128: 0 | T128: 0 | U128: 0 | V128: 0 | W128: 0 | X128: =IF($A128=W$3,AND($A128=W$3,$D128<0),0) -> 0 | Y128: 0 | Z128: =IF($A128=Y$3,AND($A128=Y$3,$D128<0),0) -> 0 | AA128: 0 | AB128: =IF($A128=AA$3,AND($A128=AA$3,$D128<0),0) -> 0 | AC128: 0 | AD128: =IF($A128=AC$3,AND($A128=AC$3,$D128<0),0) -> 0 | AE128: 0 | AF128: 0
A129: =IF(B129=0,"",MONTH(B129)) ->  | E129: =IF(D129="","",IF(D129<0,"DEBITO","CREDITO")) ->  | G129: FALSE | H129: FALSE | I129: 0 | J129: =IF($A129=I$3,AND($A129=I$3,$D129<0),0) -> 0 | K129: 0 | L129: =IF($A129=K$3,AND($A129=K$3,$D129<0),0) -> 0 | M129: 0 | N129: =IF($A129=M$3,AND($A129=M$3,$D129<0),0) -> 0 | O129: 0 | P129: =IF($A129=O$3,AND($A129=O$3,$D129<0),0) -> 0 | Q129: 0 | R129: 0 | S129: 0 | T129: 0 | U129: 0 | V129: 0 | W129: 0 | X129: =IF($A129=W$3,AND($A129=W$3,$D129<0),0) -> 0 | Y129: 0 | Z129: =IF($A129=Y$3,AND($A129=Y$3,$D129<0),0) -> 0 | AA129: 0 | AB129: =IF($A129=AA$3,AND($A129=AA$3,$D129<0),0) -> 0 | AC129: 0 | AD129: =IF($A129=AC$3,AND($A129=AC$3,$D129<0),0) -> 0 | AE129: 0 | AF129: 0
A130: =IF(B130=0,"",MONTH(B130)) ->  | E130: =IF(D130="","",IF(D130<0,"DEBITO","CREDITO")) ->  | G130: FALSE | H130: FALSE | I130: 0 | J130: =IF($A130=I$3,AND($A130=I$3,$D130<0),0) -> 0 | K130: 0 | L130: =IF($A130=K$3,AND($A130=K$3,$D130<0),0) -> 0 | M130: 0 | N130: =IF($A130=M$3,AND($A130=M$3,$D130<0),0) -> 0 | O130: 0 | P130: =IF($A130=O$3,AND($A130=O$3,$D130<0),0) -> 0 | Q130: 0 | R130: 0 | S130: 0 | T130: 0 | U130: 0 | V130: 0 | W130: 0 | X130: =IF($A130=W$3,AND($A130=W$3,$D130<0),0) -> 0 | Y130: 0 | Z130: =IF($A130=Y$3,AND($A130=Y$3,$D130<0),0) -> 0 | AA130: 0 | AB130: =IF($A130=AA$3,AND($A130=AA$3,$D130<0),0) -> 0 | AC130: 0 | AD130: =IF($A130=AC$3,AND($A130=AC$3,$D130<0),0) -> 0 | AE130: 0 | AF130: 0
A131: =IF(B131=0,"",MONTH(B131)) ->  | E131: =IF(D131="","",IF(D131<0,"DEBITO","CREDITO")) ->  | G131: FALSE | H131: FALSE | I131: 0 | J131: =IF($A131=I$3,AND($A131=I$3,$D131<0),0) -> 0 | K131: 0 | L131: =IF($A131=K$3,AND($A131=K$3,$D131<0),0) -> 0 | M131: 0 | N131: =IF($A131=M$3,AND($A131=M$3,$D131<0),0) -> 0 | O131: 0 | P131: =IF($A131=O$3,AND($A131=O$3,$D131<0),0) -> 0 | Q131: 0 | R131: 0 | S131: 0 | T131: 0 | U131: 0 | V131: 0 | W131: 0 | X131: =IF($A131=W$3,AND($A131=W$3,$D131<0),0) -> 0 | Y131: 0 | Z131: =IF($A131=Y$3,AND($A131=Y$3,$D131<0),0) -> 0 | AA131: 0 | AB131: =IF($A131=AA$3,AND($A131=AA$3,$D131<0),0) -> 0 | AC131: 0 | AD131: =IF($A131=AC$3,AND($A131=AC$3,$D131<0),0) -> 0 | AE131: 0 | AF131: 0
A132: =IF(B132=0,"",MONTH(B132)) ->  | E132: =IF(D132="","",IF(D132<0,"DEBITO","CREDITO")) ->  | G132: FALSE | H132: FALSE | I132: 0 | J132: =IF($A132=I$3,AND($A132=I$3,$D132<0),0) -> 0 | K132: 0 | L132: =IF($A132=K$3,AND($A132=K$3,$D132<0),0) -> 0 | M132: 0 | N132: =IF($A132=M$3,AND($A132=M$3,$D132<0),0) -> 0 | O132: 0 | P132: =IF($A132=O$3,AND($A132=O$3,$D132<0),0) -> 0 | Q132: 0 | R132: 0 | S132: 0 | T132: 0 | U132: 0 | V132: 0 | W132: 0 | X132: =IF($A132=W$3,AND($A132=W$3,$D132<0),0) -> 0 | Y132: 0 | Z132: =IF($A132=Y$3,AND($A132=Y$3,$D132<0),0) -> 0 | AA132: 0 | AB132: =IF($A132=AA$3,AND($A132=AA$3,$D132<0),0) -> 0 | AC132: 0 | AD132: =IF($A132=AC$3,AND($A132=AC$3,$D132<0),0) -> 0 | AE132: 0 | AF132: 0
A133: =IF(B133=0,"",MONTH(B133)) ->  | E133: =IF(D133="","",IF(D133<0,"DEBITO","CREDITO")) ->  | G133: FALSE | H133: FALSE | I133: 0 | J133: =IF($A133=I$3,AND($A133=I$3,$D133<0),0) -> 0 | K133: 0 | L133: =IF($A133=K$3,AND($A133=K$3,$D133<0),0) -> 0 | M133: 0 | N133: =IF($A133=M$3,AND($A133=M$3,$D133<0),0) -> 0 | O133: 0 | P133: =IF($A133=O$3,AND($A133=O$3,$D133<0),0) -> 0 | Q133: 0 | R133: 0 | S133: 0 | T133: 0 | U133: 0 | V133: 0 | W133: 0 | X133: =IF($A133=W$3,AND($A133=W$3,$D133<0),0) -> 0 | Y133: 0 | Z133: =IF($A133=Y$3,AND($A133=Y$3,$D133<0),0) -> 0 | AA133: 0 | AB133: =IF($A133=AA$3,AND($A133=AA$3,$D133<0),0) -> 0 | AC133: 0 | AD133: =IF($A133=AC$3,AND($A133=AC$3,$D133<0),0) -> 0 | AE133: 0 | AF133: 0
A134: =IF(B134=0,"",MONTH(B134)) ->  | E134: =IF(D134="","",IF(D134<0,"DEBITO","CREDITO")) ->  | G134: FALSE | H134: FALSE | I134: 0 | J134: =IF($A134=I$3,AND($A134=I$3,$D134<0),0) -> 0 | K134: 0 | L134: =IF($A134=K$3,AND($A134=K$3,$D134<0),0) -> 0 | M134: 0 | N134: =IF($A134=M$3,AND($A134=M$3,$D134<0),0) -> 0 | O134: 0 | P134: =IF($A134=O$3,AND($A134=O$3,$D134<0),0) -> 0 | Q134: 0 | R134: 0 | S134: 0 | T134: 0 | U134: 0 | V134: 0 | W134: 0 | X134: =IF($A134=W$3,AND($A134=W$3,$D134<0),0) -> 0 | Y134: 0 | Z134: =IF($A134=Y$3,AND($A134=Y$3,$D134<0),0) -> 0 | AA134: 0 | AB134: =IF($A134=AA$3,AND($A134=AA$3,$D134<0),0) -> 0 | AC134: 0 | AD134: =IF($A134=AC$3,AND($A134=AC$3,$D134<0),0) -> 0 | AE134: 0 | AF134: 0
A135: =IF(B135=0,"",MONTH(B135)) ->  | E135: =IF(D135="","",IF(D135<0,"DEBITO","CREDITO")) ->  | G135: FALSE | H135: FALSE | I135: 0 | J135: =IF($A135=I$3,AND($A135=I$3,$D135<0),0) -> 0 | K135: 0 | L135: =IF($A135=K$3,AND($A135=K$3,$D135<0),0) -> 0 | M135: 0 | N135: =IF($A135=M$3,AND($A135=M$3,$D135<0),0) -> 0 | O135: 0 | P135: =IF($A135=O$3,AND($A135=O$3,$D135<0),0) -> 0 | Q135: 0 | R135: 0 | S135: 0 | T135: 0 | U135: 0 | V135: 0 | W135: 0 | X135: =IF($A135=W$3,AND($A135=W$3,$D135<0),0) -> 0 | Y135: 0 | Z135: =IF($A135=Y$3,AND($A135=Y$3,$D135<0),0) -> 0 | AA135: 0 | AB135: =IF($A135=AA$3,AND($A135=AA$3,$D135<0),0) -> 0 | AC135: 0 | AD135: =IF($A135=AC$3,AND($A135=AC$3,$D135<0),0) -> 0 | AE135: 0 | AF135: 0
A136: =IF(B136=0,"",MONTH(B136)) ->  | E136: =IF(D136="","",IF(D136<0,"DEBITO","CREDITO")) ->  | G136: FALSE | H136: FALSE | I136: 0 | J136: =IF($A136=I$3,AND($A136=I$3,$D136<0),0) -> 0 | K136: 0 | L136: =IF($A136=K$3,AND($A136=K$3,$D136<0),0) -> 0 | M136: 0 | N136: =IF($A136=M$3,AND($A136=M$3,$D136<0),0) -> 0 | O136: 0 | P136: =IF($A136=O$3,AND($A136=O$3,$D136<0),0) -> 0 | Q136: 0 | R136: 0 | S136: 0 | T136: 0 | U136: 0 | V136: 0 | W136: 0 | X136: =IF($A136=W$3,AND($A136=W$3,$D136<0),0) -> 0 | Y136: 0 | Z136: =IF($A136=Y$3,AND($A136=Y$3,$D136<0),0) -> 0 | AA136: 0 | AB136: =IF($A136=AA$3,AND($A136=AA$3,$D136<0),0) -> 0 | AC136: 0 | AD136: =IF($A136=AC$3,AND($A136=AC$3,$D136<0),0) -> 0 | AE136: 0 | AF136: 0
A137: =IF(B137=0,"",MONTH(B137)) ->  | E137: =IF(D137="","",IF(D137<0,"DEBITO","CREDITO")) ->  | G137: =AND(A137=$E$3,D137>0) -> FALSE | H137: =AND(A137=$E$3,D137<0) -> FALSE | I137: 0 | J137: =IF($A137=I$3,AND($A137=I$3,$D137<0),0) -> 0 | K137: 0 | L137: =IF($A137=K$3,AND($A137=K$3,$D137<0),0) -> 0 | M137: 0 | N137: =IF($A137=M$3,AND($A137=M$3,$D137<0),0) -> 0 | O137: 0 | P137: =IF($A137=O$3,AND($A137=O$3,$D137<0),0) -> 0 | Q137: 0 | R137: =IF($A137=Q$3,AND($A137=Q$3,$D137<0),0) -> 0 | S137: 0 | T137: 0 | U137: 0 | V137: 0 | W137: 0 | X137: =IF($A137=W$3,AND($A137=W$3,$D137<0),0) -> 0 | Y137: 0 | Z137: =IF($A137=Y$3,AND($A137=Y$3,$D137<0),0) -> 0 | AA137: 0 | AB137: =IF($A137=AA$3,AND($A137=AA$3,$D137<0),0) -> 0 | AC137: 0 | AD137: =IF($A137=AC$3,AND($A137=AC$3,$D137<0),0) -> 0 | AE137: 0 | AF137: =IF($A137=AE$3,AND($A137=AE$3,$D137<0),0) -> 0
A138: =IF(B138=0,"",MONTH(B138)) ->  | E138: =IF(D138="","",IF(D138<0,"DEBITO","CREDITO")) ->  | G138: FALSE | H138: FALSE | I138: 0 | J138: =IF($A138=I$3,AND($A138=I$3,$D138<0),0) -> 0 | K138: 0 | L138: =IF($A138=K$3,AND($A138=K$3,$D138<0),0) -> 0 | M138: 0 | N138: =IF($A138=M$3,AND($A138=M$3,$D138<0),0) -> 0 | O138: 0 | P138: =IF($A138=O$3,AND($A138=O$3,$D138<0),0) -> 0 | Q138: 0 | R138: 0 | S138: =IF($A138=S$3,AND($A138=S$3,$D138>0),0) -> 0 | T138: =IF($A138=S$3,AND($A138=S$3,$D138<0),0) -> 0 | U138: =IF($A138=U$3,AND($A138=U$3,$D138>0),0) -> 0 | V138: =IF($A138=U$3,AND($A138=U$3,$D138<0),0) -> 0 | W138: 0 | X138: =IF($A138=W$3,AND($A138=W$3,$D138<0),0) -> 0 | Y138: 0 | Z138: =IF($A138=Y$3,AND($A138=Y$3,$D138<0),0) -> 0 | AA138: 0 | AB138: =IF($A138=AA$3,AND($A138=AA$3,$D138<0),0) -> 0 | AC138: 0 | AD138: =IF($A138=AC$3,AND($A138=AC$3,$D138<0),0) -> 0 | AE138: 0 | AF138: 0
A139: =IF(B139=0,"",MONTH(B139)) ->  | E139: =IF(D139="","",IF(D139<0,"DEBITO","CREDITO")) ->  | G139: FALSE | H139: FALSE | I139: 0 | J139: =IF($A139=I$3,AND($A139=I$3,$D139<0),0) -> 0 | K139: 0 | L139: =IF($A139=K$3,AND($A139=K$3,$D139<0),0) -> 0 | M139: 0 | N139: =IF($A139=M$3,AND($A139=M$3,$D139<0),0) -> 0 | O139: 0 | P139: =IF($A139=O$3,AND($A139=O$3,$D139<0),0) -> 0 | Q139: 0 | R139: 0 | S139: 0 | T139: 0 | U139: 0 | V139: 0 | W139: 0 | X139: =IF($A139=W$3,AND($A139=W$3,$D139<0),0) -> 0 | Y139: 0 | Z139: =IF($A139=Y$3,AND($A139=Y$3,$D139<0),0) -> 0 | AA139: 0 | AB139: =IF($A139=AA$3,AND($A139=AA$3,$D139<0),0) -> 0 | AC139: 0 | AD139: =IF($A139=AC$3,AND($A139=AC$3,$D139<0),0) -> 0 | AE139: 0 | AF139: 0
A140: =IF(B140=0,"",MONTH(B140)) ->  | E140: =IF(D140="","",IF(D140<0,"DEBITO","CREDITO")) ->  | G140: FALSE | H140: FALSE | I140: 0 | J140: =IF($A140=I$3,AND($A140=I$3,$D140<0),0) -> 0 | K140: 0 | L140: =IF($A140=K$3,AND($A140=K$3,$D140<0),0) -> 0 | M140: 0 | N140: =IF($A140=M$3,AND($A140=M$3,$D140<0),0) -> 0 | O140: 0 | P140: =IF($A140=O$3,AND($A140=O$3,$D140<0),0) -> 0 | Q140: 0 | R140: 0 | S140: 0 | T140: 0 | U140: 0 | V140: 0 | W140: 0 | X140: =IF($A140=W$3,AND($A140=W$3,$D140<0),0) -> 0 | Y140: 0 | Z140: =IF($A140=Y$3,AND($A140=Y$3,$D140<0),0) -> 0 | AA140: 0 | AB140: =IF($A140=AA$3,AND($A140=AA$3,$D140<0),0) -> 0 | AC140: 0 | AD140: =IF($A140=AC$3,AND($A140=AC$3,$D140<0),0) -> 0 | AE140: 0 | AF140: 0
A141: =IF(B141=0,"",MONTH(B141)) ->  | E141: =IF(D141="","",IF(D141<0,"DEBITO","CREDITO")) ->  | G141: FALSE | H141: FALSE | I141: 0 | J141: =IF($A141=I$3,AND($A141=I$3,$D141<0),0) -> 0 | K141: 0 | L141: =IF($A141=K$3,AND($A141=K$3,$D141<0),0) -> 0 | M141: 0 | N141: =IF($A141=M$3,AND($A141=M$3,$D141<0),0) -> 0 | O141: 0 | P141: =IF($A141=O$3,AND($A141=O$3,$D141<0),0) -> 0 | Q141: 0 | R141: 0 | S141: 0 | T141: 0 | U141: 0 | V141: 0 | W141: 0 | X141: =IF($A141=W$3,AND($A141=W$3,$D141<0),0) -> 0 | Y141: 0 | Z141: =IF($A141=Y$3,AND($A141=Y$3,$D141<0),0) -> 0 | AA141: 0 | AB141: =IF($A141=AA$3,AND($A141=AA$3,$D141<0),0) -> 0 | AC141: 0 | AD141: =IF($A141=AC$3,AND($A141=AC$3,$D141<0),0) -> 0 | AE141: 0 | AF141: 0
A142: =IF(B142=0,"",MONTH(B142)) ->  | E142: =IF(D142="","",IF(D142<0,"DEBITO","CREDITO")) ->  | G142: FALSE | H142: FALSE | I142: 0 | J142: =IF($A142=I$3,AND($A142=I$3,$D142<0),0) -> 0 | K142: 0 | L142: =IF($A142=K$3,AND($A142=K$3,$D142<0),0) -> 0 | M142: 0 | N142: =IF($A142=M$3,AND($A142=M$3,$D142<0),0) -> 0 | O142: 0 | P142: =IF($A142=O$3,AND($A142=O$3,$D142<0),0) -> 0 | Q142: 0 | R142: 0 | S142: 0 | T142: 0 | U142: 0 | V142: 0 | W142: 0 | X142: =IF($A142=W$3,AND($A142=W$3,$D142<0),0) -> 0 | Y142: 0 | Z142: =IF($A142=Y$3,AND($A142=Y$3,$D142<0),0) -> 0 | AA142: 0 | AB142: =IF($A142=AA$3,AND($A142=AA$3,$D142<0),0) -> 0 | AC142: 0 | AD142: =IF($A142=AC$3,AND($A142=AC$3,$D142<0),0) -> 0 | AE142: 0 | AF142: 0
A143: =IF(B143=0,"",MONTH(B143)) ->  | E143: =IF(D143="","",IF(D143<0,"DEBITO","CREDITO")) ->  | G143: FALSE | H143: FALSE | I143: 0 | J143: =IF($A143=I$3,AND($A143=I$3,$D143<0),0) -> 0 | K143: 0 | L143: =IF($A143=K$3,AND($A143=K$3,$D143<0),0) -> 0 | M143: 0 | N143: =IF($A143=M$3,AND($A143=M$3,$D143<0),0) -> 0 | O143: 0 | P143: =IF($A143=O$3,AND($A143=O$3,$D143<0),0) -> 0 | Q143: 0 | R143: 0 | S143: 0 | T143: 0 | U143: 0 | V143: 0 | W143: 0 | X143: =IF($A143=W$3,AND($A143=W$3,$D143<0),0) -> 0 | Y143: 0 | Z143: =IF($A143=Y$3,AND($A143=Y$3,$D143<0),0) -> 0 | AA143: 0 | AB143: =IF($A143=AA$3,AND($A143=AA$3,$D143<0),0) -> 0 | AC143: 0 | AD143: =IF($A143=AC$3,AND($A143=AC$3,$D143<0),0) -> 0 | AE143: 0 | AF143: 0
A144: =IF(B144=0,"",MONTH(B144)) ->  | E144: =IF(D144="","",IF(D144<0,"DEBITO","CREDITO")) ->  | G144: FALSE | H144: FALSE | I144: 0 | J144: =IF($A144=I$3,AND($A144=I$3,$D144<0),0) -> 0 | K144: 0 | L144: =IF($A144=K$3,AND($A144=K$3,$D144<0),0) -> 0 | M144: 0 | N144: =IF($A144=M$3,AND($A144=M$3,$D144<0),0) -> 0 | O144: 0 | P144: =IF($A144=O$3,AND($A144=O$3,$D144<0),0) -> 0 | Q144: 0 | R144: 0 | S144: 0 | T144: 0 | U144: 0 | V144: 0 | W144: 0 | X144: =IF($A144=W$3,AND($A144=W$3,$D144<0),0) -> 0 | Y144: 0 | Z144: =IF($A144=Y$3,AND($A144=Y$3,$D144<0),0) -> 0 | AA144: 0 | AB144: =IF($A144=AA$3,AND($A144=AA$3,$D144<0),0) -> 0 | AC144: 0 | AD144: =IF($A144=AC$3,AND($A144=AC$3,$D144<0),0) -> 0 | AE144: 0 | AF144: 0
A145: =IF(B145=0,"",MONTH(B145)) ->  | E145: =IF(D145="","",IF(D145<0,"DEBITO","CREDITO")) ->  | G145: FALSE | H145: FALSE | I145: 0 | J145: =IF($A145=I$3,AND($A145=I$3,$D145<0),0) -> 0 | K145: 0 | L145: =IF($A145=K$3,AND($A145=K$3,$D145<0),0) -> 0 | M145: 0 | N145: =IF($A145=M$3,AND($A145=M$3,$D145<0),0) -> 0 | O145: 0 | P145: =IF($A145=O$3,AND($A145=O$3,$D145<0),0) -> 0 | Q145: 0 | R145: 0 | S145: 0 | T145: 0 | U145: 0 | V145: 0 | W145: 0 | X145: =IF($A145=W$3,AND($A145=W$3,$D145<0),0) -> 0 | Y145: 0 | Z145: =IF($A145=Y$3,AND($A145=Y$3,$D145<0),0) -> 0 | AA145: 0 | AB145: =IF($A145=AA$3,AND($A145=AA$3,$D145<0),0) -> 0 | AC145: 0 | AD145: =IF($A145=AC$3,AND($A145=AC$3,$D145<0),0) -> 0 | AE145: 0 | AF145: 0
A146: =IF(B146=0,"",MONTH(B146)) ->  | E146: =IF(D146="","",IF(D146<0,"DEBITO","CREDITO")) ->  | G146: FALSE | H146: FALSE | I146: 0 | J146: =IF($A146=I$3,AND($A146=I$3,$D146<0),0) -> 0 | K146: 0 | L146: =IF($A146=K$3,AND($A146=K$3,$D146<0),0) -> 0 | M146: 0 | N146: =IF($A146=M$3,AND($A146=M$3,$D146<0),0) -> 0 | O146: 0 | P146: =IF($A146=O$3,AND($A146=O$3,$D146<0),0) -> 0 | Q146: 0 | R146: 0 | S146: 0 | T146: 0 | U146: 0 | V146: 0 | W146: 0 | X146: =IF($A146=W$3,AND($A146=W$3,$D146<0),0) -> 0 | Y146: 0 | Z146: =IF($A146=Y$3,AND($A146=Y$3,$D146<0),0) -> 0 | AA146: 0 | AB146: =IF($A146=AA$3,AND($A146=AA$3,$D146<0),0) -> 0 | AC146: 0 | AD146: =IF($A146=AC$3,AND($A146=AC$3,$D146<0),0) -> 0 | AE146: 0 | AF146: 0
A147: =IF(B147=0,"",MONTH(B147)) ->  | E147: =IF(D147="","",IF(D147<0,"DEBITO","CREDITO")) ->  | G147: FALSE | H147: FALSE | I147: 0 | J147: =IF($A147=I$3,AND($A147=I$3,$D147<0),0) -> 0 | K147: 0 | L147: =IF($A147=K$3,AND($A147=K$3,$D147<0),0) -> 0 | M147: 0 | N147: =IF($A147=M$3,AND($A147=M$3,$D147<0),0) -> 0 | O147: 0 | P147: =IF($A147=O$3,AND($A147=O$3,$D147<0),0) -> 0 | Q147: 0 | R147: 0 | S147: 0 | T147: 0 | U147: 0 | V147: 0 | W147: 0 | X147: =IF($A147=W$3,AND($A147=W$3,$D147<0),0) -> 0 | Y147: 0 | Z147: =IF($A147=Y$3,AND($A147=Y$3,$D147<0),0) -> 0 | AA147: 0 | AB147: =IF($A147=AA$3,AND($A147=AA$3,$D147<0),0) -> 0 | AC147: 0 | AD147: =IF($A147=AC$3,AND($A147=AC$3,$D147<0),0) -> 0 | AE147: 0 | AF147: 0
A148: =IF(B148=0,"",MONTH(B148)) ->  | E148: =IF(D148="","",IF(D148<0,"DEBITO","CREDITO")) ->  | G148: FALSE | H148: FALSE | I148: 0 | J148: =IF($A148=I$3,AND($A148=I$3,$D148<0),0) -> 0 | K148: 0 | L148: =IF($A148=K$3,AND($A148=K$3,$D148<0),0) -> 0 | M148: 0 | N148: =IF($A148=M$3,AND($A148=M$3,$D148<0),0) -> 0 | O148: 0 | P148: =IF($A148=O$3,AND($A148=O$3,$D148<0),0) -> 0 | Q148: 0 | R148: 0 | S148: 0 | T148: 0 | U148: 0 | V148: 0 | W148: 0 | X148: =IF($A148=W$3,AND($A148=W$3,$D148<0),0) -> 0 | Y148: 0 | Z148: =IF($A148=Y$3,AND($A148=Y$3,$D148<0),0) -> 0 | AA148: 0 | AB148: =IF($A148=AA$3,AND($A148=AA$3,$D148<0),0) -> 0 | AC148: 0 | AD148: =IF($A148=AC$3,AND($A148=AC$3,$D148<0),0) -> 0 | AE148: 0 | AF148: 0
A149: =IF(B149=0,"",MONTH(B149)) ->  | E149: =IF(D149="","",IF(D149<0,"DEBITO","CREDITO")) ->  | G149: FALSE | H149: FALSE | I149: 0 | J149: =IF($A149=I$3,AND($A149=I$3,$D149<0),0) -> 0 | K149: 0 | L149: =IF($A149=K$3,AND($A149=K$3,$D149<0),0) -> 0 | M149: 0 | N149: =IF($A149=M$3,AND($A149=M$3,$D149<0),0) -> 0 | O149: 0 | P149: =IF($A149=O$3,AND($A149=O$3,$D149<0),0) -> 0 | Q149: 0 | R149: 0 | S149: 0 | T149: 0 | U149: 0 | V149: 0 | W149: 0 | X149: =IF($A149=W$3,AND($A149=W$3,$D149<0),0) -> 0 | Y149: 0 | Z149: =IF($A149=Y$3,AND($A149=Y$3,$D149<0),0) -> 0 | AA149: 0 | AB149: =IF($A149=AA$3,AND($A149=AA$3,$D149<0),0) -> 0 | AC149: 0 | AD149: =IF($A149=AC$3,AND($A149=AC$3,$D149<0),0) -> 0 | AE149: 0 | AF149: 0
A150: =IF(B150=0,"",MONTH(B150)) ->  | E150: =IF(D150="","",IF(D150<0,"DEBITO","CREDITO")) ->  | G150: FALSE | H150: FALSE | I150: 0 | J150: =IF($A150=I$3,AND($A150=I$3,$D150<0),0) -> 0 | K150: 0 | L150: =IF($A150=K$3,AND($A150=K$3,$D150<0),0) -> 0 | M150: 0 | N150: =IF($A150=M$3,AND($A150=M$3,$D150<0),0) -> 0 | O150: 0 | P150: =IF($A150=O$3,AND($A150=O$3,$D150<0),0) -> 0 | Q150: 0 | R150: 0 | S150: 0 | T150: 0 | U150: 0 | V150: 0 | W150: 0 | X150: =IF($A150=W$3,AND($A150=W$3,$D150<0),0) -> 0 | Y150: 0 | Z150: =IF($A150=Y$3,AND($A150=Y$3,$D150<0),0) -> 0 | AA150: 0 | AB150: =IF($A150=AA$3,AND($A150=AA$3,$D150<0),0) -> 0 | AC150: 0 | AD150: =IF($A150=AC$3,AND($A150=AC$3,$D150<0),0) -> 0 | AE150: 0 | AF150: 0
A151: =IF(B151=0,"",MONTH(B151)) ->  | E151: =IF(D151="","",IF(D151<0,"DEBITO","CREDITO")) ->  | G151: FALSE | H151: FALSE | I151: 0 | J151: =IF($A151=I$3,AND($A151=I$3,$D151<0),0) -> 0 | K151: 0 | L151: =IF($A151=K$3,AND($A151=K$3,$D151<0),0) -> 0 | M151: 0 | N151: =IF($A151=M$3,AND($A151=M$3,$D151<0),0) -> 0 | O151: 0 | P151: =IF($A151=O$3,AND($A151=O$3,$D151<0),0) -> 0 | Q151: 0 | R151: 0 | S151: 0 | T151: 0 | U151: 0 | V151: 0 | W151: 0 | X151: =IF($A151=W$3,AND($A151=W$3,$D151<0),0) -> 0 | Y151: 0 | Z151: =IF($A151=Y$3,AND($A151=Y$3,$D151<0),0) -> 0 | AA151: 0 | AB151: =IF($A151=AA$3,AND($A151=AA$3,$D151<0),0) -> 0 | AC151: 0 | AD151: =IF($A151=AC$3,AND($A151=AC$3,$D151<0),0) -> 0 | AE151: 0 | AF151: 0
A152: =IF(B152=0,"",MONTH(B152)) ->  | E152: =IF(D152="","",IF(D152<0,"DEBITO","CREDITO")) ->  | G152: FALSE | H152: FALSE | I152: 0 | J152: =IF($A152=I$3,AND($A152=I$3,$D152<0),0) -> 0 | K152: 0 | L152: =IF($A152=K$3,AND($A152=K$3,$D152<0),0) -> 0 | M152: 0 | N152: =IF($A152=M$3,AND($A152=M$3,$D152<0),0) -> 0 | O152: 0 | P152: =IF($A152=O$3,AND($A152=O$3,$D152<0),0) -> 0 | Q152: 0 | R152: 0 | S152: 0 | T152: 0 | U152: 0 | V152: 0 | W152: 0 | X152: =IF($A152=W$3,AND($A152=W$3,$D152<0),0) -> 0 | Y152: 0 | Z152: =IF($A152=Y$3,AND($A152=Y$3,$D152<0),0) -> 0 | AA152: 0 | AB152: =IF($A152=AA$3,AND($A152=AA$3,$D152<0),0) -> 0 | AC152: 0 | AD152: =IF($A152=AC$3,AND($A152=AC$3,$D152<0),0) -> 0 | AE152: 0 | AF152: 0
A153: =IF(B153=0,"",MONTH(B153)) ->  | E153: =IF(D153="","",IF(D153<0,"DEBITO","CREDITO")) ->  | G153: FALSE | H153: FALSE | I153: =IF($A153=I$3,AND($A153=I$3,$D153>0),0) -> 0 | J153: =IF($A153=I$3,AND($A153=I$3,$D153<0),0) -> 0 | K153: =IF($A153=K$3,AND($A153=K$3,$D153>0),0) -> 0 | L153: =IF($A153=K$3,AND($A153=K$3,$D153<0),0) -> 0 | M153: =IF($A153=M$3,AND($A153=M$3,$D153>0),0) -> 0 | N153: =IF($A153=M$3,AND($A153=M$3,$D153<0),0) -> 0 | O153: =IF($A153=O$3,AND($A153=O$3,$D153>0),0) -> 0 | P153: =IF($A153=O$3,AND($A153=O$3,$D153<0),0) -> 0 | Q153: =IF($A153=Q$3,AND($A153=Q$3,$D153>0),0) -> 0 | R153: 0 | S153: 0 | T153: 0 | U153: 0 | V153: 0 | W153: =IF($A153=W$3,AND($A153=W$3,$D153>0),0) -> 0 | X153: =IF($A153=W$3,AND($A153=W$3,$D153<0),0) -> 0 | Y153: =IF($A153=Y$3,AND($A153=Y$3,$D153>0),0) -> 0 | Z153: =IF($A153=Y$3,AND($A153=Y$3,$D153<0),0) -> 0 | AA153: =IF($A153=AA$3,AND($A153=AA$3,$D153>0),0) -> 0 | AB153: =IF($A153=AA$3,AND($A153=AA$3,$D153<0),0) -> 0 | AC153: =IF($A153=AC$3,AND($A153=AC$3,$D153>0),0) -> 0 | AD153: =IF($A153=AC$3,AND($A153=AC$3,$D153<0),0) -> 0 | AE153: =IF($A153=AE$3,AND($A153=AE$3,$D153>0),0) -> 0 | AF153: 0
A154: =IF(B154=0,"",MONTH(B154)) ->  | E154: =IF(D154="","",IF(D154<0,"DEBITO","CREDITO")) ->  | G154: FALSE | H154: FALSE | I154: 0 | J154: =IF($A154=I$3,AND($A154=I$3,$D154<0),0) -> 0 | K154: 0 | L154: =IF($A154=K$3,AND($A154=K$3,$D154<0),0) -> 0 | M154: 0 | N154: =IF($A154=M$3,AND($A154=M$3,$D154<0),0) -> 0 | O154: 0 | P154: =IF($A154=O$3,AND($A154=O$3,$D154<0),0) -> 0 | Q154: 0 | R154: 0 | S154: 0 | T154: 0 | U154: 0 | V154: 0 | W154: 0 | X154: =IF($A154=W$3,AND($A154=W$3,$D154<0),0) -> 0 | Y154: 0 | Z154: =IF($A154=Y$3,AND($A154=Y$3,$D154<0),0) -> 0 | AA154: 0 | AB154: =IF($A154=AA$3,AND($A154=AA$3,$D154<0),0) -> 0 | AC154: 0 | AD154: =IF($A154=AC$3,AND($A154=AC$3,$D154<0),0) -> 0 | AE154: 0 | AF154: 0
A155: =IF(B155=0,"",MONTH(B155)) ->  | E155: =IF(D155="","",IF(D155<0,"DEBITO","CREDITO")) ->  | G155: FALSE | H155: FALSE | I155: 0 | J155: =IF($A155=I$3,AND($A155=I$3,$D155<0),0) -> 0 | K155: 0 | L155: =IF($A155=K$3,AND($A155=K$3,$D155<0),0) -> 0 | M155: 0 | N155: =IF($A155=M$3,AND($A155=M$3,$D155<0),0) -> 0 | O155: 0 | P155: =IF($A155=O$3,AND($A155=O$3,$D155<0),0) -> 0 | Q155: 0 | R155: 0 | S155: 0 | T155: 0 | U155: 0 | V155: 0 | W155: 0 | X155: =IF($A155=W$3,AND($A155=W$3,$D155<0),0) -> 0 | Y155: 0 | Z155: =IF($A155=Y$3,AND($A155=Y$3,$D155<0),0) -> 0 | AA155: 0 | AB155: =IF($A155=AA$3,AND($A155=AA$3,$D155<0),0) -> 0 | AC155: 0 | AD155: =IF($A155=AC$3,AND($A155=AC$3,$D155<0),0) -> 0 | AE155: 0 | AF155: 0
A156: =IF(B156=0,"",MONTH(B156)) ->  | E156: =IF(D156="","",IF(D156<0,"DEBITO","CREDITO")) ->  | G156: FALSE | H156: FALSE | I156: 0 | J156: =IF($A156=I$3,AND($A156=I$3,$D156<0),0) -> 0 | K156: 0 | L156: =IF($A156=K$3,AND($A156=K$3,$D156<0),0) -> 0 | M156: 0 | N156: =IF($A156=M$3,AND($A156=M$3,$D156<0),0) -> 0 | O156: 0 | P156: =IF($A156=O$3,AND($A156=O$3,$D156<0),0) -> 0 | Q156: 0 | R156: 0 | S156: 0 | T156: 0 | U156: 0 | V156: 0 | W156: 0 | X156: =IF($A156=W$3,AND($A156=W$3,$D156<0),0) -> 0 | Y156: 0 | Z156: =IF($A156=Y$3,AND($A156=Y$3,$D156<0),0) -> 0 | AA156: 0 | AB156: =IF($A156=AA$3,AND($A156=AA$3,$D156<0),0) -> 0 | AC156: 0 | AD156: =IF($A156=AC$3,AND($A156=AC$3,$D156<0),0) -> 0 | AE156: 0 | AF156: 0
A157: =IF(B157=0,"",MONTH(B157)) ->  | E157: =IF(D157="","",IF(D157<0,"DEBITO","CREDITO")) ->  | G157: FALSE | H157: FALSE | I157: 0 | J157: =IF($A157=I$3,AND($A157=I$3,$D157<0),0) -> 0 | K157: 0 | L157: =IF($A157=K$3,AND($A157=K$3,$D157<0),0) -> 0 | M157: 0 | N157: =IF($A157=M$3,AND($A157=M$3,$D157<0),0) -> 0 | O157: 0 | P157: =IF($A157=O$3,AND($A157=O$3,$D157<0),0) -> 0 | Q157: 0 | R157: 0 | S157: 0 | T157: 0 | U157: 0 | V157: 0 | W157: 0 | X157: =IF($A157=W$3,AND($A157=W$3,$D157<0),0) -> 0 | Y157: 0 | Z157: =IF($A157=Y$3,AND($A157=Y$3,$D157<0),0) -> 0 | AA157: 0 | AB157: =IF($A157=AA$3,AND($A157=AA$3,$D157<0),0) -> 0 | AC157: 0 | AD157: =IF($A157=AC$3,AND($A157=AC$3,$D157<0),0) -> 0 | AE157: 0 | AF157: 0
A158: =IF(B158=0,"",MONTH(B158)) ->  | E158: =IF(D158="","",IF(D158<0,"DEBITO","CREDITO")) ->  | G158: FALSE | H158: FALSE | I158: 0 | J158: =IF($A158=I$3,AND($A158=I$3,$D158<0),0) -> 0 | K158: 0 | L158: =IF($A158=K$3,AND($A158=K$3,$D158<0),0) -> 0 | M158: 0 | N158: =IF($A158=M$3,AND($A158=M$3,$D158<0),0) -> 0 | O158: 0 | P158: =IF($A158=O$3,AND($A158=O$3,$D158<0),0) -> 0 | Q158: 0 | R158: 0 | S158: 0 | T158: 0 | U158: 0 | V158: 0 | W158: 0 | X158: =IF($A158=W$3,AND($A158=W$3,$D158<0),0) -> 0 | Y158: 0 | Z158: =IF($A158=Y$3,AND($A158=Y$3,$D158<0),0) -> 0 | AA158: 0 | AB158: =IF($A158=AA$3,AND($A158=AA$3,$D158<0),0) -> 0 | AC158: 0 | AD158: =IF($A158=AC$3,AND($A158=AC$3,$D158<0),0) -> 0 | AE158: 0 | AF158: 0
A159: =IF(B159=0,"",MONTH(B159)) ->  | E159: =IF(D159="","",IF(D159<0,"DEBITO","CREDITO")) ->  | G159: FALSE | H159: FALSE | I159: 0 | J159: =IF($A159=I$3,AND($A159=I$3,$D159<0),0) -> 0 | K159: 0 | L159: =IF($A159=K$3,AND($A159=K$3,$D159<0),0) -> 0 | M159: 0 | N159: =IF($A159=M$3,AND($A159=M$3,$D159<0),0) -> 0 | O159: 0 | P159: =IF($A159=O$3,AND($A159=O$3,$D159<0),0) -> 0 | Q159: 0 | R159: 0 | S159: 0 | T159: 0 | U159: 0 | V159: 0 | W159: 0 | X159: =IF($A159=W$3,AND($A159=W$3,$D159<0),0) -> 0 | Y159: 0 | Z159: =IF($A159=Y$3,AND($A159=Y$3,$D159<0),0) -> 0 | AA159: 0 | AB159: =IF($A159=AA$3,AND($A159=AA$3,$D159<0),0) -> 0 | AC159: 0 | AD159: =IF($A159=AC$3,AND($A159=AC$3,$D159<0),0) -> 0 | AE159: 0 | AF159: 0
A160: =IF(B160=0,"",MONTH(B160)) ->  | E160: =IF(D160="","",IF(D160<0,"DEBITO","CREDITO")) ->  | G160: FALSE | H160: FALSE | I160: 0 | J160: =IF($A160=I$3,AND($A160=I$3,$D160<0),0) -> 0 | K160: 0 | L160: =IF($A160=K$3,AND($A160=K$3,$D160<0),0) -> 0 | M160: 0 | N160: =IF($A160=M$3,AND($A160=M$3,$D160<0),0) -> 0 | O160: 0 | P160: =IF($A160=O$3,AND($A160=O$3,$D160<0),0) -> 0 | Q160: 0 | R160: 0 | S160: 0 | T160: 0 | U160: 0 | V160: 0 | W160: 0 | X160: =IF($A160=W$3,AND($A160=W$3,$D160<0),0) -> 0 | Y160: 0 | Z160: =IF($A160=Y$3,AND($A160=Y$3,$D160<0),0) -> 0 | AA160: 0 | AB160: =IF($A160=AA$3,AND($A160=AA$3,$D160<0),0) -> 0 | AC160: 0 | AD160: =IF($A160=AC$3,AND($A160=AC$3,$D160<0),0) -> 0 | AE160: 0 | AF160: 0
A161: =IF(B161=0,"",MONTH(B161)) ->  | E161: =IF(D161="","",IF(D161<0,"DEBITO","CREDITO")) ->  | G161: FALSE | H161: FALSE | I161: 0 | J161: =IF($A161=I$3,AND($A161=I$3,$D161<0),0) -> 0 | K161: 0 | L161: =IF($A161=K$3,AND($A161=K$3,$D161<0),0) -> 0 | M161: 0 | N161: =IF($A161=M$3,AND($A161=M$3,$D161<0),0) -> 0 | O161: 0 | P161: =IF($A161=O$3,AND($A161=O$3,$D161<0),0) -> 0 | Q161: 0 | R161: 0 | S161: 0 | T161: 0 | U161: 0 | V161: 0 | W161: 0 | X161: =IF($A161=W$3,AND($A161=W$3,$D161<0),0) -> 0 | Y161: 0 | Z161: =IF($A161=Y$3,AND($A161=Y$3,$D161<0),0) -> 0 | AA161: 0 | AB161: =IF($A161=AA$3,AND($A161=AA$3,$D161<0),0) -> 0 | AC161: 0 | AD161: =IF($A161=AC$3,AND($A161=AC$3,$D161<0),0) -> 0 | AE161: 0 | AF161: 0
A162: =IF(B162=0,"",MONTH(B162)) ->  | E162: =IF(D162="","",IF(D162<0,"DEBITO","CREDITO")) ->  | G162: FALSE | H162: FALSE | I162: 0 | J162: =IF($A162=I$3,AND($A162=I$3,$D162<0),0) -> 0 | K162: 0 | L162: =IF($A162=K$3,AND($A162=K$3,$D162<0),0) -> 0 | M162: 0 | N162: =IF($A162=M$3,AND($A162=M$3,$D162<0),0) -> 0 | O162: 0 | P162: =IF($A162=O$3,AND($A162=O$3,$D162<0),0) -> 0 | Q162: 0 | R162: 0 | S162: 0 | T162: 0 | U162: 0 | V162: 0 | W162: 0 | X162: =IF($A162=W$3,AND($A162=W$3,$D162<0),0) -> 0 | Y162: 0 | Z162: =IF($A162=Y$3,AND($A162=Y$3,$D162<0),0) -> 0 | AA162: 0 | AB162: =IF($A162=AA$3,AND($A162=AA$3,$D162<0),0) -> 0 | AC162: 0 | AD162: =IF($A162=AC$3,AND($A162=AC$3,$D162<0),0) -> 0 | AE162: 0 | AF162: 0
A163: =IF(B163=0,"",MONTH(B163)) ->  | E163: =IF(D163="","",IF(D163<0,"DEBITO","CREDITO")) ->  | G163: FALSE | H163: FALSE | I163: 0 | J163: =IF($A163=I$3,AND($A163=I$3,$D163<0),0) -> 0 | K163: 0 | L163: =IF($A163=K$3,AND($A163=K$3,$D163<0),0) -> 0 | M163: 0 | N163: =IF($A163=M$3,AND($A163=M$3,$D163<0),0) -> 0 | O163: 0 | P163: =IF($A163=O$3,AND($A163=O$3,$D163<0),0) -> 0 | Q163: 0 | R163: 0 | S163: 0 | T163: 0 | U163: 0 | V163: 0 | W163: 0 | X163: =IF($A163=W$3,AND($A163=W$3,$D163<0),0) -> 0 | Y163: 0 | Z163: =IF($A163=Y$3,AND($A163=Y$3,$D163<0),0) -> 0 | AA163: 0 | AB163: =IF($A163=AA$3,AND($A163=AA$3,$D163<0),0) -> 0 | AC163: 0 | AD163: =IF($A163=AC$3,AND($A163=AC$3,$D163<0),0) -> 0 | AE163: 0 | AF163: 0
A164: =IF(B164=0,"",MONTH(B164)) ->  | E164: =IF(D164="","",IF(D164<0,"DEBITO","CREDITO")) ->  | G164: FALSE | H164: FALSE | I164: 0 | J164: =IF($A164=I$3,AND($A164=I$3,$D164<0),0) -> 0 | K164: 0 | L164: =IF($A164=K$3,AND($A164=K$3,$D164<0),0) -> 0 | M164: 0 | N164: =IF($A164=M$3,AND($A164=M$3,$D164<0),0) -> 0 | O164: 0 | P164: =IF($A164=O$3,AND($A164=O$3,$D164<0),0) -> 0 | Q164: 0 | R164: 0 | S164: 0 | T164: 0 | U164: 0 | V164: 0 | W164: 0 | X164: =IF($A164=W$3,AND($A164=W$3,$D164<0),0) -> 0 | Y164: 0 | Z164: =IF($A164=Y$3,AND($A164=Y$3,$D164<0),0) -> 0 | AA164: 0 | AB164: =IF($A164=AA$3,AND($A164=AA$3,$D164<0),0) -> 0 | AC164: 0 | AD164: =IF($A164=AC$3,AND($A164=AC$3,$D164<0),0) -> 0 | AE164: 0 | AF164: 0
A165: =IF(B165=0,"",MONTH(B165)) ->  | E165: =IF(D165="","",IF(D165<0,"DEBITO","CREDITO")) ->  | G165: FALSE | H165: FALSE | I165: 0 | J165: =IF($A165=I$3,AND($A165=I$3,$D165<0),0) -> 0 | K165: 0 | L165: =IF($A165=K$3,AND($A165=K$3,$D165<0),0) -> 0 | M165: 0 | N165: =IF($A165=M$3,AND($A165=M$3,$D165<0),0) -> 0 | O165: 0 | P165: =IF($A165=O$3,AND($A165=O$3,$D165<0),0) -> 0 | Q165: 0 | R165: 0 | S165: 0 | T165: 0 | U165: 0 | V165: 0 | W165: 0 | X165: =IF($A165=W$3,AND($A165=W$3,$D165<0),0) -> 0 | Y165: 0 | Z165: =IF($A165=Y$3,AND($A165=Y$3,$D165<0),0) -> 0 | AA165: 0 | AB165: =IF($A165=AA$3,AND($A165=AA$3,$D165<0),0) -> 0 | AC165: 0 | AD165: =IF($A165=AC$3,AND($A165=AC$3,$D165<0),0) -> 0 | AE165: 0 | AF165: 0
A166: =IF(B166=0,"",MONTH(B166)) ->  | E166: =IF(D166="","",IF(D166<0,"DEBITO","CREDITO")) ->  | G166: FALSE | H166: FALSE | I166: 0 | J166: =IF($A166=I$3,AND($A166=I$3,$D166<0),0) -> 0 | K166: 0 | L166: =IF($A166=K$3,AND($A166=K$3,$D166<0),0) -> 0 | M166: 0 | N166: =IF($A166=M$3,AND($A166=M$3,$D166<0),0) -> 0 | O166: 0 | P166: =IF($A166=O$3,AND($A166=O$3,$D166<0),0) -> 0 | Q166: 0 | R166: 0 | S166: 0 | T166: 0 | U166: 0 | V166: 0 | W166: 0 | X166: =IF($A166=W$3,AND($A166=W$3,$D166<0),0) -> 0 | Y166: 0 | Z166: =IF($A166=Y$3,AND($A166=Y$3,$D166<0),0) -> 0 | AA166: 0 | AB166: =IF($A166=AA$3,AND($A166=AA$3,$D166<0),0) -> 0 | AC166: 0 | AD166: =IF($A166=AC$3,AND($A166=AC$3,$D166<0),0) -> 0 | AE166: 0 | AF166: 0
A167: =IF(B167=0,"",MONTH(B167)) ->  | E167: =IF(D167="","",IF(D167<0,"DEBITO","CREDITO")) ->  | G167: FALSE | H167: FALSE | I167: 0 | J167: =IF($A167=I$3,AND($A167=I$3,$D167<0),0) -> 0 | K167: 0 | L167: =IF($A167=K$3,AND($A167=K$3,$D167<0),0) -> 0 | M167: 0 | N167: =IF($A167=M$3,AND($A167=M$3,$D167<0),0) -> 0 | O167: 0 | P167: =IF($A167=O$3,AND($A167=O$3,$D167<0),0) -> 0 | Q167: 0 | R167: 0 | S167: 0 | T167: 0 | U167: 0 | V167: 0 | W167: 0 | X167: =IF($A167=W$3,AND($A167=W$3,$D167<0),0) -> 0 | Y167: 0 | Z167: =IF($A167=Y$3,AND($A167=Y$3,$D167<0),0) -> 0 | AA167: 0 | AB167: =IF($A167=AA$3,AND($A167=AA$3,$D167<0),0) -> 0 | AC167: 0 | AD167: =IF($A167=AC$3,AND($A167=AC$3,$D167<0),0) -> 0 | AE167: 0 | AF167: 0
A168: =IF(B168=0,"",MONTH(B168)) ->  | E168: =IF(D168="","",IF(D168<0,"DEBITO","CREDITO")) ->  | G168: FALSE | H168: FALSE | I168: 0 | J168: =IF($A168=I$3,AND($A168=I$3,$D168<0),0) -> 0 | K168: 0 | L168: =IF($A168=K$3,AND($A168=K$3,$D168<0),0) -> 0 | M168: 0 | N168: =IF($A168=M$3,AND($A168=M$3,$D168<0),0) -> 0 | O168: 0 | P168: =IF($A168=O$3,AND($A168=O$3,$D168<0),0) -> 0 | Q168: 0 | R168: 0 | S168: 0 | T168: 0 | U168: 0 | V168: 0 | W168: 0 | X168: =IF($A168=W$3,AND($A168=W$3,$D168<0),0) -> 0 | Y168: 0 | Z168: =IF($A168=Y$3,AND($A168=Y$3,$D168<0),0) -> 0 | AA168: 0 | AB168: =IF($A168=AA$3,AND($A168=AA$3,$D168<0),0) -> 0 | AC168: 0 | AD168: =IF($A168=AC$3,AND($A168=AC$3,$D168<0),0) -> 0 | AE168: 0 | AF168: 0
A169: =IF(B169=0,"",MONTH(B169)) ->  | E169: =IF(D169="","",IF(D169<0,"DEBITO","CREDITO")) ->  | G169: FALSE | H169: FALSE | I169: 0 | J169: =IF($A169=I$3,AND($A169=I$3,$D169<0),0) -> 0 | K169: 0 | L169: =IF($A169=K$3,AND($A169=K$3,$D169<0),0) -> 0 | M169: 0 | N169: =IF($A169=M$3,AND($A169=M$3,$D169<0),0) -> 0 | O169: 0 | P169: =IF($A169=O$3,AND($A169=O$3,$D169<0),0) -> 0 | Q169: 0 | R169: 0 | S169: 0 | T169: 0 | U169: 0 | V169: 0 | W169: 0 | X169: =IF($A169=W$3,AND($A169=W$3,$D169<0),0) -> 0 | Y169: 0 | Z169: =IF($A169=Y$3,AND($A169=Y$3,$D169<0),0) -> 0 | AA169: 0 | AB169: =IF($A169=AA$3,AND($A169=AA$3,$D169<0),0) -> 0 | AC169: 0 | AD169: =IF($A169=AC$3,AND($A169=AC$3,$D169<0),0) -> 0 | AE169: 0 | AF169: 0
A170: =IF(B170=0,"",MONTH(B170)) ->  | E170: =IF(D170="","",IF(D170<0,"DEBITO","CREDITO")) ->  | G170: FALSE | H170: FALSE | I170: 0 | J170: =IF($A170=I$3,AND($A170=I$3,$D170<0),0) -> 0 | K170: 0 | L170: =IF($A170=K$3,AND($A170=K$3,$D170<0),0) -> 0 | M170: 0 | N170: =IF($A170=M$3,AND($A170=M$3,$D170<0),0) -> 0 | O170: 0 | P170: =IF($A170=O$3,AND($A170=O$3,$D170<0),0) -> 0 | Q170: 0 | R170: 0 | S170: 0 | T170: 0 | U170: 0 | V170: 0 | W170: 0 | X170: =IF($A170=W$3,AND($A170=W$3,$D170<0),0) -> 0 | Y170: 0 | Z170: =IF($A170=Y$3,AND($A170=Y$3,$D170<0),0) -> 0 | AA170: 0 | AB170: =IF($A170=AA$3,AND($A170=AA$3,$D170<0),0) -> 0 | AC170: 0 | AD170: =IF($A170=AC$3,AND($A170=AC$3,$D170<0),0) -> 0 | AE170: 0 | AF170: 0
A171: =IF(B171=0,"",MONTH(B171)) ->  | E171: =IF(D171="","",IF(D171<0,"DEBITO","CREDITO")) ->  | G171: FALSE | H171: FALSE | I171: 0 | J171: =IF($A171=I$3,AND($A171=I$3,$D171<0),0) -> 0 | K171: 0 | L171: =IF($A171=K$3,AND($A171=K$3,$D171<0),0) -> 0 | M171: 0 | N171: =IF($A171=M$3,AND($A171=M$3,$D171<0),0) -> 0 | O171: 0 | P171: =IF($A171=O$3,AND($A171=O$3,$D171<0),0) -> 0 | Q171: 0 | R171: 0 | S171: 0 | T171: 0 | U171: 0 | V171: 0 | W171: 0 | X171: =IF($A171=W$3,AND($A171=W$3,$D171<0),0) -> 0 | Y171: 0 | Z171: =IF($A171=Y$3,AND($A171=Y$3,$D171<0),0) -> 0 | AA171: 0 | AB171: =IF($A171=AA$3,AND($A171=AA$3,$D171<0),0) -> 0 | AC171: 0 | AD171: =IF($A171=AC$3,AND($A171=AC$3,$D171<0),0) -> 0 | AE171: 0 | AF171: 0
A172: =IF(B172=0,"",MONTH(B172)) ->  | E172: =IF(D172="","",IF(D172<0,"DEBITO","CREDITO")) ->  | G172: FALSE | H172: FALSE | I172: 0 | J172: =IF($A172=I$3,AND($A172=I$3,$D172<0),0) -> 0 | K172: 0 | L172: =IF($A172=K$3,AND($A172=K$3,$D172<0),0) -> 0 | M172: 0 | N172: =IF($A172=M$3,AND($A172=M$3,$D172<0),0) -> 0 | O172: 0 | P172: =IF($A172=O$3,AND($A172=O$3,$D172<0),0) -> 0 | Q172: 0 | R172: 0 | S172: 0 | T172: 0 | U172: 0 | V172: 0 | W172: 0 | X172: =IF($A172=W$3,AND($A172=W$3,$D172<0),0) -> 0 | Y172: 0 | Z172: =IF($A172=Y$3,AND($A172=Y$3,$D172<0),0) -> 0 | AA172: 0 | AB172: =IF($A172=AA$3,AND($A172=AA$3,$D172<0),0) -> 0 | AC172: 0 | AD172: =IF($A172=AC$3,AND($A172=AC$3,$D172<0),0) -> 0 | AE172: 0 | AF172: 0
A173: =IF(B173=0,"",MONTH(B173)) ->  | E173: =IF(D173="","",IF(D173<0,"DEBITO","CREDITO")) ->  | G173: FALSE | H173: FALSE | I173: 0 | J173: =IF($A173=I$3,AND($A173=I$3,$D173<0),0) -> 0 | K173: 0 | L173: =IF($A173=K$3,AND($A173=K$3,$D173<0),0) -> 0 | M173: 0 | N173: =IF($A173=M$3,AND($A173=M$3,$D173<0),0) -> 0 | O173: 0 | P173: =IF($A173=O$3,AND($A173=O$3,$D173<0),0) -> 0 | Q173: 0 | R173: 0 | S173: 0 | T173: 0 | U173: 0 | V173: 0 | W173: 0 | X173: =IF($A173=W$3,AND($A173=W$3,$D173<0),0) -> 0 | Y173: 0 | Z173: =IF($A173=Y$3,AND($A173=Y$3,$D173<0),0) -> 0 | AA173: 0 | AB173: =IF($A173=AA$3,AND($A173=AA$3,$D173<0),0) -> 0 | AC173: 0 | AD173: =IF($A173=AC$3,AND($A173=AC$3,$D173<0),0) -> 0 | AE173: 0 | AF173: 0
A174: =IF(B174=0,"",MONTH(B174)) ->  | E174: =IF(D174="","",IF(D174<0,"DEBITO","CREDITO")) ->  | G174: FALSE | H174: FALSE | I174: 0 | J174: =IF($A174=I$3,AND($A174=I$3,$D174<0),0) -> 0 | K174: 0 | L174: =IF($A174=K$3,AND($A174=K$3,$D174<0),0) -> 0 | M174: 0 | N174: =IF($A174=M$3,AND($A174=M$3,$D174<0),0) -> 0 | O174: 0 | P174: =IF($A174=O$3,AND($A174=O$3,$D174<0),0) -> 0 | Q174: 0 | R174: 0 | S174: 0 | T174: 0 | U174: 0 | V174: 0 | W174: 0 | X174: =IF($A174=W$3,AND($A174=W$3,$D174<0),0) -> 0 | Y174: 0 | Z174: =IF($A174=Y$3,AND($A174=Y$3,$D174<0),0) -> 0 | AA174: 0 | AB174: =IF($A174=AA$3,AND($A174=AA$3,$D174<0),0) -> 0 | AC174: 0 | AD174: =IF($A174=AC$3,AND($A174=AC$3,$D174<0),0) -> 0 | AE174: 0 | AF174: 0
A175: =IF(B175=0,"",MONTH(B175)) ->  | E175: =IF(D175="","",IF(D175<0,"DEBITO","CREDITO")) ->  | G175: FALSE | H175: FALSE | I175: 0 | J175: =IF($A175=I$3,AND($A175=I$3,$D175<0),0) -> 0 | K175: 0 | L175: =IF($A175=K$3,AND($A175=K$3,$D175<0),0) -> 0 | M175: 0 | N175: =IF($A175=M$3,AND($A175=M$3,$D175<0),0) -> 0 | O175: 0 | P175: =IF($A175=O$3,AND($A175=O$3,$D175<0),0) -> 0 | Q175: 0 | R175: 0 | S175: 0 | T175: 0 | U175: 0 | V175: 0 | W175: 0 | X175: =IF($A175=W$3,AND($A175=W$3,$D175<0),0) -> 0 | Y175: 0 | Z175: =IF($A175=Y$3,AND($A175=Y$3,$D175<0),0) -> 0 | AA175: 0 | AB175: =IF($A175=AA$3,AND($A175=AA$3,$D175<0),0) -> 0 | AC175: 0 | AD175: =IF($A175=AC$3,AND($A175=AC$3,$D175<0),0) -> 0 | AE175: 0 | AF175: 0
A176: =IF(B176=0,"",MONTH(B176)) ->  | E176: =IF(D176="","",IF(D176<0,"DEBITO","CREDITO")) ->  | G176: FALSE | H176: FALSE | I176: 0 | J176: =IF($A176=I$3,AND($A176=I$3,$D176<0),0) -> 0 | K176: 0 | L176: =IF($A176=K$3,AND($A176=K$3,$D176<0),0) -> 0 | M176: 0 | N176: =IF($A176=M$3,AND($A176=M$3,$D176<0),0) -> 0 | O176: 0 | P176: =IF($A176=O$3,AND($A176=O$3,$D176<0),0) -> 0 | Q176: 0 | R176: 0 | S176: 0 | T176: 0 | U176: 0 | V176: 0 | W176: 0 | X176: =IF($A176=W$3,AND($A176=W$3,$D176<0),0) -> 0 | Y176: 0 | Z176: =IF($A176=Y$3,AND($A176=Y$3,$D176<0),0) -> 0 | AA176: 0 | AB176: =IF($A176=AA$3,AND($A176=AA$3,$D176<0),0) -> 0 | AC176: 0 | AD176: =IF($A176=AC$3,AND($A176=AC$3,$D176<0),0) -> 0 | AE176: 0 | AF176: 0
A177: =IF(B177=0,"",MONTH(B177)) ->  | E177: =IF(D177="","",IF(D177<0,"DEBITO","CREDITO")) ->  | G177: FALSE | H177: FALSE | I177: 0 | J177: =IF($A177=I$3,AND($A177=I$3,$D177<0),0) -> 0 | K177: 0 | L177: =IF($A177=K$3,AND($A177=K$3,$D177<0),0) -> 0 | M177: 0 | N177: =IF($A177=M$3,AND($A177=M$3,$D177<0),0) -> 0 | O177: 0 | P177: =IF($A177=O$3,AND($A177=O$3,$D177<0),0) -> 0 | Q177: 0 | R177: 0 | S177: 0 | T177: 0 | U177: 0 | V177: 0 | W177: 0 | X177: =IF($A177=W$3,AND($A177=W$3,$D177<0),0) -> 0 | Y177: 0 | Z177: =IF($A177=Y$3,AND($A177=Y$3,$D177<0),0) -> 0 | AA177: 0 | AB177: =IF($A177=AA$3,AND($A177=AA$3,$D177<0),0) -> 0 | AC177: 0 | AD177: =IF($A177=AC$3,AND($A177=AC$3,$D177<0),0) -> 0 | AE177: 0 | AF177: 0
A178: =IF(B178=0,"",MONTH(B178)) ->  | E178: =IF(D178="","",IF(D178<0,"DEBITO","CREDITO")) ->  | G178: FALSE | H178: FALSE | I178: 0 | J178: =IF($A178=I$3,AND($A178=I$3,$D178<0),0) -> 0 | K178: 0 | L178: =IF($A178=K$3,AND($A178=K$3,$D178<0),0) -> 0 | M178: 0 | N178: =IF($A178=M$3,AND($A178=M$3,$D178<0),0) -> 0 | O178: 0 | P178: =IF($A178=O$3,AND($A178=O$3,$D178<0),0) -> 0 | Q178: 0 | R178: 0 | S178: 0 | T178: 0 | U178: 0 | V178: 0 | W178: 0 | X178: =IF($A178=W$3,AND($A178=W$3,$D178<0),0) -> 0 | Y178: 0 | Z178: =IF($A178=Y$3,AND($A178=Y$3,$D178<0),0) -> 0 | AA178: 0 | AB178: =IF($A178=AA$3,AND($A178=AA$3,$D178<0),0) -> 0 | AC178: 0 | AD178: =IF($A178=AC$3,AND($A178=AC$3,$D178<0),0) -> 0 | AE178: 0 | AF178: 0
A179: =IF(B179=0,"",MONTH(B179)) ->  | E179: =IF(D179="","",IF(D179<0,"DEBITO","CREDITO")) ->  | G179: FALSE | H179: FALSE | I179: 0 | J179: =IF($A179=I$3,AND($A179=I$3,$D179<0),0) -> 0 | K179: 0 | L179: =IF($A179=K$3,AND($A179=K$3,$D179<0),0) -> 0 | M179: 0 | N179: =IF($A179=M$3,AND($A179=M$3,$D179<0),0) -> 0 | O179: 0 | P179: =IF($A179=O$3,AND($A179=O$3,$D179<0),0) -> 0 | Q179: 0 | R179: 0 | S179: 0 | T179: 0 | U179: 0 | V179: 0 | W179: 0 | X179: =IF($A179=W$3,AND($A179=W$3,$D179<0),0) -> 0 | Y179: 0 | Z179: =IF($A179=Y$3,AND($A179=Y$3,$D179<0),0) -> 0 | AA179: 0 | AB179: =IF($A179=AA$3,AND($A179=AA$3,$D179<0),0) -> 0 | AC179: 0 | AD179: =IF($A179=AC$3,AND($A179=AC$3,$D179<0),0) -> 0 | AE179: 0 | AF179: 0
A180: =IF(B180=0,"",MONTH(B180)) ->  | E180: =IF(D180="","",IF(D180<0,"DEBITO","CREDITO")) ->  | G180: FALSE | H180: FALSE | I180: 0 | J180: =IF($A180=I$3,AND($A180=I$3,$D180<0),0) -> 0 | K180: 0 | L180: =IF($A180=K$3,AND($A180=K$3,$D180<0),0) -> 0 | M180: 0 | N180: =IF($A180=M$3,AND($A180=M$3,$D180<0),0) -> 0 | O180: 0 | P180: =IF($A180=O$3,AND($A180=O$3,$D180<0),0) -> 0 | Q180: 0 | R180: 0 | S180: 0 | T180: 0 | U180: 0 | V180: 0 | W180: 0 | X180: =IF($A180=W$3,AND($A180=W$3,$D180<0),0) -> 0 | Y180: 0 | Z180: =IF($A180=Y$3,AND($A180=Y$3,$D180<0),0) -> 0 | AA180: 0 | AB180: =IF($A180=AA$3,AND($A180=AA$3,$D180<0),0) -> 0 | AC180: 0 | AD180: =IF($A180=AC$3,AND($A180=AC$3,$D180<0),0) -> 0 | AE180: 0 | AF180: 0
A181: =IF(B181=0,"",MONTH(B181)) ->  | E181: =IF(D181="","",IF(D181<0,"DEBITO","CREDITO")) ->  | G181: FALSE | H181: FALSE | I181: 0 | J181: =IF($A181=I$3,AND($A181=I$3,$D181<0),0) -> 0 | K181: 0 | L181: =IF($A181=K$3,AND($A181=K$3,$D181<0),0) -> 0 | M181: 0 | N181: =IF($A181=M$3,AND($A181=M$3,$D181<0),0) -> 0 | O181: 0 | P181: =IF($A181=O$3,AND($A181=O$3,$D181<0),0) -> 0 | Q181: 0 | R181: 0 | S181: 0 | T181: 0 | U181: 0 | V181: 0 | W181: 0 | X181: =IF($A181=W$3,AND($A181=W$3,$D181<0),0) -> 0 | Y181: 0 | Z181: =IF($A181=Y$3,AND($A181=Y$3,$D181<0),0) -> 0 | AA181: 0 | AB181: =IF($A181=AA$3,AND($A181=AA$3,$D181<0),0) -> 0 | AC181: 0 | AD181: =IF($A181=AC$3,AND($A181=AC$3,$D181<0),0) -> 0 | AE181: 0 | AF181: 0
A182: =IF(B182=0,"",MONTH(B182)) ->  | E182: =IF(D182="","",IF(D182<0,"DEBITO","CREDITO")) ->  | G182: FALSE | H182: FALSE | I182: 0 | J182: =IF($A182=I$3,AND($A182=I$3,$D182<0),0) -> 0 | K182: 0 | L182: =IF($A182=K$3,AND($A182=K$3,$D182<0),0) -> 0 | M182: 0 | N182: =IF($A182=M$3,AND($A182=M$3,$D182<0),0) -> 0 | O182: 0 | P182: =IF($A182=O$3,AND($A182=O$3,$D182<0),0) -> 0 | Q182: 0 | R182: 0 | S182: 0 | T182: 0 | U182: 0 | V182: 0 | W182: 0 | X182: =IF($A182=W$3,AND($A182=W$3,$D182<0),0) -> 0 | Y182: 0 | Z182: =IF($A182=Y$3,AND($A182=Y$3,$D182<0),0) -> 0 | AA182: 0 | AB182: =IF($A182=AA$3,AND($A182=AA$3,$D182<0),0) -> 0 | AC182: 0 | AD182: =IF($A182=AC$3,AND($A182=AC$3,$D182<0),0) -> 0 | AE182: 0 | AF182: 0
A183: =IF(B183=0,"",MONTH(B183)) ->  | E183: =IF(D183="","",IF(D183<0,"DEBITO","CREDITO")) ->  | G183: FALSE | H183: FALSE | I183: 0 | J183: =IF($A183=I$3,AND($A183=I$3,$D183<0),0) -> 0 | K183: 0 | L183: =IF($A183=K$3,AND($A183=K$3,$D183<0),0) -> 0 | M183: 0 | N183: =IF($A183=M$3,AND($A183=M$3,$D183<0),0) -> 0 | O183: 0 | P183: =IF($A183=O$3,AND($A183=O$3,$D183<0),0) -> 0 | Q183: 0 | R183: 0 | S183: 0 | T183: 0 | U183: 0 | V183: 0 | W183: 0 | X183: =IF($A183=W$3,AND($A183=W$3,$D183<0),0) -> 0 | Y183: 0 | Z183: =IF($A183=Y$3,AND($A183=Y$3,$D183<0),0) -> 0 | AA183: 0 | AB183: =IF($A183=AA$3,AND($A183=AA$3,$D183<0),0) -> 0 | AC183: 0 | AD183: =IF($A183=AC$3,AND($A183=AC$3,$D183<0),0) -> 0 | AE183: 0 | AF183: 0
A184: =IF(B184=0,"",MONTH(B184)) ->  | E184: =IF(D184="","",IF(D184<0,"DEBITO","CREDITO")) ->  | G184: FALSE | H184: FALSE | I184: 0 | J184: =IF($A184=I$3,AND($A184=I$3,$D184<0),0) -> 0 | K184: 0 | L184: =IF($A184=K$3,AND($A184=K$3,$D184<0),0) -> 0 | M184: 0 | N184: =IF($A184=M$3,AND($A184=M$3,$D184<0),0) -> 0 | O184: 0 | P184: =IF($A184=O$3,AND($A184=O$3,$D184<0),0) -> 0 | Q184: 0 | R184: 0 | S184: 0 | T184: 0 | U184: 0 | V184: 0 | W184: 0 | X184: =IF($A184=W$3,AND($A184=W$3,$D184<0),0) -> 0 | Y184: 0 | Z184: =IF($A184=Y$3,AND($A184=Y$3,$D184<0),0) -> 0 | AA184: 0 | AB184: =IF($A184=AA$3,AND($A184=AA$3,$D184<0),0) -> 0 | AC184: 0 | AD184: =IF($A184=AC$3,AND($A184=AC$3,$D184<0),0) -> 0 | AE184: 0 | AF184: 0
A185: =IF(B185=0,"",MONTH(B185)) ->  | E185: =IF(D185="","",IF(D185<0,"DEBITO","CREDITO")) ->  | G185: FALSE | H185: FALSE | I185: 0 | J185: =IF($A185=I$3,AND($A185=I$3,$D185<0),0) -> 0 | K185: 0 | L185: =IF($A185=K$3,AND($A185=K$3,$D185<0),0) -> 0 | M185: 0 | N185: =IF($A185=M$3,AND($A185=M$3,$D185<0),0) -> 0 | O185: 0 | P185: =IF($A185=O$3,AND($A185=O$3,$D185<0),0) -> 0 | Q185: 0 | R185: 0 | S185: 0 | T185: 0 | U185: 0 | V185: 0 | W185: 0 | X185: =IF($A185=W$3,AND($A185=W$3,$D185<0),0) -> 0 | Y185: 0 | Z185: =IF($A185=Y$3,AND($A185=Y$3,$D185<0),0) -> 0 | AA185: 0 | AB185: =IF($A185=AA$3,AND($A185=AA$3,$D185<0),0) -> 0 | AC185: 0 | AD185: =IF($A185=AC$3,AND($A185=AC$3,$D185<0),0) -> 0 | AE185: 0 | AF185: 0
A186: =IF(B186=0,"",MONTH(B186)) ->  | E186: =IF(D186="","",IF(D186<0,"DEBITO","CREDITO")) ->  | G186: FALSE | H186: FALSE | I186: 0 | J186: =IF($A186=I$3,AND($A186=I$3,$D186<0),0) -> 0 | K186: 0 | L186: =IF($A186=K$3,AND($A186=K$3,$D186<0),0) -> 0 | M186: 0 | N186: =IF($A186=M$3,AND($A186=M$3,$D186<0),0) -> 0 | O186: 0 | P186: =IF($A186=O$3,AND($A186=O$3,$D186<0),0) -> 0 | Q186: 0 | R186: 0 | S186: 0 | T186: 0 | U186: 0 | V186: 0 | W186: 0 | X186: =IF($A186=W$3,AND($A186=W$3,$D186<0),0) -> 0 | Y186: 0 | Z186: =IF($A186=Y$3,AND($A186=Y$3,$D186<0),0) -> 0 | AA186: 0 | AB186: =IF($A186=AA$3,AND($A186=AA$3,$D186<0),0) -> 0 | AC186: 0 | AD186: =IF($A186=AC$3,AND($A186=AC$3,$D186<0),0) -> 0 | AE186: 0 | AF186: 0
A187: =IF(B187=0,"",MONTH(B187)) ->  | E187: =IF(D187="","",IF(D187<0,"DEBITO","CREDITO")) ->  | G187: FALSE | H187: FALSE | I187: 0 | J187: =IF($A187=I$3,AND($A187=I$3,$D187<0),0) -> 0 | K187: 0 | L187: =IF($A187=K$3,AND($A187=K$3,$D187<0),0) -> 0 | M187: 0 | N187: =IF($A187=M$3,AND($A187=M$3,$D187<0),0) -> 0 | O187: 0 | P187: =IF($A187=O$3,AND($A187=O$3,$D187<0),0) -> 0 | Q187: 0 | R187: 0 | S187: 0 | T187: 0 | U187: 0 | V187: 0 | W187: 0 | X187: =IF($A187=W$3,AND($A187=W$3,$D187<0),0) -> 0 | Y187: 0 | Z187: =IF($A187=Y$3,AND($A187=Y$3,$D187<0),0) -> 0 | AA187: 0 | AB187: =IF($A187=AA$3,AND($A187=AA$3,$D187<0),0) -> 0 | AC187: 0 | AD187: =IF($A187=AC$3,AND($A187=AC$3,$D187<0),0) -> 0 | AE187: 0 | AF187: 0
A188: =IF(B188=0,"",MONTH(B188)) ->  | E188: =IF(D188="","",IF(D188<0,"DEBITO","CREDITO")) ->  | G188: FALSE | H188: FALSE | I188: 0 | J188: =IF($A188=I$3,AND($A188=I$3,$D188<0),0) -> 0 | K188: 0 | L188: =IF($A188=K$3,AND($A188=K$3,$D188<0),0) -> 0 | M188: 0 | N188: =IF($A188=M$3,AND($A188=M$3,$D188<0),0) -> 0 | O188: 0 | P188: =IF($A188=O$3,AND($A188=O$3,$D188<0),0) -> 0 | Q188: 0 | R188: 0 | S188: 0 | T188: 0 | U188: 0 | V188: 0 | W188: 0 | X188: =IF($A188=W$3,AND($A188=W$3,$D188<0),0) -> 0 | Y188: 0 | Z188: =IF($A188=Y$3,AND($A188=Y$3,$D188<0),0) -> 0 | AA188: 0 | AB188: =IF($A188=AA$3,AND($A188=AA$3,$D188<0),0) -> 0 | AC188: 0 | AD188: =IF($A188=AC$3,AND($A188=AC$3,$D188<0),0) -> 0 | AE188: 0 | AF188: 0
A189: =IF(B189=0,"",MONTH(B189)) ->  | E189: =IF(D189="","",IF(D189<0,"DEBITO","CREDITO")) ->  | G189: FALSE | H189: FALSE | I189: 0 | J189: =IF($A189=I$3,AND($A189=I$3,$D189<0),0) -> 0 | K189: 0 | L189: =IF($A189=K$3,AND($A189=K$3,$D189<0),0) -> 0 | M189: 0 | N189: =IF($A189=M$3,AND($A189=M$3,$D189<0),0) -> 0 | O189: 0 | P189: =IF($A189=O$3,AND($A189=O$3,$D189<0),0) -> 0 | Q189: 0 | R189: 0 | S189: 0 | T189: 0 | U189: 0 | V189: 0 | W189: 0 | X189: =IF($A189=W$3,AND($A189=W$3,$D189<0),0) -> 0 | Y189: 0 | Z189: =IF($A189=Y$3,AND($A189=Y$3,$D189<0),0) -> 0 | AA189: 0 | AB189: =IF($A189=AA$3,AND($A189=AA$3,$D189<0),0) -> 0 | AC189: 0 | AD189: =IF($A189=AC$3,AND($A189=AC$3,$D189<0),0) -> 0 | AE189: 0 | AF189: 0
A190: =IF(B190=0,"",MONTH(B190)) ->  | E190: =IF(D190="","",IF(D190<0,"DEBITO","CREDITO")) ->  | G190: FALSE | H190: FALSE | I190: 0 | J190: =IF($A190=I$3,AND($A190=I$3,$D190<0),0) -> 0 | K190: 0 | L190: =IF($A190=K$3,AND($A190=K$3,$D190<0),0) -> 0 | M190: 0 | N190: =IF($A190=M$3,AND($A190=M$3,$D190<0),0) -> 0 | O190: 0 | P190: =IF($A190=O$3,AND($A190=O$3,$D190<0),0) -> 0 | Q190: 0 | R190: 0 | S190: 0 | T190: 0 | U190: 0 | V190: 0 | W190: 0 | X190: =IF($A190=W$3,AND($A190=W$3,$D190<0),0) -> 0 | Y190: 0 | Z190: =IF($A190=Y$3,AND($A190=Y$3,$D190<0),0) -> 0 | AA190: 0 | AB190: =IF($A190=AA$3,AND($A190=AA$3,$D190<0),0) -> 0 | AC190: 0 | AD190: =IF($A190=AC$3,AND($A190=AC$3,$D190<0),0) -> 0 | AE190: 0 | AF190: 0
A191: =IF(B191=0,"",MONTH(B191)) ->  | E191: =IF(D191="","",IF(D191<0,"DEBITO","CREDITO")) ->  | G191: FALSE | H191: FALSE | I191: 0 | J191: =IF($A191=I$3,AND($A191=I$3,$D191<0),0) -> 0 | K191: 0 | L191: =IF($A191=K$3,AND($A191=K$3,$D191<0),0) -> 0 | M191: 0 | N191: =IF($A191=M$3,AND($A191=M$3,$D191<0),0) -> 0 | O191: 0 | P191: =IF($A191=O$3,AND($A191=O$3,$D191<0),0) -> 0 | Q191: 0 | R191: 0 | S191: 0 | T191: 0 | U191: 0 | V191: 0 | W191: 0 | X191: =IF($A191=W$3,AND($A191=W$3,$D191<0),0) -> 0 | Y191: 0 | Z191: =IF($A191=Y$3,AND($A191=Y$3,$D191<0),0) -> 0 | AA191: 0 | AB191: =IF($A191=AA$3,AND($A191=AA$3,$D191<0),0) -> 0 | AC191: 0 | AD191: =IF($A191=AC$3,AND($A191=AC$3,$D191<0),0) -> 0 | AE191: 0 | AF191: 0
A192: =IF(B192=0,"",MONTH(B192)) ->  | E192: =IF(D192="","",IF(D192<0,"DEBITO","CREDITO")) ->  | G192: FALSE | H192: FALSE | I192: 0 | J192: =IF($A192=I$3,AND($A192=I$3,$D192<0),0) -> 0 | K192: 0 | L192: =IF($A192=K$3,AND($A192=K$3,$D192<0),0) -> 0 | M192: 0 | N192: =IF($A192=M$3,AND($A192=M$3,$D192<0),0) -> 0 | O192: 0 | P192: =IF($A192=O$3,AND($A192=O$3,$D192<0),0) -> 0 | Q192: 0 | R192: 0 | S192: 0 | T192: 0 | U192: 0 | V192: 0 | W192: 0 | X192: =IF($A192=W$3,AND($A192=W$3,$D192<0),0) -> 0 | Y192: 0 | Z192: =IF($A192=Y$3,AND($A192=Y$3,$D192<0),0) -> 0 | AA192: 0 | AB192: =IF($A192=AA$3,AND($A192=AA$3,$D192<0),0) -> 0 | AC192: 0 | AD192: =IF($A192=AC$3,AND($A192=AC$3,$D192<0),0) -> 0 | AE192: 0 | AF192: 0
A193: =IF(B193=0,"",MONTH(B193)) ->  | E193: =IF(D193="","",IF(D193<0,"DEBITO","CREDITO")) ->  | G193: FALSE | H193: FALSE | I193: 0 | J193: =IF($A193=I$3,AND($A193=I$3,$D193<0),0) -> 0 | K193: 0 | L193: =IF($A193=K$3,AND($A193=K$3,$D193<0),0) -> 0 | M193: 0 | N193: =IF($A193=M$3,AND($A193=M$3,$D193<0),0) -> 0 | O193: 0 | P193: =IF($A193=O$3,AND($A193=O$3,$D193<0),0) -> 0 | Q193: 0 | R193: 0 | S193: 0 | T193: 0 | U193: 0 | V193: 0 | W193: 0 | X193: =IF($A193=W$3,AND($A193=W$3,$D193<0),0) -> 0 | Y193: 0 | Z193: =IF($A193=Y$3,AND($A193=Y$3,$D193<0),0) -> 0 | AA193: 0 | AB193: =IF($A193=AA$3,AND($A193=AA$3,$D193<0),0) -> 0 | AC193: 0 | AD193: =IF($A193=AC$3,AND($A193=AC$3,$D193<0),0) -> 0 | AE193: 0 | AF193: 0
A194: =IF(B194=0,"",MONTH(B194)) ->  | E194: =IF(D194="","",IF(D194<0,"DEBITO","CREDITO")) ->  | G194: FALSE | H194: FALSE | I194: 0 | J194: =IF($A194=I$3,AND($A194=I$3,$D194<0),0) -> 0 | K194: 0 | L194: =IF($A194=K$3,AND($A194=K$3,$D194<0),0) -> 0 | M194: 0 | N194: =IF($A194=M$3,AND($A194=M$3,$D194<0),0) -> 0 | O194: 0 | P194: =IF($A194=O$3,AND($A194=O$3,$D194<0),0) -> 0 | Q194: 0 | R194: 0 | S194: 0 | T194: 0 | U194: 0 | V194: 0 | W194: 0 | X194: =IF($A194=W$3,AND($A194=W$3,$D194<0),0) -> 0 | Y194: 0 | Z194: =IF($A194=Y$3,AND($A194=Y$3,$D194<0),0) -> 0 | AA194: 0 | AB194: =IF($A194=AA$3,AND($A194=AA$3,$D194<0),0) -> 0 | AC194: 0 | AD194: =IF($A194=AC$3,AND($A194=AC$3,$D194<0),0) -> 0 | AE194: 0 | AF194: 0
A195: =IF(B195=0,"",MONTH(B195)) ->  | E195: =IF(D195="","",IF(D195<0,"DEBITO","CREDITO")) ->  | G195: FALSE | H195: FALSE | I195: 0 | J195: =IF($A195=I$3,AND($A195=I$3,$D195<0),0) -> 0 | K195: 0 | L195: =IF($A195=K$3,AND($A195=K$3,$D195<0),0) -> 0 | M195: 0 | N195: =IF($A195=M$3,AND($A195=M$3,$D195<0),0) -> 0 | O195: 0 | P195: =IF($A195=O$3,AND($A195=O$3,$D195<0),0) -> 0 | Q195: 0 | R195: 0 | S195: 0 | T195: 0 | U195: 0 | V195: 0 | W195: 0 | X195: =IF($A195=W$3,AND($A195=W$3,$D195<0),0) -> 0 | Y195: 0 | Z195: =IF($A195=Y$3,AND($A195=Y$3,$D195<0),0) -> 0 | AA195: 0 | AB195: =IF($A195=AA$3,AND($A195=AA$3,$D195<0),0) -> 0 | AC195: 0 | AD195: =IF($A195=AC$3,AND($A195=AC$3,$D195<0),0) -> 0 | AE195: 0 | AF195: 0
A196: =IF(B196=0,"",MONTH(B196)) ->  | E196: =IF(D196="","",IF(D196<0,"DEBITO","CREDITO")) ->  | G196: FALSE | H196: FALSE | I196: 0 | J196: =IF($A196=I$3,AND($A196=I$3,$D196<0),0) -> 0 | K196: 0 | L196: =IF($A196=K$3,AND($A196=K$3,$D196<0),0) -> 0 | M196: 0 | N196: =IF($A196=M$3,AND($A196=M$3,$D196<0),0) -> 0 | O196: 0 | P196: =IF($A196=O$3,AND($A196=O$3,$D196<0),0) -> 0 | Q196: 0 | R196: 0 | S196: 0 | T196: 0 | U196: 0 | V196: 0 | W196: 0 | X196: =IF($A196=W$3,AND($A196=W$3,$D196<0),0) -> 0 | Y196: 0 | Z196: =IF($A196=Y$3,AND($A196=Y$3,$D196<0),0) -> 0 | AA196: 0 | AB196: =IF($A196=AA$3,AND($A196=AA$3,$D196<0),0) -> 0 | AC196: 0 | AD196: =IF($A196=AC$3,AND($A196=AC$3,$D196<0),0) -> 0 | AE196: 0 | AF196: 0
A197: =IF(B197=0,"",MONTH(B197)) ->  | E197: =IF(D197="","",IF(D197<0,"DEBITO","CREDITO")) ->  | G197: FALSE | H197: FALSE | I197: 0 | J197: =IF($A197=I$3,AND($A197=I$3,$D197<0),0) -> 0 | K197: 0 | L197: =IF($A197=K$3,AND($A197=K$3,$D197<0),0) -> 0 | M197: 0 | N197: =IF($A197=M$3,AND($A197=M$3,$D197<0),0) -> 0 | O197: 0 | P197: =IF($A197=O$3,AND($A197=O$3,$D197<0),0) -> 0 | Q197: 0 | R197: 0 | S197: 0 | T197: 0 | U197: 0 | V197: 0 | W197: 0 | X197: =IF($A197=W$3,AND($A197=W$3,$D197<0),0) -> 0 | Y197: 0 | Z197: =IF($A197=Y$3,AND($A197=Y$3,$D197<0),0) -> 0 | AA197: 0 | AB197: =IF($A197=AA$3,AND($A197=AA$3,$D197<0),0) -> 0 | AC197: 0 | AD197: =IF($A197=AC$3,AND($A197=AC$3,$D197<0),0) -> 0 | AE197: 0 | AF197: 0
A198: =IF(B198=0,"",MONTH(B198)) ->  | E198: =IF(D198="","",IF(D198<0,"DEBITO","CREDITO")) ->  | G198: FALSE | H198: FALSE | I198: 0 | J198: =IF($A198=I$3,AND($A198=I$3,$D198<0),0) -> 0 | K198: 0 | L198: =IF($A198=K$3,AND($A198=K$3,$D198<0),0) -> 0 | M198: 0 | N198: =IF($A198=M$3,AND($A198=M$3,$D198<0),0) -> 0 | O198: 0 | P198: =IF($A198=O$3,AND($A198=O$3,$D198<0),0) -> 0 | Q198: 0 | R198: 0 | S198: 0 | T198: 0 | U198: 0 | V198: 0 | W198: 0 | X198: =IF($A198=W$3,AND($A198=W$3,$D198<0),0) -> 0 | Y198: 0 | Z198: =IF($A198=Y$3,AND($A198=Y$3,$D198<0),0) -> 0 | AA198: 0 | AB198: =IF($A198=AA$3,AND($A198=AA$3,$D198<0),0) -> 0 | AC198: 0 | AD198: =IF($A198=AC$3,AND($A198=AC$3,$D198<0),0) -> 0 | AE198: 0 | AF198: 0
A199: =IF(B199=0,"",MONTH(B199)) ->  | E199: =IF(D199="","",IF(D199<0,"DEBITO","CREDITO")) ->  | G199: FALSE | H199: FALSE | I199: 0 | J199: =IF($A199=I$3,AND($A199=I$3,$D199<0),0) -> 0 | K199: 0 | L199: =IF($A199=K$3,AND($A199=K$3,$D199<0),0) -> 0 | M199: 0 | N199: =IF($A199=M$3,AND($A199=M$3,$D199<0),0) -> 0 | O199: 0 | P199: =IF($A199=O$3,AND($A199=O$3,$D199<0),0) -> 0 | Q199: 0 | R199: 0 | S199: 0 | T199: 0 | U199: 0 | V199: 0 | W199: 0 | X199: =IF($A199=W$3,AND($A199=W$3,$D199<0),0) -> 0 | Y199: 0 | Z199: =IF($A199=Y$3,AND($A199=Y$3,$D199<0),0) -> 0 | AA199: 0 | AB199: =IF($A199=AA$3,AND($A199=AA$3,$D199<0),0) -> 0 | AC199: 0 | AD199: =IF($A199=AC$3,AND($A199=AC$3,$D199<0),0) -> 0 | AE199: 0 | AF199: 0
A200: =IF(B200=0,"",MONTH(B200)) ->  | E200: =IF(D200="","",IF(D200<0,"DEBITO","CREDITO")) ->  | G200: FALSE | H200: FALSE | I200: 0 | J200: =IF($A200=I$3,AND($A200=I$3,$D200<0),0) -> 0 | K200: 0 | L200: =IF($A200=K$3,AND($A200=K$3,$D200<0),0) -> 0 | M200: 0 | N200: =IF($A200=M$3,AND($A200=M$3,$D200<0),0) -> 0 | O200: 0 | P200: =IF($A200=O$3,AND($A200=O$3,$D200<0),0) -> 0 | Q200: 0 | R200: 0 | S200: 0 | T200: 0 | U200: 0 | V200: 0 | W200: 0 | X200: =IF($A200=W$3,AND($A200=W$3,$D200<0),0) -> 0 | Y200: 0 | Z200: =IF($A200=Y$3,AND($A200=Y$3,$D200<0),0) -> 0 | AA200: 0 | AB200: =IF($A200=AA$3,AND($A200=AA$3,$D200<0),0) -> 0 | AC200: 0 | AD200: =IF($A200=AC$3,AND($A200=AC$3,$D200<0),0) -> 0 | AE200: 0 | AF200: 0
... 2050 more rows

Sheet CARTÃO1
A1: LANÇAMENTOS DO CARTÃO DE CRÉDITO
L2: ;=SE((MÊS($A8))<=G$5;SE((MÊS($A8)+$E8)>G$5;($D8/$E8);"");"")
C3: LANÇAMENTOS | G3: MESES (TOTAIS)
C4: DIA DE MELHOR COMPRA | D4: 10 | G4: =SUM(G7:G30) -> 100 | H4: =SUM(H7:H30) -> 100 | I4: =SUM(I7:I300) -> 246.71 | J4: =SUM(J7:J300) -> 216.7 | K4: =SUM(K7:K300) -> 216.7 | L4: 100 | M4: 100 | N4: 100 | O4: 100 | P4: 100 | Q4: 0 | R4: 0
G5: 1 | H5: 2 | I5: 3 | J5: 4 | K5: 5 | L5: 6 | M5: 7 | N5: 8 | O5: 9 | P5: 10 | Q5: 11 | R5: 12
A6: MÊS | B6: DATA | C6: DESCRIÇÃO | D6: VALOR | E6: PARC.
A7: =IF(B7="","",IF(DAY(B7)>=$D$4,IF(MONTH(B7)+1=13,1,MONTH(B7)+1),MONTH(B7))) -> 1 | B7: 2016-01-01 | C7: MI COM B2W | D7: 1000 | E7: 10 | G7: =IF((($A7))<=G$5,IF((($A7)+$E7)>G$5,($D7/$E7),""),"") -> 100 | H7: 100 | I7: 100 | J7: 100 | K7: 100 | L7: 100 | M7: 100 | N7: 100 | O7: 100 | P7: 100
A8: 3 | B8: 2016-03-01 | C8: ITAPUA CALÇADOS | D8: 30.01 | E8: 1 | I8: 30.01
A9: 3 | B9: 2016-03-01 | C9: CENTRO VISÃO | D9: =116.7*3 -> 350.1 | E9: 3 | I9: 116.7 | J9: 116.7 | K9: 116.7
G23: =IF((($A23))<=G$5,IF((($A23)+$E23)>G$5,($D23/$E23),""),"") -> 
G39: =IF((($A39))<=G$5,IF((($A39)+$E39)>G$5,($D39/$E39),""),"") -> 
G55: =IF((($A55))<=G$5,IF((($A55)+$E55)>G$5,($D55/$E55),""),"") -> 
G71: =IF((($A71))<=G$5,IF((($A71)+$E71)>G$5,($D71/$E71),""),"") -> 
A74: =IF(B74="","",IF(DAY(B74)>=$D$4,IF(MONTH(B74)+1=13,1,MONTH(B74)+1),MONTH(B74))) -> 
G87: =IF((($A87))<=G$5,IF((($A87)+$E87)>G$5,($D87/$E87),""),"") -> 
G103: =IF((($A103))<=G$5,IF((($A103)+$E103)>G$5,($D103/$E103),""),"") -> 
G119: =IF((($A119))<=G$5,IF((($A119)+$E119)>G$5,($D119/$E119),""),"") -> 
G135: =IF((($A135))<=G$5,IF((($A135)+$E135)>G$5,($D135/$E135),""),"") -> 
A138: =IF(B138="","",IF(DAY(B138)>=$D$4,IF(MONTH(B138)+1=13,1,MONTH(B138)+1),MONTH(B138))) -> 
G151: =IF((($A151))<=G$5,IF((($A151)+$E151)>G$5,($D151/$E151),""),"") -> 
G167: =IF((($A167))<=G$5,IF((($A167)+$E167)>G$5,($D167/$E167),""),"") -> 
G183: =IF((($A183))<=G$5,IF((($A183)+$E183)>G$5,($D183/$E183),""),"") -> 
G199: =IF((($A199))<=G$5,IF((($A199)+$E199)>G$5,($D199/$E199),""),"") -> 
A202: =IF(B202="","",IF(DAY(B202)>=$D$4,IF(MONTH(B202)+1=13,1,MONTH(B202)+1),MONTH(B202))) -> 
G215: =IF((($A215))<=G$5,IF((($A215)+$E215)>G$5,($D215/$E215),""),"") -> 
G231: =IF((($A231))<=G$5,IF((($A231)+$E231)>G$5,($D231/$E231),""),"") -> 
G247: =IF((($A247))<=G$5,IF((($A247)+$E247)>G$5,($D247/$E247),""),"") -> 
G263: =IF((($A263))<=G$5,IF((($A263)+$E263)>G$5,($D263/$E263),""),"") -> 
A266: =IF(B266="","",IF(DAY(B266)>=$D$4,IF(MONTH(B266)+1=13,1,MONTH(B266)+1),MONTH(B266))) -> 
G279: =IF((($A279))<=G$5,IF((($A279)+$E279)>G$5,($D279/$E279),""),"") -> 
G295: =IF((($A295))<=G$5,IF((($A295)+$E295)>G$5,($D295/$E295),""),"") -> 

Sheet Plan1
A3: Tipo | B3: DEBITO
A5: Rótulos de Linha | B5: Soma de Movimentação
A6: 1 | B6: -650
A7: ALUGUEL | B7: -400
A8: CARTÃO | B8: -100
A9: FARMACIA | B9: -150
A10: 2 | B10: -1720
A11: ALUGUEL | B11: -400
A12: CARTÃO | B12: -100
A13: FARMACIA | B13: -20
A14: MERCADO | B14: -1200
A15: Total Geral | B15: -2370

Sheet SOBRE
A1: Planilha de Controle Financeiro
A3: Autor: Waldri dos Santos Oliveira
A4: Uso: Esta planilha é de uso pessoal, totalmente gratuito, e ilimitado, possui trechos proibidas de edição, para apenas proteger a sua integridade, sinta-se a vontade para editar, assumindo seu próprio risco de danificar ou perda de dados, não é oferecido nenhum tipo de suporte. Espero que seja muito útil no seu dia a dia. Obrigado.
A6: Caso necessite de outra cópia, ou atualização, visite:
A7: http://www.waldri.eng.br/
A9: Ajuda
A10: Movimentos
A11: Onde são lançados os créditos e débitos (usando sinal negativo), apenas é preciso lançar data, descrição e valor. Possui dois gráficos um para previsçoes mês a mês, outra para acompanhamento dos tipos de lançamento, por mês ou mêses, assim saber a intensidade dos tipos de gastos. Possui vários filtros para falicitar a leitura. O Botão ORGANIZAR, organiza os lançamentos em data crescente, e SALVA automaticamente, o botão ATUALIZAR, atualiza os graficos.
A12: Plan 1
A13: Planilha de formulas para gráficos
A15: CARTÃO1
A16: Planilha para simulação de parcelamento e gastos com cartão de crédito, (ainda só é possível para um cartão). Deve escolher o melhor dia de compra (Fechamento da Fatura), lançar, data, descrição, valor e parcela. Esta planilha faz lançamentos automáticamente na ABA Movimentos
A17: IMPORTATNTE: HABILITE OS MARCOS EM SEU EXCEL
